Workbook

Sheet Part 1
A1: LOUISIANA MOTOR FUELS UNDERGROUND STORAGE TANK
A2: TRUST FUND REIMBURSEMENT APPLICATION
A3: PART 1
A4: SITE IDENTIFICATION
A5: FOR DEQ OFFICE USE ONLY | E5: DATE RECEIVED/DATE TO BE ENTERED ON EDMS
A6: TF No. | C6: Reviewer’s Due Date
A7: Reviewer Name
A8: APPLICATIONS WILL BE RETURNED/REJECTED FOR ANY OF THE FOLLOWING REASONS:
A9: 1. Proof of payment of the appropriate deductible is not provided.
A10: 2. The application addresses invoices for a prior period of time (Ex.: On 7/15/2011 an applicant submits an application
A11: for 7/1/2009 - 9/30/2009 invoices, when an application for 10/1/2010 - 12/31/2010 invoices was previously submitted
A12: on 1/15/2011). Note exception identified in B.1 below.
A13: 3. Application is submitted with incorrect and/or insufficient documentation.
A14: 4. Charges in the application exceed the cumulative Corrective Action Plan budget as approved by the Department.
A15: Applications shall be returned to the party receiving reimbursement for the reasons outlined in the MFTF
A16: Guidance Document in section I.C.12.d.
D17: =IF(OR(A20="",E20="",A22="",E22="",A24="",G24=""),"MISSING INFORMATION","") -> MISSING INFORMATION
A18: A. SITE/OWNER INFORMATION
A19: Site Name – Current Name | E19: Name of Responsible Party as Identified in Part 2 - Affidavit
A21: DEQ Issued Agency Interest No. | E21: DEQ Issued Owner Identification Number of Responsible Party
A23: Site Street Address – Physical Address, Not P.O. Box | E23: City | G23: Parish
A26: B. APPLICATION INFORMATION
A27: 1. This application includes ALL INVOICES to the owner (responsible party) dated from: [Check appropriate quarter(s)
A28: and indicate year(s)]: | J28: Quarters | K28: Fiscal Years
J29: FALSE
J31: FALSE
F32: =IF(OR(AND(E29="",E31="",E33="",E35=""),OR(AND(E29>0,J29=FALSE),AND(E29="",J29=TRUE),AND(E31>0,J31=FALSE),AND(E31="",J31=TRUE),AND(E33>0,J33=FALSE),AND(E33="",J33=TRUE),AND(E35>0,J35=FALSE),AND(E35="",J35=TRUE))),"MISSING INFORMATION",IF(OR(AND(AND(E29>0,E31>0),E31-E29<>0),AND(AND(E29>0,E33>0),E33-E29<>1),AND(AND(E31>0,E33>0),E33-E31<>1),AND(AND(E29>0,E35>0),E35-E29<>1),AND(AND(E31>0,E35>0),E35-E31<>1),AND(AND(E33>0,E35>0),E35-E33<>0)),"APP CROSSES FISCAL YEARS","")) -> MISSING INFORMATION | K32: =IF(F32="APP CROSSES FISCAL YEARS", TRUE,FALSE) -> FALSE
J33: FALSE
J35: FALSE
A37: Application requests must include all invoices dated during at least one calendar quarter: July through September, October through December, January through March, or
A38: April through June. A single application may include invoices which cover more than one calendar quarter, provided the application includes all invoice for the entire
A39: calendar quarter or quarters. However, all multiple calendar quarter invoices must be dated within a single state fiscal year, July 1 - June 30. Once an application is submitted
A40: to DEQ, invoices for the period submitted or any prior periods WILL NOT be accepted. Overlapping "Work Performed" dates in subsequent applications is not permitted.
A41: When the RAC for a site changes during a quarter, two separate applications addressing each RAC's work should be submitted.
A43: 2. Application Grand Total (Reflecting the eligible pre-approved costs shown on Part 5 of this application) : | H43: ='Part 5'!A3 -> 0
A44: 3. If applicable, indicate the following: | G44: =IF(J45<>'Part 3'!O17,"FIRST APPLICATION INIDICATION BOXES ON PART 1 AND PART 3 DO NOT MATCH","") ->  | J44: First App?
J45: FALSE
J46: FALSE
A47: (Any application submitted to the Trust Fund Management Section for work performed on or after July 1, 2017 must be submitted on this form.)

Sheet Part 1 Cont'd
A1: PART 1 (cont’d)
A3: C. RELEASE INFORMATION | C3: =IF(AND(A6="",A7="",A8="",A9="",A10="",A11=""),"MISSING INFORMATION","") -> MISSING INFORMATION
A5: Incident No(s). | C5: Date Released | G5: Substance(s) Released
A14: D. CORRECTIVE ACTION PLAN AND ADDENDUMS
A16: CAP Submittal Date | C16: DEQ Approval Date | G16: Approved Cost
A18: Addendum Submittal Date | C18: DEQ Approval Date | G18: Approved Cost
A26: I certify the following:
A27: • I have reviewed the time sheets and the personnel charges and verify that they are in line with the duties indicated
A28: in the UST Trust Fund Cost Control Guidance Document in effect at the time the work was performed;
A29: • the rates identified in this application are in accordance with the response action contractor equipment rate sheet;
A30: • the travel charges contained in this application are based on the mileage logs which indicate the person traveling,
A31: distance traveled and beginning/ending odometer readings;
A32: • I personally examined and am familiar with the information submitted with this application, and that I
A33: believe that the submitted information is true, accurate and complete.
A35: Preparer’s Certification (Original Signature Required) | D35: Date Signed
A36: =IF(OR(AND(A6="",A7="",A8="",A9="",A10="",A11=""),OR(B37="",F37="",B38="",B40="",D39="")),"MISSING INFORMATION","") -> MISSING INFORMATION
A37: Preparer’s Name | D37: Firm Name
A38: Telephone Number | D38: Mailing Address
A39: Telefax Number
A40: Email Address

Sheet Part 2
A1: PART 2
A2: OWNER, OPERATOR, OR RESPONSIBLE PARTY CERTIFICATION AFFIDAVIT
A4: I certify that I have researched and determined that I have no assistance from private sources, such as
A5: insurance or other means of financial assurance, to pay for investigation or remediation costs at this site. I also
A6: certify that all oustanding financial obligations integral to this site investigation/remediation have been met.
A8: I certify that this program task has been completed in accordance with La. R.S. 30:2194 et seq and
A9: La R.S. 30:2195 et seq. I have reviewed and certify that all data and documentation represented on invoices listed in
A10: section D are a true and correct representation of costs actually incurred as an integral part of site rehabilitation from
A11: motor fuel contamination and that reimbursement from the Motor Fuels Underground Storage Tank Trust Fund has
A12: not been received on any of the charges identified in this application.
A14: The site owner, operator, or responsible party warrants that he has not received any fee, commission,
A15: percentage, gift, or other consideration as a result of his employment of a person, company, corporation,
A16: individual, or firm for purposes of conducting the site assessment or rehabilitation.
A17: If charges within this application are being applied toward the deductible(s), the following statement must be certified by checking the box below:
A18: I also certify that I have paid the appropriate deductible integral to this site rehabilitation program and that proof of payment of the
A19: deductible [canceled checks and a list of corresponding invoices or Proof of Payment of Deductible Affidavit (Part 2A)] is attached.
A21: A. Site Owner, Operator, Responsible Party | I21: I. Site Name
A22: =IF('Part 1'!E20="","",'Part 1'!E20) ->  | I22: =IF('Part 1'!A20>0,'Part 1'!A20,"") -> 
A23: B. Mailing Address | I23: J. Site Address
I24: Physical Address: | J24: =IF('Part 1'!A24>0,'Part 1'!A24,"") -> 
A25: City | D25: State | G25: Zip | I25: City | L25: Parish
I26: =IF('Part 1'!E24>0,'Part 1'!E24,"") ->  | L26: =IF('Part 1'!G24>0,'Part 1'!G24,"") -> 
A27: C. Telephone/Telefax Numbers | I27: K. Agency Interest Number
A28: Telephone: | E28: Telefax: | I28: =IF('Part 1'!A22>0,'Part 1'!A22,"") -> 
A29: D. RAC/Owner Invoice Nos. | E29: =CONCATENATE('Part 6'!R11,'Part 6'!R12,'Part 6'!R13,'Part 6'!R14,'Part 6'!R15,'Part 6'!R16,'Part 6'!R17,'Part 6'!R18,'Part 6'!R19,'Part 6'!R20,'Part 6'!R21,'Part 6'!R22,'Part 6'!R23,'Part 6'!R24,'Part 6'!R25,'Part 6'!R26,'Part 6'!R27,'Part 6'!R28,'Part 6'!R29,'Part 6'!R30,) -> 
A30: E. Signature of person designated to sign for the owner, operator, or responsible party | I30: L. Federal Tax ID# if applicable (SSN not applicable)
A32: F. Check the appropriate box below. The contract for work addressed in this application was signed:
A33: Before August 1, 1995, the owner/operator/responsible party receives reimbursement. | N33: FALSE
A34: On or after August 1, 1995, and as required by Act 336 of the 1995 Regular Session, the RAC receives reimbursement | N34: FALSE
A35: G. Invoices to the owner (responsible party) addressed in this application are dated for the following quarters: [Check appropriate quarter(s) and indicate year(s)]
A36: July 1, -Sept 30, . | E36: Oct. 1, -Dec. 31, . | I36: Jan 1, - Mar 31, . | L36: Apr 1, - June 30, .
A37: H. Program Grand Task Total Addressed in Part 1, Part 3 and Part 5: | I37: ='Part 5'!A3 -> 0
A38: Before me, the undersigned notary public, came and appeared | L38: (please print or type the name
A39: shown in E above), who, being known to me, did execute the foregoing certification affidavit in my presence, who, being duly sworn,
A40: did state under oath or affirmation that he/she executed said document for the purpose expressed therein.
A42: WITNESS my hand and official seal, this | H42: day of, | J42: ,
I44: My commission expires
A45: Notary Public (Signature)
A48: Notary Public Name (Printed, typed, or stamped) | I48: Notary # or Bar Roll #( if a Louisiana notary)
A50: State of | I50: County or Parish of

Sheet Part2A Deductible
A1: PART 2.A
A2: PROOF OF PAYMENT OF DEDUCTIBLE AFFIDAVIT
A3: (To be completed by Response Action Contractor)
A5: I, (signature of principal or his designee for the response action contractor) certify
A6: that payments were made to | G6: (name of response action contractor) in the
A7: amounts specified below, which were integral to the investigation/remediation of the below specified site.
A9: A. Name of Site
A10: =IF('Part 1'!A20>0,'Part 1'!A20,"") -> 
A11: B. Site Address (Physical address, city)
A12: =IF('Part 1'!A24>0,'Part 1'!A24&" "&'Part 1'!E24,"") -> 
A13: C. Parish | F13: D. Site AI No. | J13: E. Incident #
A14: =IF('Part 1'!G24>0,'Part 1'!G24,"") ->  | F14: =IF('Part 1'!A22>0,'Part 1'!A22,"") -> 
A15: Invoice No | C15: Date of Payment Received | F15: Check No. | J15: Amount
A16: (As contained in application) | N16: =IF(J26>0,1,0) -> 0
A26: Total Deductible Amount Addressed in Affidavit | J26: =SUM(J17:K25) -> 0
A27: =IF(OR(C6="",J14="",AND(OR(A17="",C17="",F17="",J17=""),OR(A18="",C18="",F18="",J18=""),OR(A19="",C19="",F19="",J19=""),OR(A20="",C20="",F20="",J20=""),OR(A21="",C21="",F21="",J21=""),OR(A22="",C22="",F22="",J22=""),OR(A23="",C23="",F23="",J23=""),OR(A24="",C24="",F24="",J24=""),OR(A25="",C25="",F25="",J25=""))),"MISSING INFORMATION","") -> MISSING INFORMATION
A29: Before me, the undersigned notary public, came and appeared | J29: (please print or type the name
A30: shown in first Paragraph), who, being known to me, did execute the foregoing certification affidavit in my presence, and who, being
A31: duly sworn, did state under oath or affirmation that he/she executed said document for the purpose expressed therein.
A33: WITNESS my hand and official seal, this | F33: day of, | J33: ,
G35: My commission expires
A36: Notary Public (Signature)
A38: Notary Public Name (Printed, typed, or stamped) | G38: Notary # or Bar Roll #( if a Louisiana notary)
A40: State of | G40: County or Parish of

Sheet Part 3
A1: PART 3
A2: RESPONSE ACTION CONTRACTOR CERTIFICATION AFFIDAVIT
A4: I certify that this program task has been completed in accordance with La. R.S. 30:2194 et seq and La. R.S. 30:2195 et seq.
A5: I have reviewed and certify that all data and documentation submitted as part of this reimbursement application are a true and
A6: correct representation of costs actually incurred as an integral part of site rehabilitation from motor fuel contamination. I also
A7: certify that reimbursement from the Motor Fuels Underground Storage Tank Trust Fund has not been received on any of the
A8: charges identified in this application. I agree to reimburse the owner, operator, or the responsible party of the referenced site
A9: any monies due to him upon reimbursement from the Motor Fuels Underground Storage Tank Trust Fund.
A11: The person responsible for conducting site rehabilitation warrants that he/she has not received any fee, commission,
A12: percentage, gift, or other consideration as a result of his employment of a person, company, corporation, individual, firm, or
A13: other legal entity for purposes of conducting the site assessment or rehabilitation. Copies of mileage logs, detailed timesheets
A14: and RAC equipment rental rates sheets will be maintained for a period of four years following reimbursement for auditing
A15: purposes and will be readily available upon request by the DEQ or a DEQ contractor.
A16: If charges within this application are being applied toward the deductible(s), the following statement must be certified by checking the box below:
A17: I certify that I have received payment for the appropriate deductible integral to the assessment/remediation of this site. | O17: FALSE
A18: =IF(O17<>'Part 1'!J45,"FIRST APPLICATION INIDICATION BOXES ON PART 1 AND PART 3 DO NOT MATCH","") -> 
A19: A. Name principal/president of the company responsible for | G19: H. Company Name
A20: conducting the site assessment/rehabilitation
A22: B. Mailing Address | G22: I. Response Action Contractor Telephone/Telefax Numbers
G23: Telephone:
A24: City: | C24: State: | F24: Zip: | G24: Telefax:
A26: C. Facility Name | G26: J. Agency Interest Number
A27: =IF('Part 1'!A20>0,'Part 1'!A20,"") ->  | G27: =IF('Part 1'!A22>0,'Part 1'!A22,"") -> 
A28: D. Signature of the principal/president of the company or his designee responsible for conducting site assessment/rehabilitation | G28: K. Federal Tax ID# if applicable
A30: =IF(OR(A18<>"",A21="",G21="",A23="",I23="",A25="",A27="",G27="",C25="",F25="",AND(O32=FALSE,O33=FALSE),AND(O35=FALSE,P35=FALSE,Q35=FALSE,R35=FALSE),G36=0),"MISSING INFORMATION","") -> MISSING INFORMATION
A31: E. Check appropriate box below. The contract for work addressed in this application was signed:
A32: Before August 1, 1995, the owner/operator/responsible party receives reimbursement. | O32: FALSE
A33: On or after August 1, 1995, and as required by Act 336 of the 1995 Regular Session, the RAC receives reimbursement | O33: FALSE
A34: F. Invoices to the owner (responsible party) addressed in this application are dated for the following quarters: [Check appropriate quarter(s) and indicate year(s)]
A35: July 1, - Sept 30, . | D35: Oct. 1, - Dec. 31, . | G35: Jan 1, - Mar 31, . | L35: Apr 1, - June 30, . | O35: ='Part 1'!J29 -> FALSE | P35: ='Part 1'!J31 -> FALSE | Q35: ='Part 1'!J33 -> FALSE | R35: ='Part 1'!J35 -> FALSE
A36: G. Program Grand Task Total Addressed in Part 1, Part 2 and Part 5: | G36: ='Part 5'!A3 -> 0
A37: Before me, the undersigned notary public, came and appeared | L37: (please print or type the name
A38: shown in D above), who, being known to me, did execute the foregoing certification affidavit in my presence, who, being duly sworn,
A39: did state under oath or affirmation that he/she executed said document for the purpose expressed therein.
A41: WITNESS my hand and official seal, this | G41: day of, | L41: ,
G43: My commission expires
A44: Notary Public (Signature)
A47: Notary Public Name (Printed, Typed, or Stamped) | G47: Notary # or Bar Roll #( if a Louisiana notary)
A49: State of | G49: County or Parish of

Sheet Part 5
A1: PART 5 – EVENT SUMMARY SHEET
A2: APPLICATION GRAND TOTAL | C2: AIN: | D2: =IF('Part 1'!A22>0,'Part 1'!A22,"") ->  | I2: RAC Name: | M2: =IF('Part 3'!G21>0,'Part 3'!G21," ") -> 
A3: =SUM(C14,F14,K14,M14,Q14,) -> 0 | C3: 1. Emergency/Intital Work | F3: 2. Investigation Work (Field Work) | K3: 3. Interim Monitoring Work | M3: 4. Corrective Action Plan Work | Q3: 5. Report Preparation Work
C4: Charges | D4: DEQ Adjusted Charges | F4: Charges | H4: DEQ Adjusted Charges | K4: Charges | L4: DEQ Adjusted Charges | M4: Charges | O4: DEQ Adjusted Charges | Q4: Charges | S4: DEQ Adjusted Charges
A5: A. Personnel | C5: ='Personnel Sheet'!M11 -> 0 | F5: ='Personnel Sheet'!M12 -> 0 | K5: ='Personnel Sheet'!M13 -> 0 | M5: ='Personnel Sheet'!M14 -> 0 | Q5: ='Personnel Sheet'!M15 -> 0
A6: B. Soil/Water | C6: ='Soil-Water Disposal'!N17 -> 0 | F6: ='Soil-Water Disposal'!N18 -> 0 | K6: ='Soil-Water Disposal'!N19 -> 0 | M6: ='Soil-Water Disposal'!N20 -> 0
A7: Disposal
A8: C. Equipment | C8: ='Equipment Rent - Purchase'!O16 -> 0 | F8: ='Equipment Rent - Purchase'!O17 -> 0 | K8: ='Equipment Rent - Purchase'!O18 -> 0 | M8: ='Equipment Rent - Purchase'!O19 -> 0
A9: D. Travel | C9: =Travel!N3 -> 0 | F9: =Travel!N4 -> 0 | K9: =Travel!N5 -> 0 | M9: =Travel!N6 -> 0 | Q9: =Travel!N7 -> 0
A10: E. Transportation | C10: ='Transportation&Shipping'!J13 -> 0 | F10: ='Transportation&Shipping'!J14 -> 0 | K10: ='Transportation&Shipping'!J15 -> 0 | M10: ='Transportation&Shipping'!J16 -> 0
A11: F. Drilling & P & A | C11: ='Drilling-P&A'!O19 -> 0 | F11: ='Drilling-P&A'!O20 -> 0 | K11: ='Drilling-P&A'!O21 -> 0 | M11: ='Drilling-P&A'!O22 -> 0
A12: G. Analysis | C12: =Analysis!M14 -> 0 | F12: =Analysis!M15 -> 0 | K12: =Analysis!M16 -> 0 | M12: =Analysis!M17 -> 0
A13: H. Miscellaneous | C13: ='Miscellaneous 3'!K2 -> 0 | F13: ='Miscellaneous 3'!K3 -> 0 | K13: ='Miscellaneous 3'!K4 -> 0 | M13: ='Miscellaneous 3'!K5 -> 0 | Q13: ='Miscellaneous 4'!L7 -> 0
A14: Subtotals | C14: =SUM(C5:C13) -> 0 | F14: =SUM(F5:G13) -> 0 | K14: =SUM(K5:K13) -> 0 | M14: =SUM(M5:N13) -> 0 | Q14: =SUM(Q5:R13) -> 0
A15: =IF(OR(E16="",G16=""),"6. Dates work performed in application: MISSING INFORMATION","6. Dates work performed in application:") -> 6. Dates work performed in application: MISSING INFORMATION | E15: Beginning | G15: Ending | J15: 7. Application addresses invoices to the owner dated: (Select quarter by entering year)
J16: July 1 – September 30 | M16: =IF('Part 1'!E29>0,'Part 1'!E29,"") ->  | O16: January 1 – March 31 | S16: =IF('Part 1'!E33>0,'Part 1'!E33,"") -> 
A17: 8. DEQ Fiscal Year (July - June) | E17: =IF((IF(AND(M16>0,M17>0,S16>0,S17>0),(MAX(IF(M16="",0,M16+1),IF(M17="",,M17+1),S16,S17)),""))=0,"",(IF(AND(M16>0,M17>0,S16>0,S17>0),(MAX(IF(M16="",0,M16+1),IF(M17="",,M17+1),S16,S17)),""))) ->  | J17: October 1 – December 31 | M17: =IF('Part 1'!E31>0,'Part 1'!E31,"") ->  | O17: April 1 - June 30 | S17: =IF('Part 1'!E35>0,'Part 1'!E35,"") -> 
A18: The area below is for DEQ Trust Fund use only:
A19: Incident Information: | G19: Total Adjusted Charges $ | P19: DEQ Comments, Notations for Deductibles , Treatment Units, & Last Applications
A20: Incident No. | C20: Release Date | E20: Substance
G21: LDEQ Adjustments | J21: Trust Fund No. | L21: CAP Amount
G25: Deductible Amount ($)
A26: Reviewer Name | G26: LDEQ Reimbursement $ | M26: =IF('Part 1'!J24=TRUE,"X","") -> 
A27: Trust Fund Number
A28: ICAP Charges $ | E28: ICAP Balance $ | K28: (ROG Aprvd.) CAP Balance $ | P28: Payment To: | R28: RAC | T28: =IF('Part 2'!N34=TRUE,"X","") -> 
R29: Owner | T29: =IF('Part 2'!N33=TRUE,"X","") -> 

Sheet Personnel Sheet
A1: PART 5.A
A2: PERSONNEL SUPPLEMENTARY SHEET
A3: Check Event:
A5: 1. Rates shown on this form cannot be adjusted higher.
A6: 2. (Rate) X (No. Hrs.) = Total
A7: 3. Personnel charges for work activities included in unit pricing should not be addressed on this form
A8: 4. For work performed prior to 7/1/2017, use the appropriate Trust Fund Guidance Document Rates.
A9: PERSONNEL | B9: EMPLOYEE NAME | C9: RATE | D9: WORK PERFORMED DATE, LOCATION (field or office) and DESCRIPTION | E9: INVOICE NO. | F9: No. HRS | G9: TOTAL
A10: DUTIES | K10: Total | M10: Sheet Total
A11: **PRINCIPAL | C11: 130 | G11: =ROUND((C11*F11),2) -> 0 | I11: Emergency/Initial Work | J11: FALSE | K11: =IF(J11=TRUE,$F$32,"") ->  | L11: Emergency/Initial Work | M11: =SUM(K11,K48,K85,K122,K160) -> 0
A12: *SENIOR TOXICOLOGIST | C12: 104 | G12: =ROUND((C12*F12),2) -> 0 | I12: Investigation Work | J12: TRUE | K12: =IF(J12=TRUE,$F$32,"") -> 0 | L12: Investigation Work | M12: =SUM(K12,K49,K86,K123,K161) -> 0
A13: *SENIOR ENGINEER | C13: 104 | G13: 0 | I13: Monitoring/Interim Work | J13: FALSE | L13: Monitoring/Interim Work | M13: =SUM(K13,K50,K87,K124,K162) -> 0
A14: *SENIOR GEOLOGIST | C14: 104 | G14: 0 | I14: Corrective Action Plan Work | J14: FALSE | L14: Corrective Action Plan Work | M14: =SUM(K14,K51,K88,K125,K163) -> 0
A15: *PROJECT MANAGER | C15: 104 | G15: 0 | I15: Report Preparation | J15: FALSE | L15: Report Preparation | M15: =SUM(K15,K52,K89,K126,K164) -> 0
A16: *PROJECT MANAGER | C16: 104 | G16: 0
A17: *PROJECT MANAGER | C17: 104 | G17: 0 | I17: Emergency/Initial Work | J17: =IF(J11=TRUE,1,"") -> 
A18: *PROJECT COORDINATOR | C18: 75 | G18: 0 | I18: Investigation Work | J18: =IF(J12=TRUE,2,"") -> 2
A19: *PROJECT COORDINATOR | C19: 75 | G19: 0 | I19: Monitoring/Interim Work | J19: =IF(J13=TRUE,3,"") -> 
A20: GEOLOGIST | C20: 75 | G20: 0 | I20: Corrective Action Plan Work | J20: =IF(J14=TRUE,4,"") ->  | O20: GEOLOGIST
A21: ENGINEER | C21: 75 | G21: 0 | I21: Report Preparation | J21: =IF(J15=TRUE,5,"") ->  | O21: ENGINEER
A22: TOXICOLOGIST | C22: 75 | G22: 0 | O22: TOXICOLOGIST
A23: ENVIRONMENTAL SPECIALIST | C23: 68 | G23: 0
A24: ENVIRONMENTAL SPECIALIST | C24: 68 | G24: 0 | O24: LABORER
A25: ENVIRONMENTAL SPECIALIST | C25: 68 | G25: 0 | O25: CLERICAL
A26: FOREMAN | C26: 68 | G26: 0
A27: DRAFTSMAN | C27: 68 | G27: 0
A28: OPERATOR | C28: 47 | G28: 0
A29: OPERATOR | C29: 47 | G29: 0
A30: LABORER | C30: 36.5 | G30: 0
A31: LABORER | C31: 36.5 | G31: 0 | I31: =IF(J11=TRUE,$M$11,IF(J12=TRUE,$M$12,IF(J13=TRUE,$M$13,IF(J14=TRUE,$M$14,IF(J15=TRUE,$M$15,0))))) -> 0
A32: SUBTOTAL OF THIS PAGE | F32: =SUM(G11:G31) -> 0
A33: TOTAL PERSONNEL COSTS | F33: =SUM(I31) -> 0 | I33: =IF(F33>0,1,0) -> 0
A34: *There can be only one person in this designated job title performing these duties shown at any given period of time.
A35: **Only a limited number of hours should be shown for this position.
A36: Page of (Personnel Supplementary Sheet)
A38: PART 5.A
A39: PERSONNEL SUPPLEMENTARY SHEET
A40: Check Event:
A42: 1. Rates shown on this form cannot be adjusted higher.
A43: 2. (Rate) X (No. Hrs.) = Total
A44: 3. Personnel charges for work activities included in unit pricing should not be addressed on this form
A45: 4. For work performed prior to 7/1/2017, use the appropriate Trust Fund Guidance Document Rates.
A46: PERSONNEL | B46: EMPLOYEE NAME | C46: RATE | D46: WORK PERFORMED DATE, LOCATION (field or office) and DESCRIPTION | E46: INVOICE NO. | F46: No. HRS | G46: TOTAL
A47: DUTIES | K47: Total
A48: **PRINCIPAL | C48: 130 | G48: =ROUND((C48*F48),2) -> 0 | I48: Emergency/Initial Work | J48: FALSE | K48: =IF(J48=TRUE,$F$69,"") -> 
A49: *SENIOR TOXICOLOGIST | C49: 104 | G49: 0 | I49: Investigation Work | J49: FALSE | K49: =IF(J49=TRUE,$F$69,"") -> 
A50: *SENIOR ENGINEER | C50: 104 | G50: 0 | I50: Monitoring/Interim Work | J50: TRUE | K50: 0
A51: *SENIOR GEOLOGIST | C51: 104 | G51: 0 | I51: Corrective Action Plan Work | J51: FALSE
A52: *PROJECT MANAGER | C52: 104 | G52: 0 | I52: Report Preparation | J52: FALSE
A53: *PROJECT MANAGER | C53: 104 | G53: 0
A54: *PROJECT MANAGER | C54: 104 | G54: 0 | I54: Emergency/Initial Work | J54: =IF(J48=TRUE,1,"") -> 
A55: *PROJECT COORDINATOR | C55: 75 | G55: 0 | I55: Investigation Work | J55: =IF(J49=TRUE,2,"") -> 
A56: *PROJECT COORDINATOR | C56: 75 | G56: 0 | I56: Monitoring/Interim Work | J56: =IF(J50=TRUE,3,"") -> 3
A57: GEOLOGIST | C57: 75 | G57: 0 | I57: Corrective Action Plan Work | J57: =IF(J51=TRUE,4,"") -> 
A58: ENGINEER | C58: 75 | G58: 0 | I58: Report Preparation | J58: =IF(J52=TRUE,5,"") -> 
A59: TOXICOLOGIST | C59: 75 | G59: 0
A60: ENVIRONMENTAL SPECIALIST | C60: 68 | G60: 0
A61: ENVIRONMENTAL SPECIALIST | C61: 68 | G61: 0
A62: ENVIRONMENTAL SPECIALIST | C62: 68 | G62: 0
A63: FOREMAN | C63: 68 | G63: 0
A64: DRAFTSMAN | C64: 68 | G64: 0
A65: OPERATOR | C65: 47 | G65: 0
A66: OPERATOR | C66: 47 | G66: 0
A67: LABORER | C67: 36.5 | G67: 0 | I67: =IF(J48=TRUE,$M$11,IF(J49=TRUE,$M$12,IF(J50=TRUE,$M$13,IF(J51=TRUE,$M$14,IF(J52=TRUE,$M$15,0))))) -> 0
A68: LABORER | C68: 36.5 | G68: 0
A69: SUBTOTAL OF THIS PAGE | F69: =SUM(G48:G68) -> 0
A70: TOTAL PERSONNEL COSTS | F70: =SUM(I67) -> 0 | I70: =IF(F70>0,1,0) -> 0
A71: *There can be only one person in this designated job title performing these duties shown at any given period of time.
A72: **Only a limited number of hours should be shown for this position.
A73: Page_____of______ (Personnel Supplementary Sheet)
A75: PART 5.A
A76: PERSONNEL SUPPLEMENTARY SHEET
A77: Check Event:
A79: 1. Rates shown on this form cannot be adjusted higher.
A80: 2. (Rate) X (No. Hrs.) = Total
A81: 3. Personnel charges for work activities included in unit pricing should not be addressed on this form
A82: 4. For work performed prior to 7/1/2017, use the appropriate Trust Fund Guidance Document Rates.
A83: PERSONNEL | B83: EMPLOYEE NAME | C83: RATE | D83: WORK PERFORMED DATE, LOCATION (field or office) and DESCRIPTION | E83: INVOICE NO. | F83: No. HRS | G83: TOTAL
A84: DUTIES | K84: Total
A85: **PRINCIPAL | C85: 130 | G85: =ROUND((C85*F85),2) -> 0 | I85: Emergency/Initial Work | J85: FALSE | K85: =IF(J85=TRUE,$F$106,"") -> 
A86: *SENIOR TOXICOLOGIST | C86: 104 | G86: 0 | I86: Investigation Work | J86: FALSE | K86: =IF(J86=TRUE,$F$106,"") -> 
A87: *SENIOR ENGINEER | C87: 104 | G87: 0 | I87: Monitoring/Interim Work | J87: FALSE
A88: *SENIOR GEOLOGIST | C88: 104 | G88: 0 | I88: Corrective Action Plan Work | J88: FALSE
A89: *PROJECT MANAGER | C89: 104 | G89: 0 | I89: Report Preparation | J89: FALSE
A90: *PROJECT MANAGER | C90: 104 | G90: 0
A91: *PROJECT MANAGER | C91: 104 | G91: 0 | I91: Emergency/Initial Work | J91: =IF(J85=TRUE,1,"") -> 
A92: *PROJECT COORDINATOR | C92: 75 | G92: 0 | I92: Investigation Work | J92: =IF(J86=TRUE,2,"") -> 
A93: *PROJECT COORDINATOR | C93: 75 | G93: 0 | I93: Monitoring/Interim Work | J93: =IF(J87=TRUE,3,"") -> 
A94: GEOLOGIST | C94: 75 | G94: 0 | I94: Corrective Action Plan Work | J94: =IF(J88=TRUE,4,"") -> 
A95: ENGINEER | C95: 75 | G95: 0 | I95: Report Preparation | J95: =IF(J89=TRUE,5,"") -> 
A96: TOXICOLOGIST | C96: 75 | G96: 0
A97: ENVIRONMENTAL SPECIALIST | C97: 68 | G97: 0
A98: ENVIRONMENTAL SPECIALIST | C98: 68 | G98: 0
A99: ENVIRONMENTAL SPECIALIST | C99: 68 | G99: 0
A100: FOREMAN | C100: 68 | G100: 0
A101: DRAFTSMAN | C101: 68 | G101: 0
A102: OPERATOR | C102: 47 | G102: 0
A103: OPERATOR | C103: 47 | G103: 0
A104: LABORER | C104: 36.5 | G104: 0
A105: LABORER | C105: 36.5 | G105: 0 | I105: =IF(J85=TRUE,$M$11,IF(J86=TRUE,$M$12,IF(J87=TRUE,$M$13,IF(J88=TRUE,$M$14,IF(J89=TRUE,$M$15,0))))) -> 0
A106: SUBTOTAL OF THIS PAGE | F106: =SUM(G85:G105) -> 0
A107: TOTAL PERSONNEL COSTS | F107: =SUM(I105) -> 0 | I107: =IF(F107>0,1,0) -> 0
A108: *There can be only one person in this designated job title performing these duties shown at any given period of time.
A109: **Only a limited number of hours should be shown for this position.
A110: Page of (Personnel Supplementary Sheet)
A112: PART 5.A
A113: PERSONNEL SUPPLEMENTARY SHEET
A114: Check Event:
A116: 1. Rates shown on this form cannot be adjusted higher.
A117: 2. (Rate) X (No. Hrs.) = Total
A118: 3. Personnel charges for work activities included in unit pricing should not be addressed on this form
A119: 4. For work performed prior to 7/1/2017, use the appropriate Trust Fund Guidance Document Rates.
A120: PERSONNEL | B120: EMPLOYEE NAME | C120: RATE | D120: WORK PERFORMED DATE, LOCATION (field or office) and DESCRIPTION | E120: INVOICE NO. | F120: No. HRS | G120: TOTAL
A121: DUTIES | K121: Total
A122: **PRINCIPAL | C122: 130 | G122: =ROUND((C122*F122),2) -> 0 | I122: Emergency/Initial Work | J122: FALSE | K122: =IF(J122=TRUE,$F$143,"") -> 
A123: *SENIOR TOXICOLOGIST | C123: 104 | G123: 0 | I123: Investigation Work | J123: FALSE | K123: =IF(J123=TRUE,$F$143,"") -> 
A124: *SENIOR ENGINEER | C124: 104 | G124: 0 | I124: Monitoring/Interim Work | J124: FALSE
A125: *SENIOR GEOLOGIST | C125: 104 | G125: 0 | I125: Corrective Action Plan Work | J125: FALSE
A126: *PROJECT MANAGER | C126: 104 | G126: 0 | I126: Report Preparation | J126: FALSE
A127: *PROJECT MANAGER | C127: 104 | G127: 0
A128: *PROJECT MANAGER | C128: 104 | G128: 0 | I128: Emergency/Initial Work | J128: =IF(J122=TRUE,1,"") -> 
A129: *PROJECT COORDINATOR | C129: 75 | G129: 0 | I129: Investigation Work | J129: =IF(J123=TRUE,2,"") -> 
A130: *PROJECT COORDINATOR | C130: 75 | G130: 0 | I130: Monitoring/Interim Work | J130: =IF(J124=TRUE,3,"") -> 
A131: GEOLOGIST | C131: 75 | G131: 0 | I131: Corrective Action Plan Work | J131: =IF(J125=TRUE,4,"") -> 
A132: ENGINEER | C132: 75 | G132: 0 | I132: Report Preparation | J132: =IF(J126=TRUE,5,"") -> 
A133: TOXICOLOGIST | C133: 75 | G133: 0
A134: ENVIRONMENTAL SPECIALIST | C134: 68 | G134: 0
A135: ENVIRONMENTAL SPECIALIST | C135: 68 | G135: 0
A136: ENVIRONMENTAL SPECIALIST | C136: 68 | G136: 0
A137: FOREMAN | C137: 68 | G137: 0
A138: DRAFTSMAN | C138: 68 | G138: 0
A139: OPERATOR | C139: 47 | G139: 0
A140: OPERATOR | C140: 47 | G140: 0
A141: LABORER | C141: 36.5 | G141: 0
A142: LABORER | C142: 36.5 | G142: 0 | I142: =IF(J122=TRUE,$M$11,IF(J123=TRUE,$M$12,IF(J124=TRUE,$M$13,IF(J125=TRUE,$M$14,IF(J126=TRUE,$M$15,0))))) -> 0
A143: SUBTOTAL OF THIS PAGE | F143: =SUM(G122:G142) -> 0
A144: TOTAL PERSONNEL COSTS | F144: =SUM(I142) -> 0 | I144: =IF(F144>0,1,0) -> 0
A145: *There can be only one person in this designated job title performing these duties shown at any given period of time.
A146: **Only a limited number of hours should be shown for this position.
A147: Page of (Personnel Supplementary Sheet)
A149: PART 5.A
A150: PERSONNEL SUPPLEMENTARY SHEET
A151: Check Event:
A153: 1. Rates shown on this form cannot be adjusted higher.
A154: 2. (Rate) X (No. Hrs.) = Total
A155: 3. Personnel charges for work activities included in unit pricing should not be addressed on this form
A156: 4. For work performed prior to 7/1/2017, use the appropriate Trust Fund Guidance Document Rates.
A157: PERSONNEL | B157: EMPLOYEE NAME | C157: RATE | D157: WORK PERFORMED DATE, LOCATION (field or office) and DESCRIPTION | E157: INVOICE NO. | F157: No. HRS | G157: TOTAL
A158: DUTIES
A159: **PRINCIPAL | C159: 130 | G159: =ROUND((C159*F159),2) -> 0 | K159: Total
A160: *SENIOR TOXICOLOGIST | C160: 104 | G160: 0 | I160: Emergency/Initial Work | J160: FALSE | K160: =IF(J160=TRUE,$F$180,"") -> 
A161: *SENIOR ENGINEER | C161: 104 | G161: 0 | I161: Investigation Work | J161: FALSE | K161: =IF(J161=TRUE,$F$180,"") -> 
A162: *SENIOR GEOLOGIST | C162: 104 | G162: 0 | I162: Monitoring/Interim Work | J162: FALSE
A163: *PROJECT MANAGER | C163: 104 | G163: 0 | I163: Corrective Action Plan Work | J163: FALSE
A164: *PROJECT MANAGER | C164: 104 | G164: 0 | I164: Report Preparation | J164: FALSE
A165: *PROJECT MANAGER | C165: 104 | G165: 0
A166: *PROJECT COORDINATOR | C166: 75 | G166: 0 | I166: Emergency/Initial Work | J166: =IF(J160=TRUE,1,"") -> 
A167: *PROJECT COORDINATOR | C167: 75 | G167: 0 | I167: Investigation Work | J167: =IF(J161=TRUE,2,"") -> 
A168: GEOLOGIST | C168: 75 | G168: 0 | I168: Monitoring/Interim Work | J168: =IF(J162=TRUE,3,"") -> 
A169: ENGINEER | C169: 75 | G169: 0 | I169: Corrective Action Plan Work | J169: =IF(J163=TRUE,4,"") -> 
A170: TOXICOLOGIST | C170: 75 | G170: 0 | I170: Report Preparation | J170: =IF(J164=TRUE,5,"") -> 
A171: ENVIRONMENTAL SPECIALIST | C171: 68 | G171: 0
A172: ENVIRONMENTAL SPECIALIST | C172: 68 | G172: 0
A173: ENVIRONMENTAL SPECIALIST | C173: 68 | G173: 0
A174: FOREMAN | C174: 68 | G174: 0
A175: DRAFTSMAN | C175: 68 | G175: 0
A176: OPERATOR | C176: 47 | G176: 0
A177: OPERATOR | C177: 47 | G177: 0
A178: LABORER | C178: 36.5 | G178: 0
A179: LABORER | C179: 36.5 | G179: 0 | I179: =IF(J160=TRUE,$M$11,IF(J161=TRUE,$M$12,IF(J162=TRUE,$M$13,IF(J163=TRUE,$M$14,IF(J164=TRUE,$M$15,0))))) -> 0
A180: SUBTOTAL OF THIS PAGE | F180: =SUM(G159:G179) -> 0
A181: TOTAL PERSONNEL COSTS | F181: =SUM(I180) -> 0 | I181: =IF(F181>0,1,0) -> 0
A182: *There can be only one person in this designated job title performing these duties shown at any given period of time.
A183: **Only a limited number of hours should be shown for this position.
A184: Page of (Personnel Supplementary Sheet)

Sheet Soil-Water Disposal
A1: PART 5.B
A2: SOIL/WATER DISPOSAL SUPPLEMENTARY SHEET
A3: Check Event:
A4: 1. The unit rate for purge water disposal related to Groundwater Sampling events is $4.20/gal.
A5: 2. All other water disposal is under the unit rate of $0.57 /gal.
A6: 3. Do not address the RAC markups on this page. Indicate markups on the Miscellaneous Supplementary Sheet.
A7: 4. Pre-approval is required from the Team Leader or ROG for all work.
A8: 5. For disposal invoices: addresses, copies of manifests, bills of lading, etc. must be provided.
A9: 6. (Tons [Soil]) X (Cost Per Unit) = Total
A10: 7. (Gallons [Water]) X (Cost Per Unit) = Total
A11: 8. Soil drum disposal (not associated with excavation): $520.00 minimum, $208.00 for the first drum, $156.00 each additional
A12: drum.
A13: 9. For excavation/transportation/disposal unit rates, please refer to the MS Excel spreadsheet located at | J13: Soil Cuttings | L13: TONS | M13: DRUMS
A14: http://www.deq.louisiana.gov/trustfund | J14: Water | L14: GALLONS
A15: 10. For non-impacted soil and onsite, treated soil cost reductions, enter the tonnage value in the bottom two rows. | J15: Excavation | L15: TONS
A16: TYPE OF DISPOSAL (Soil or Water) | B16: DISPOSAL DATE | C16: RAC INVOICE NO. | D16: OUTSIDE INVOICE NO. | E16: TONS, DRUMS OR GALLONS | F16: QUANTITY | G16: COST PER UNIT | H16: TOTAL | L16: Total | N16: Sheet total
H17: =ROUND(IF(AND(A17="Excavation",E17="TONS"),VLOOKUP(F17,Data!$D$18:$F$5017,3),IF(AND(A17="Soil Cuttings",E17="DRUMS"),IF(F17<=3,520,(F17-1)*156+208),F17*G17)),2) -> 0 | J17: Emergency/Initial Work | K17: FALSE | L17: =IF(K17=TRUE,$H$41,"") ->  | M17: Emergency/Initial Work | N17: =SUM(L17,L60,L103,L146) -> 0
H18: =ROUND(IF(AND(A18="Excavation",E18="TONS"),VLOOKUP(F18,Data!$D$18:$F$5017,3),IF(AND(A18="Soil Cuttings",E18="DRUMS"),IF(F18<=3,520,(F18-1)*156+208),F18*G18)),2) -> 0 | J18: Investigation Work | K18: FALSE | L18: =IF(K18=TRUE,$H$41,"") ->  | M18: Investigation Work | N18: =SUM(L18,L61,L104,L147) -> 0
H19: =ROUND(IF(AND(A19="Excavation",E19="TONS"),VLOOKUP(F19,Data!$D$18:$F$5017,3),IF(AND(A19="Soil Cuttings",E19="DRUMS"),IF(F19<=3,520,(F19-1)*156+208),F19*G19)),2) -> 0 | J19: Monitoring/Interim Work | K19: FALSE | M19: Monitoring/Interim Work | N19: =SUM(L19,L62,L105,L148) -> 0
H20: =ROUND(IF(AND(A20="Excavation",E20="TONS"),VLOOKUP(F20,Data!$D$18:$F$5017,3),IF(AND(A20="Soil Cuttings",E20="DRUMS"),IF(F20<=3,520,(F20-1)*156+208),F20*G20)),2) -> 0 | J20: Corrective Action Plan Work | K20: FALSE | M20: Corrective Action Plan Work | N20: =SUM(L20,L63,L106,L149) -> 0
H21: =ROUND(IF(AND(A21="Excavation",E21="TONS"),VLOOKUP(F21,Data!$D$18:$F$5017,3),IF(AND(A21="Soil Cuttings",E21="DRUMS"),IF(F21<=3,520,(F21-1)*156+208),F21*G21)),2) -> 0
H22: =ROUND(IF(AND(A22="Excavation",E22="TONS"),VLOOKUP(F22,Data!$D$18:$F$5017,3),IF(AND(A22="Soil Cuttings",E22="DRUMS"),IF(F22<=3,520,(F22-1)*156+208),F22*G22)),2) -> 0 | J22: Emergency/Initial Work | K22: =IF(K17=TRUE,1,"") -> 
H23: =ROUND(IF(AND(A23="Excavation",E23="TONS"),VLOOKUP(F23,Data!$D$18:$F$5017,3),IF(AND(A23="Soil Cuttings",E23="DRUMS"),IF(F23<=3,520,(F23-1)*156+208),F23*G23)),2) -> 0 | J23: Investigation Work | K23: =IF(K18=TRUE,2,"") -> 
H24: =ROUND(IF(AND(A24="Excavation",E24="TONS"),VLOOKUP(F24,Data!$D$18:$F$5017,3),IF(AND(A24="Soil Cuttings",E24="DRUMS"),IF(F24<=3,520,(F24-1)*156+208),F24*G24)),2) -> 0 | J24: Monitoring/Interim Work | K24: =IF(K19=TRUE,3,"") -> 
H25: =ROUND(IF(AND(A25="Excavation",E25="TONS"),VLOOKUP(F25,Data!$D$18:$F$5017,3),IF(AND(A25="Soil Cuttings",E25="DRUMS"),IF(F25<=3,520,(F25-1)*156+208),F25*G25)),2) -> 0 | J25: Corrective Action Plan Work | K25: =IF(K20=TRUE,4,"") -> 
H26: =ROUND(IF(AND(A26="Excavation",E26="TONS"),VLOOKUP(F26,Data!$D$18:$F$5017,3),IF(AND(A26="Soil Cuttings",E26="DRUMS"),IF(F26<=3,520,(F26-1)*156+208),F26*G26)),2) -> 0
H27: =ROUND(IF(AND(A27="Excavation",E27="TONS"),VLOOKUP(F27,Data!$D$18:$F$5017,3),IF(AND(A27="Soil Cuttings",E27="DRUMS"),IF(F27<=3,520,(F27-1)*156+208),F27*G27)),2) -> 0
H28: =ROUND(IF(AND(A28="Excavation",E28="TONS"),VLOOKUP(F28,Data!$D$18:$F$5017,3),IF(AND(A28="Soil Cuttings",E28="DRUMS"),IF(F28<=3,520,(F28-1)*156+208),F28*G28)),2) -> 0
H29: =ROUND(IF(AND(A29="Excavation",E29="TONS"),VLOOKUP(F29,Data!$D$18:$F$5017,3),IF(AND(A29="Soil Cuttings",E29="DRUMS"),IF(F29<=3,520,(F29-1)*156+208),F29*G29)),2) -> 0
H30: =ROUND(IF(AND(A30="Excavation",E30="TONS"),VLOOKUP(F30,Data!$D$18:$F$5017,3),IF(AND(A30="Soil Cuttings",E30="DRUMS"),IF(F30<=3,520,(F30-1)*156+208),F30*G30)),2) -> 0
H31: =ROUND(IF(AND(A31="Excavation",E31="TONS"),VLOOKUP(F31,Data!$D$18:$F$5017,3),IF(AND(A31="Soil Cuttings",E31="DRUMS"),IF(F31<=3,520,(F31-1)*156+208),F31*G31)),2) -> 0
H32: =ROUND(IF(AND(A32="Excavation",E32="TONS"),VLOOKUP(F32,Data!$D$18:$F$5017,3),IF(AND(A32="Soil Cuttings",E32="DRUMS"),IF(F32<=3,520,(F32-1)*156+208),F32*G32)),2) -> 0
H33: =ROUND(IF(AND(A33="Excavation",E33="TONS"),VLOOKUP(F33,Data!$D$18:$F$5017,3),IF(AND(A33="Soil Cuttings",E33="DRUMS"),IF(F33<=3,520,(F33-1)*156+208),F33*G33)),2) -> 0
H34: =ROUND(IF(AND(A34="Excavation",E34="TONS"),VLOOKUP(F34,Data!$D$18:$F$5017,3),IF(AND(A34="Soil Cuttings",E34="DRUMS"),IF(F34<=3,520,(F34-1)*156+208),F34*G34)),2) -> 0
H35: =ROUND(IF(AND(A35="Excavation",E35="TONS"),VLOOKUP(F35,Data!$D$18:$F$5017,3),IF(AND(A35="Soil Cuttings",E35="DRUMS"),IF(F35<=3,520,(F35-1)*156+208),F35*G35)),2) -> 0
H36: =ROUND(IF(AND(A36="Excavation",E36="TONS"),VLOOKUP(F36,Data!$D$18:$F$5017,3),IF(AND(A36="Soil Cuttings",E36="DRUMS"),IF(F36<=3,520,(F36-1)*156+208),F36*G36)),2) -> 0
H37: =ROUND(IF(AND(A37="Excavation",E37="TONS"),VLOOKUP(F37,Data!$D$18:$F$5017,3),IF(AND(A37="Soil Cuttings",E37="DRUMS"),IF(F37<=3,520,(F37-1)*156+208),F37*G37)),2) -> 0
H38: =ROUND(IF(AND(A38="Excavation",E38="TONS"),VLOOKUP(F38,Data!$D$18:$F$5017,3),IF(AND(A38="Soil Cuttings",E38="DRUMS"),IF(F38<=3,520,(F38-1)*156+208),F38*G38)),2) -> 0
A39: Non-Impacted Soil | E39: TONS | G39: -45 | H39: =ROUND(IF(AND(A39="Excavation",E39="TONS"),VLOOKUP(F39,Data!$D$18:$F$5017,3),IF(AND(A39="Soil Cuttings",E39="DRUMS"),IF(F39<=3,500,(F39-1)*150+200),F39*G39)),2) -> 0
A40: Treated Soil | E40: TONS | G40: -30 | H40: =ROUND(IF(AND(A40="Excavation",E40="TONS"),VLOOKUP(F40,Data!$D$18:$F$5017,3),IF(AND(A40="Soil Cuttings",E40="DRUMS"),IF(F40<=3,500,(F40-1)*150+200),F40*G40)),2) -> 0 | J40: =IF(K17=TRUE,$N$17,IF(K18=TRUE,$N$18,IF(K19=TRUE,$N$19,IF(K20=TRUE,$N$20,0)))) -> 0
A41: SUBTOTAL OF THIS PAGE | H41: =SUM(H17:H40) -> 0
A42: TOTAL DISPOSAL COSTS | H42: =SUM(J40) -> 0 | J42: =IF(H42>0,1,0) -> 0
A43: Page of (Soil/Water Disposal Supplementary Sheet)
A44: PART 5.B
A45: SOIL/WATER DISPOSAL SUPPLEMENTARY SHEET
A46: Check Event:
A47: 1. The unit rate for purge water disposal related to Groundwater Sampling events is $4.20/gal.
A48: 2. All other water disposal is under the unit rate of $0.57 /gal.
A49: 3. Do not address the RAC markups on this page. Indicate markups on the Miscellaneous Supplementary Sheet.
A50: 4. Pre-approval is required from the Team Leader or ROG for all work.
A51: 5. For disposal invoices: addresses, copies of manifests, bills of lading, etc. must be provided.
A52: 6. (Tons [Soil]) X (Cost Per Unit) = Total
A53: 7. (Gallons [Water]) X (Cost Per Unit) = Total
A54: 8. Soil drum disposal (not associated with excavation): $520.00 minimum, $208.00 for the first drum, $156.00 each additional
A55: drum.
A56: 9. For excavation/transportation/disposal unit rates, please refer to the MS Excel spreadsheet located at
A57: http://www.deq.louisiana.gov/trustfund
A58: 10. For non-impacted soil and onsite, treated soil cost reductions, enter the tonnage value in the bottom two rows.
A59: TYPE OF DISPOSAL (Soil or Water) | B59: DISPOSAL DATE | C59: RAC INVOICE NO. | D59: OUTSIDE INVOICE NO. | E59: TONS, DRUMS OR GALLONS | F59: QUANTITY | G59: COST PER UNIT | H59: TOTAL | L59: Total
H60: =ROUND(IF(AND(A60="Excavation",E60="TONS"),VLOOKUP(F60,Data!$D$18:$F$5017,3),IF(AND(A60="Soil Cuttings",E60="DRUMS"),IF(F60<=3,520,(F60-1)*156+208),F60*G60)),2) -> 0 | J60: Emergency/Initial Work | K60: FALSE | L60: =IF(K60=TRUE,$H$84,"") -> 
H61: =ROUND(IF(AND(A61="Excavation",E61="TONS"),VLOOKUP(F61,Data!$D$18:$F$5017,3),IF(AND(A61="Soil Cuttings",E61="DRUMS"),IF(F61<=3,520,(F61-1)*156+208),F61*G61)),2) -> 0 | J61: Investigation Work | K61: FALSE | L61: =IF(K61=TRUE,$H$84,"") -> 
H62: =ROUND(IF(AND(A62="Excavation",E62="TONS"),VLOOKUP(F62,Data!$D$18:$F$5017,3),IF(AND(A62="Soil Cuttings",E62="DRUMS"),IF(F62<=3,520,(F62-1)*156+208),F62*G62)),2) -> 0 | J62: Monitoring/Interim Work | K62: FALSE
H63: =ROUND(IF(AND(A63="Excavation",E63="TONS"),VLOOKUP(F63,Data!$D$18:$F$5017,3),IF(AND(A63="Soil Cuttings",E63="DRUMS"),IF(F63<=3,520,(F63-1)*156+208),F63*G63)),2) -> 0 | J63: Corrective Action Plan Work | K63: FALSE | L63: =IF(K63=TRUE,$H$84,"") -> 
H64: =ROUND(IF(AND(A64="Excavation",E64="TONS"),VLOOKUP(F64,Data!$D$18:$F$5017,3),IF(AND(A64="Soil Cuttings",E64="DRUMS"),IF(F64<=3,520,(F64-1)*156+208),F64*G64)),2) -> 0
H65: =ROUND(IF(AND(A65="Excavation",E65="TONS"),VLOOKUP(F65,Data!$D$18:$F$5017,3),IF(AND(A65="Soil Cuttings",E65="DRUMS"),IF(F65<=3,520,(F65-1)*156+208),F65*G65)),2) -> 0 | J65: Emergency/Initial Work | K65: =IF(K60=TRUE,1,"") -> 
H66: =ROUND(IF(AND(A66="Excavation",E66="TONS"),VLOOKUP(F66,Data!$D$18:$F$5017,3),IF(AND(A66="Soil Cuttings",E66="DRUMS"),IF(F66<=3,520,(F66-1)*156+208),F66*G66)),2) -> 0 | J66: Investigation Work | K66: =IF(K61=TRUE,2,"") -> 
H67: =ROUND(IF(AND(A67="Excavation",E67="TONS"),VLOOKUP(F67,Data!$D$18:$F$5017,3),IF(AND(A67="Soil Cuttings",E67="DRUMS"),IF(F67<=3,520,(F67-1)*156+208),F67*G67)),2) -> 0 | J67: Monitoring/Interim Work | K67: =IF(K62=TRUE,3,"") -> 
H68: =ROUND(IF(AND(A68="Excavation",E68="TONS"),VLOOKUP(F68,Data!$D$18:$F$5017,3),IF(AND(A68="Soil Cuttings",E68="DRUMS"),IF(F68<=3,520,(F68-1)*156+208),F68*G68)),2) -> 0 | J68: Corrective Action Plan Work | K68: =IF(K63=TRUE,4,"") -> 
H69: =ROUND(IF(AND(A69="Excavation",E69="TONS"),VLOOKUP(F69,Data!$D$18:$F$5017,3),IF(AND(A69="Soil Cuttings",E69="DRUMS"),IF(F69<=3,520,(F69-1)*156+208),F69*G69)),2) -> 0
H70: =ROUND(IF(AND(A70="Excavation",E70="TONS"),VLOOKUP(F70,Data!$D$18:$F$5017,3),IF(AND(A70="Soil Cuttings",E70="DRUMS"),IF(F70<=3,520,(F70-1)*156+208),F70*G70)),2) -> 0
H71: =ROUND(IF(AND(A71="Excavation",E71="TONS"),VLOOKUP(F71,Data!$D$18:$F$5017,3),IF(AND(A71="Soil Cuttings",E71="DRUMS"),IF(F71<=3,520,(F71-1)*156+208),F71*G71)),2) -> 0
H72: =ROUND(IF(AND(A72="Excavation",E72="TONS"),VLOOKUP(F72,Data!$D$18:$F$5017,3),IF(AND(A72="Soil Cuttings",E72="DRUMS"),IF(F72<=3,520,(F72-1)*156+208),F72*G72)),2) -> 0
H73: =ROUND(IF(AND(A73="Excavation",E73="TONS"),VLOOKUP(F73,Data!$D$18:$F$5017,3),IF(AND(A73="Soil Cuttings",E73="DRUMS"),IF(F73<=3,520,(F73-1)*156+208),F73*G73)),2) -> 0
H74: =ROUND(IF(AND(A74="Excavation",E74="TONS"),VLOOKUP(F74,Data!$D$18:$F$5017,3),IF(AND(A74="Soil Cuttings",E74="DRUMS"),IF(F74<=3,520,(F74-1)*156+208),F74*G74)),2) -> 0
H75: =ROUND(IF(AND(A75="Excavation",E75="TONS"),VLOOKUP(F75,Data!$D$18:$F$5017,3),IF(AND(A75="Soil Cuttings",E75="DRUMS"),IF(F75<=3,520,(F75-1)*156+208),F75*G75)),2) -> 0
H76: =ROUND(IF(AND(A76="Excavation",E76="TONS"),VLOOKUP(F76,Data!$D$18:$F$5017,3),IF(AND(A76="Soil Cuttings",E76="DRUMS"),IF(F76<=3,520,(F76-1)*156+208),F76*G76)),2) -> 0
H77: =ROUND(IF(AND(A77="Excavation",E77="TONS"),VLOOKUP(F77,Data!$D$18:$F$5017,3),IF(AND(A77="Soil Cuttings",E77="DRUMS"),IF(F77<=3,520,(F77-1)*156+208),F77*G77)),2) -> 0
H78: =ROUND(IF(AND(A78="Excavation",E78="TONS"),VLOOKUP(F78,Data!$D$18:$F$5017,3),IF(AND(A78="Soil Cuttings",E78="DRUMS"),IF(F78<=3,520,(F78-1)*156+208),F78*G78)),2) -> 0
H79: =ROUND(IF(AND(A79="Excavation",E79="TONS"),VLOOKUP(F79,Data!$D$18:$F$5017,3),IF(AND(A79="Soil Cuttings",E79="DRUMS"),IF(F79<=3,520,(F79-1)*156+208),F79*G79)),2) -> 0
H80: =ROUND(IF(AND(A80="Excavation",E80="TONS"),VLOOKUP(F80,Data!$D$18:$F$5017,3),IF(AND(A80="Soil Cuttings",E80="DRUMS"),IF(F80<=3,520,(F80-1)*156+208),F80*G80)),2) -> 0
H81: =ROUND(IF(AND(A81="Excavation",E81="TONS"),VLOOKUP(F81,Data!$D$18:$F$5017,3),IF(AND(A81="Soil Cuttings",E81="DRUMS"),IF(F81<=3,520,(F81-1)*156+208),F81*G81)),2) -> 0
A82: Non-Impacted Soil | E82: TONS | G82: -45 | H82: =ROUND(IF(AND(A82="Excavation",E82="TONS"),VLOOKUP(F82,Data!$D$18:$F$5017,3),IF(AND(A82="Soil Cuttings",E82="DRUMS"),IF(F82<=3,500,(F82-1)*150+200),F82*G82)),2) -> 0
A83: Treated Soil | E83: TONS | G83: -30 | H83: =ROUND(IF(AND(A83="Excavation",E83="TONS"),VLOOKUP(F83,Data!$D$18:$F$5017,3),IF(AND(A83="Soil Cuttings",E83="DRUMS"),IF(F83<=3,500,(F83-1)*150+200),F83*G83)),2) -> 0 | J83: =IF(K60=TRUE,$N$17,IF(K61=TRUE,$N$18,IF(K62=TRUE,$N$19,IF(K63=TRUE,$N$20,0)))) -> 0
A84: SUBTOTAL OF THIS PAGE | H84: =SUM(H60:H83) -> 0
A85: TOTAL DISPOSAL COSTS | H85: =SUM(J83) -> 0 | J85: =IF(H85>0,1,0) -> 0
A86: Page of (Soil/Water Disposal Supplementary Sheet)
A87: PART 5.B
A88: SOIL/WATER DISPOSAL SUPPLEMENTARY SHEET
A89: Check Event:
A90: 1. The unit rate for purge water disposal related to Groundwater Sampling events is $4.20/gal.
A91: 2. All other water disposal is under the unit rate of $0.57 /gal.
A92: 3. Do not address the RAC markups on this page. Indicate markups on the Miscellaneous Supplementary Sheet.
A93: 4. Pre-approval is required from the Team Leader or ROG for all work.
A94: 5. For disposal invoices: addresses, copies of manifests, bills of lading, etc. must be provided.
A95: 6. (Tons [Soil]) X (Cost Per Unit) = Total
A96: 7. (Gallons [Water]) X (Cost Per Unit) = Total
A97: 8. Soil drum disposal (not associated with excavation): $520.00 minimum, $208.00 for the first drum, $156.00 each additional
A98: drum.
A99: 9. For excavation/transportation/disposal unit rates, please refer to the MS Excel spreadsheet located at
A100: http://www.deq.louisiana.gov/trustfund
A101: 10. For non-impacted soil and onsite, treated soil cost reductions, enter the tonnage value in the bottom two rows.
A102: TYPE OF DISPOSAL (Soil or Water) | B102: DISPOSAL DATE | C102: RAC INVOICE NO. | D102: OUTSIDE INVOICE NO. | E102: TONS, DRUMS OR GALLONS | F102: QUANTITY | G102: COST PER UNIT | H102: TOTAL | L102: Total
H103: =ROUND(IF(AND(A103="Excavation",E103="TONS"),VLOOKUP(F103,Data!$D$18:$F$5017,3),IF(AND(A103="Soil Cuttings",E103="DRUMS"),IF(F103<=3,520,(F103-1)*156+208),F103*G103)),2) -> 0 | J103: Emergency/Initial Work | K103: FALSE | L103: =IF(K103=TRUE,$H$127,"") -> 
H104: =ROUND(IF(AND(A104="Excavation",E104="TONS"),VLOOKUP(F104,Data!$D$18:$F$5017,3),IF(AND(A104="Soil Cuttings",E104="DRUMS"),IF(F104<=3,520,(F104-1)*156+208),F104*G104)),2) -> 0 | J104: Investigation Work | K104: FALSE | L104: =IF(K104=TRUE,$H$127,"") -> 
H105: =ROUND(IF(AND(A105="Excavation",E105="TONS"),VLOOKUP(F105,Data!$D$18:$F$5017,3),IF(AND(A105="Soil Cuttings",E105="DRUMS"),IF(F105<=3,520,(F105-1)*156+208),F105*G105)),2) -> 0 | J105: Monitoring/Interim Work | K105: FALSE
H106: =ROUND(IF(AND(A106="Excavation",E106="TONS"),VLOOKUP(F106,Data!$D$18:$F$5017,3),IF(AND(A106="Soil Cuttings",E106="DRUMS"),IF(F106<=3,520,(F106-1)*156+208),F106*G106)),2) -> 0 | J106: Corrective Action Plan Work | K106: FALSE
H107: =ROUND(IF(AND(A107="Excavation",E107="TONS"),VLOOKUP(F107,Data!$D$18:$F$5017,3),IF(AND(A107="Soil Cuttings",E107="DRUMS"),IF(F107<=3,520,(F107-1)*156+208),F107*G107)),2) -> 0
H108: =ROUND(IF(AND(A108="Excavation",E108="TONS"),VLOOKUP(F108,Data!$D$18:$F$5017,3),IF(AND(A108="Soil Cuttings",E108="DRUMS"),IF(F108<=3,520,(F108-1)*156+208),F108*G108)),2) -> 0 | J108: Emergency/Initial Work | K108: =IF(K103=TRUE,1,"") -> 
H109: =ROUND(IF(AND(A109="Excavation",E109="TONS"),VLOOKUP(F109,Data!$D$18:$F$5017,3),IF(AND(A109="Soil Cuttings",E109="DRUMS"),IF(F109<=3,520,(F109-1)*156+208),F109*G109)),2) -> 0 | J109: Investigation Work | K109: =IF(K104=TRUE,2,"") -> 
H110: =ROUND(IF(AND(A110="Excavation",E110="TONS"),VLOOKUP(F110,Data!$D$18:$F$5017,3),IF(AND(A110="Soil Cuttings",E110="DRUMS"),IF(F110<=3,520,(F110-1)*156+208),F110*G110)),2) -> 0 | J110: Monitoring/Interim Work | K110: =IF(K105=TRUE,3,"") -> 
H111: =ROUND(IF(AND(A111="Excavation",E111="TONS"),VLOOKUP(F111,Data!$D$18:$F$5017,3),IF(AND(A111="Soil Cuttings",E111="DRUMS"),IF(F111<=3,520,(F111-1)*156+208),F111*G111)),2) -> 0 | J111: Corrective Action Plan Work | K111: =IF(K106=TRUE,4,"") -> 
H112: =ROUND(IF(AND(A112="Excavation",E112="TONS"),VLOOKUP(F112,Data!$D$18:$F$5017,3),IF(AND(A112="Soil Cuttings",E112="DRUMS"),IF(F112<=3,520,(F112-1)*156+208),F112*G112)),2) -> 0
H113: =ROUND(IF(AND(A113="Excavation",E113="TONS"),VLOOKUP(F113,Data!$D$18:$F$5017,3),IF(AND(A113="Soil Cuttings",E113="DRUMS"),IF(F113<=3,520,(F113-1)*156+208),F113*G113)),2) -> 0
H114: =ROUND(IF(AND(A114="Excavation",E114="TONS"),VLOOKUP(F114,Data!$D$18:$F$5017,3),IF(AND(A114="Soil Cuttings",E114="DRUMS"),IF(F114<=3,520,(F114-1)*156+208),F114*G114)),2) -> 0
H115: =ROUND(IF(AND(A115="Excavation",E115="TONS"),VLOOKUP(F115,Data!$D$18:$F$5017,3),IF(AND(A115="Soil Cuttings",E115="DRUMS"),IF(F115<=3,520,(F115-1)*156+208),F115*G115)),2) -> 0
H116: =ROUND(IF(AND(A116="Excavation",E116="TONS"),VLOOKUP(F116,Data!$D$18:$F$5017,3),IF(AND(A116="Soil Cuttings",E116="DRUMS"),IF(F116<=3,520,(F116-1)*156+208),F116*G116)),2) -> 0
H117: =ROUND(IF(AND(A117="Excavation",E117="TONS"),VLOOKUP(F117,Data!$D$18:$F$5017,3),IF(AND(A117="Soil Cuttings",E117="DRUMS"),IF(F117<=3,520,(F117-1)*156+208),F117*G117)),2) -> 0
H118: =ROUND(IF(AND(A118="Excavation",E118="TONS"),VLOOKUP(F118,Data!$D$18:$F$5017,3),IF(AND(A118="Soil Cuttings",E118="DRUMS"),IF(F118<=3,520,(F118-1)*156+208),F118*G118)),2) -> 0
H119: =ROUND(IF(AND(A119="Excavation",E119="TONS"),VLOOKUP(F119,Data!$D$18:$F$5017,3),IF(AND(A119="Soil Cuttings",E119="DRUMS"),IF(F119<=3,520,(F119-1)*156+208),F119*G119)),2) -> 0
H120: =ROUND(IF(AND(A120="Excavation",E120="TONS"),VLOOKUP(F120,Data!$D$18:$F$5017,3),IF(AND(A120="Soil Cuttings",E120="DRUMS"),IF(F120<=3,520,(F120-1)*156+208),F120*G120)),2) -> 0
H121: =ROUND(IF(AND(A121="Excavation",E121="TONS"),VLOOKUP(F121,Data!$D$18:$F$5017,3),IF(AND(A121="Soil Cuttings",E121="DRUMS"),IF(F121<=3,520,(F121-1)*156+208),F121*G121)),2) -> 0
H122: =ROUND(IF(AND(A122="Excavation",E122="TONS"),VLOOKUP(F122,Data!$D$18:$F$5017,3),IF(AND(A122="Soil Cuttings",E122="DRUMS"),IF(F122<=3,520,(F122-1)*156+208),F122*G122)),2) -> 0
H123: =ROUND(IF(AND(A123="Excavation",E123="TONS"),VLOOKUP(F123,Data!$D$18:$F$5017,3),IF(AND(A123="Soil Cuttings",E123="DRUMS"),IF(F123<=3,520,(F123-1)*156+208),F123*G123)),2) -> 0
H124: =ROUND(IF(AND(A124="Excavation",E124="TONS"),VLOOKUP(F124,Data!$D$18:$F$5017,3),IF(AND(A124="Soil Cuttings",E124="DRUMS"),IF(F124<=3,520,(F124-1)*156+208),F124*G124)),2) -> 0
A125: Non-Impacted Soil | E125: TONS | G125: -45 | H125: =ROUND(IF(AND(A125="Excavation",E125="TONS"),VLOOKUP(F125,Data!$D$18:$F$5017,3),IF(AND(A125="Soil Cuttings",E125="DRUMS"),IF(F125<=3,500,(F125-1)*150+200),F125*G125)),2) -> 0
A126: Treated Soil | E126: TONS | G126: -30 | H126: =ROUND(IF(AND(A126="Excavation",E126="TONS"),VLOOKUP(F126,Data!$D$18:$F$5017,3),IF(AND(A126="Soil Cuttings",E126="DRUMS"),IF(F126<=3,500,(F126-1)*150+200),F126*G126)),2) -> 0 | J126: =IF(K103=TRUE,$N$17,IF(K104=TRUE,$N$18,IF(K105=TRUE,$N$19,IF(K106=TRUE,$N$20,0)))) -> 0
A127: SUBTOTAL OF THIS PAGE | H127: =SUM(H103:H126) -> 0
A128: TOTAL DISPOSAL COSTS | H128: =SUM(J126) -> 0 | J128: =IF(H128>0,1,0) -> 0
A129: Page of (Soil/Water Disposal Supplementary Sheet)
A130: PART 5.B
A131: SOIL/WATER DISPOSAL SUPPLEMENTARY SHEET
A132: Check Event:
A133: 1. The unit rate for purge water disposal related to Groundwater Sampling events is $4.20/gal.
A134: 2. All other water disposal is under the unit rate of $0.57 /gal.
A135: 3. Do not address the RAC markups on this page. Indicate markups on the Miscellaneous Supplementary Sheet.
A136: 4. Pre-approval is required from the Team Leader or ROG for all work.
A137: 5. For disposal invoices: addresses, copies of manifests, bills of lading, etc. must be provided.
A138: 6. (Tons [Soil]) X (Cost Per Unit) = Total
A139: 7. (Gallons [Water]) X (Cost Per Unit) = Total
A140: 8. Soil drum disposal (not associated with excavation): $520.00 minimum, $208.00 for the first drum, $156.00 each additional
A141: drum.
A142: 9. For excavation/transportation/disposal unit rates, please refer to the MS Excel spreadsheet located at
A143: http://www.deq.louisiana.gov/trustfund
A144: 10. For non-impacted soil and onsite, treated soil cost reductions, enter the tonnage value in the bottom two rows.
A145: TYPE OF DISPOSAL (Soil or Water) | B145: DISPOSAL DATE | C145: RAC INVOICE NO. | D145: OUTSIDE INVOICE NO. | E145: TONS, DRUMS OR GALLONS | F145: QUANTITY | G145: COST PER UNIT | H145: TOTAL | L145: Total
H146: =ROUND(IF(AND(A146="Excavation",E146="TONS"),VLOOKUP(F146,Data!$D$18:$F$5017,3),IF(AND(A146="Soil Cuttings",E146="DRUMS"),IF(F146<=3,520,(F146-1)*156+208),F146*G146)),2) -> 0 | J146: Emergency/Initial Work | K146: FALSE | L146: =IF(K146=TRUE,$H$170,"") -> 
H147: =ROUND(IF(AND(A147="Excavation",E147="TONS"),VLOOKUP(F147,Data!$D$18:$F$5017,3),IF(AND(A147="Soil Cuttings",E147="DRUMS"),IF(F147<=3,520,(F147-1)*156+208),F147*G147)),2) -> 0 | J147: Investigation Work | K147: FALSE | L147: =IF(K147=TRUE,$H$170,"") -> 
H148: =ROUND(IF(AND(A148="Excavation",E148="TONS"),VLOOKUP(F148,Data!$D$18:$F$5017,3),IF(AND(A148="Soil Cuttings",E148="DRUMS"),IF(F148<=3,520,(F148-1)*156+208),F148*G148)),2) -> 0 | J148: Monitoring/Interim Work | K148: FALSE
H149: =ROUND(IF(AND(A149="Excavation",E149="TONS"),VLOOKUP(F149,Data!$D$18:$F$5017,3),IF(AND(A149="Soil Cuttings",E149="DRUMS"),IF(F149<=3,520,(F149-1)*156+208),F149*G149)),2) -> 0 | J149: Corrective Action Plan Work | K149: FALSE
H150: =ROUND(IF(AND(A150="Excavation",E150="TONS"),VLOOKUP(F150,Data!$D$18:$F$5017,3),IF(AND(A150="Soil Cuttings",E150="DRUMS"),IF(F150<=3,520,(F150-1)*156+208),F150*G150)),2) -> 0
H151: =ROUND(IF(AND(A151="Excavation",E151="TONS"),VLOOKUP(F151,Data!$D$18:$F$5017,3),IF(AND(A151="Soil Cuttings",E151="DRUMS"),IF(F151<=3,520,(F151-1)*156+208),F151*G151)),2) -> 0 | J151: Emergency/Initial Work | K151: =IF(K146=TRUE,1,"") -> 
H152: =ROUND(IF(AND(A152="Excavation",E152="TONS"),VLOOKUP(F152,Data!$D$18:$F$5017,3),IF(AND(A152="Soil Cuttings",E152="DRUMS"),IF(F152<=3,520,(F152-1)*156+208),F152*G152)),2) -> 0 | J152: Investigation Work | K152: =IF(K147=TRUE,2,"") -> 
H153: =ROUND(IF(AND(A153="Excavation",E153="TONS"),VLOOKUP(F153,Data!$D$18:$F$5017,3),IF(AND(A153="Soil Cuttings",E153="DRUMS"),IF(F153<=3,520,(F153-1)*156+208),F153*G153)),2) -> 0 | J153: Monitoring/Interim Work | K153: =IF(K148=TRUE,3,"") -> 
H154: =ROUND(IF(AND(A154="Excavation",E154="TONS"),VLOOKUP(F154,Data!$D$18:$F$5017,3),IF(AND(A154="Soil Cuttings",E154="DRUMS"),IF(F154<=3,520,(F154-1)*156+208),F154*G154)),2) -> 0 | J154: Corrective Action Plan Work | K154: =IF(K149=TRUE,4,"") -> 
H155: =ROUND(IF(AND(A155="Excavation",E155="TONS"),VLOOKUP(F155,Data!$D$18:$F$5017,3),IF(AND(A155="Soil Cuttings",E155="DRUMS"),IF(F155<=3,520,(F155-1)*156+208),F155*G155)),2) -> 0
H156: =ROUND(IF(AND(A156="Excavation",E156="TONS"),VLOOKUP(F156,Data!$D$18:$F$5017,3),IF(AND(A156="Soil Cuttings",E156="DRUMS"),IF(F156<=3,520,(F156-1)*156+208),F156*G156)),2) -> 0
H157: =ROUND(IF(AND(A157="Excavation",E157="TONS"),VLOOKUP(F157,Data!$D$18:$F$5017,3),IF(AND(A157="Soil Cuttings",E157="DRUMS"),IF(F157<=3,520,(F157-1)*156+208),F157*G157)),2) -> 0
H158: =ROUND(IF(AND(A158="Excavation",E158="TONS"),VLOOKUP(F158,Data!$D$18:$F$5017,3),IF(AND(A158="Soil Cuttings",E158="DRUMS"),IF(F158<=3,520,(F158-1)*156+208),F158*G158)),2) -> 0
H159: =ROUND(IF(AND(A159="Excavation",E159="TONS"),VLOOKUP(F159,Data!$D$18:$F$5017,3),IF(AND(A159="Soil Cuttings",E159="DRUMS"),IF(F159<=3,520,(F159-1)*156+208),F159*G159)),2) -> 0
H160: =ROUND(IF(AND(A160="Excavation",E160="TONS"),VLOOKUP(F160,Data!$D$18:$F$5017,3),IF(AND(A160="Soil Cuttings",E160="DRUMS"),IF(F160<=3,520,(F160-1)*156+208),F160*G160)),2) -> 0
H161: =ROUND(IF(AND(A161="Excavation",E161="TONS"),VLOOKUP(F161,Data!$D$18:$F$5017,3),IF(AND(A161="Soil Cuttings",E161="DRUMS"),IF(F161<=3,520,(F161-1)*156+208),F161*G161)),2) -> 0
H162: =ROUND(IF(AND(A162="Excavation",E162="TONS"),VLOOKUP(F162,Data!$D$18:$F$5017,3),IF(AND(A162="Soil Cuttings",E162="DRUMS"),IF(F162<=3,520,(F162-1)*156+208),F162*G162)),2) -> 0
H163: =ROUND(IF(AND(A163="Excavation",E163="TONS"),VLOOKUP(F163,Data!$D$18:$F$5017,3),IF(AND(A163="Soil Cuttings",E163="DRUMS"),IF(F163<=3,520,(F163-1)*156+208),F163*G163)),2) -> 0
H164: =ROUND(IF(AND(A164="Excavation",E164="TONS"),VLOOKUP(F164,Data!$D$18:$F$5017,3),IF(AND(A164="Soil Cuttings",E164="DRUMS"),IF(F164<=3,520,(F164-1)*156+208),F164*G164)),2) -> 0
H165: =ROUND(IF(AND(A165="Excavation",E165="TONS"),VLOOKUP(F165,Data!$D$18:$F$5017,3),IF(AND(A165="Soil Cuttings",E165="DRUMS"),IF(F165<=3,520,(F165-1)*156+208),F165*G165)),2) -> 0
H166: =ROUND(IF(AND(A166="Excavation",E166="TONS"),VLOOKUP(F166,Data!$D$18:$F$5017,3),IF(AND(A166="Soil Cuttings",E166="DRUMS"),IF(F166<=3,520,(F166-1)*156+208),F166*G166)),2) -> 0
H167: =ROUND(IF(AND(A167="Excavation",E167="TONS"),VLOOKUP(F167,Data!$D$18:$F$5017,3),IF(AND(A167="Soil Cuttings",E167="DRUMS"),IF(F167<=3,520,(F167-1)*156+208),F167*G167)),2) -> 0
A168: Non-Impacted Soil | E168: TONS | G168: -45 | H168: =ROUND(IF(AND(A168="Excavation",E168="TONS"),VLOOKUP(F168,Data!$D$18:$F$5017,3),IF(AND(A168="Soil Cuttings",E168="DRUMS"),IF(F168<=3,500,(F168-1)*150+200),F168*G168)),2) -> 0
A169: Treated Soil | E169: TONS | G169: -30 | H169: =ROUND(IF(AND(A169="Excavation",E169="TONS"),VLOOKUP(F169,Data!$D$18:$F$5017,3),IF(AND(A169="Soil Cuttings",E169="DRUMS"),IF(F169<=3,500,(F169-1)*150+200),F169*G169)),2) -> 0 | J169: =IF(K146=TRUE,$N$17,IF(K147=TRUE,$N$18,IF(K148=TRUE,$N$19,IF(K149=TRUE,$N$20,0)))) -> 0
A170: SUBTOTAL OF THIS PAGE | H170: =SUM(H146:H169) -> 0
A171: TOTAL DISPOSAL COSTS | H171: =SUM(J169) -> 0 | J171: =IF(H171>0,1,0) -> 0
A172: Page of (Soil/Water Disposal Supplementary Sheet)

Sheet Data (hidden)
A2: TONNAGE 1 - 99
A4: Minimum Price | F4: 8840
A5: Price / Ton (1 - 99 tons) | F5: 104
E7: VARIABLE
A8: Tonnage Ranges | D8: Range Amounts | E8: Price / Ton | F8: Increments
A9: 100 | B9: - | C9: 250 | D9: =C9-A9 -> 150 | E9: 192.4 | F9: =(E9-E10)/D9 -> 0.2565333333
A10: 251 | B10: - | C10: 500 | D10: =C10-C9 -> 250 | E10: 153.92 | F10: =(E10-E11)/D10 -> 0.10816
A11: 501 | B11: - | C11: 1000 | D11: =C11-C10 -> 500 | E11: 126.88 | F11: =(E11-E12)/D11 -> 0.04576
A12: 1001 | B12: - | C12: 2000 | D12: =C12-C11 -> 1000 | E12: 104 | F12: =(E12-E13)/D12 -> 0.0104
A13: 2001 | B13: < | E13: 93.6
D17: TONS | E17: PRICE / TON | F17: TOTAL
D18: 1 | E18: =F18/D18 -> 8944 | F18: =+$F$4+($F$5*D18) -> 8944
D19: 2 | E19: =F19/D19 -> 4524 | F19: 9048
D20: 3 | E20: 3050.666667 | F20: 9152
D21: 4 | E21: 2314 | F21: 9256
D22: 5 | E22: 1872 | F22: 9360
D23: 6 | E23: 1577.333333 | F23: 9464
D24: 7 | E24: 1366.857143 | F24: 9568
D25: 8 | E25: 1209 | F25: 9672
D26: 9 | E26: 1086.222222 | F26: 9776
D27: 10 | E27: 988 | F27: 9880
D28: 11 | E28: 907.6363636 | F28: 9984
D29: 12 | E29: 840.6666667 | F29: 10088
D30: 13 | E30: 784 | F30: 10192
D31: 14 | E31: 735.4285714 | F31: 10296
D32: 15 | E32: 693.3333333 | F32: 10400
D33: 16 | E33: 656.5 | F33: 10504
D34: 17 | E34: 624 | F34: 10608
D35: 18 | E35: 595.1111111 | F35: 10712
D36: 19 | E36: 569.2631579 | F36: 10816
D37: 20 | E37: 546 | F37: 10920
D38: 21 | E38: 524.952381 | F38: 11024
D39: 22 | E39: 505.8181818 | F39: 11128
D40: 23 | E40: 488.3478261 | F40: 11232
D41: 24 | E41: 472.3333333 | F41: 11336
D42: 25 | E42: 457.6 | F42: 11440
D43: 26 | E43: 444 | F43: 11544
D44: 27 | E44: 431.4074074 | F44: 11648
D45: 28 | E45: 419.7142857 | F45: 11752
D46: 29 | E46: 408.8275862 | F46: 11856
D47: 30 | E47: 398.6666667 | F47: 11960
D48: 31 | E48: 389.1612903 | F48: 12064
D49: 32 | E49: 380.25 | F49: 12168
D50: 33 | E50: 371.8787879 | F50: 12272
D51: 34 | E51: 364 | F51: 12376
D52: 35 | E52: 356.5714286 | F52: 12480
D53: 36 | E53: 349.5555556 | F53: 12584
D54: 37 | E54: 342.9189189 | F54: 12688
D55: 38 | E55: 336.6315789 | F55: 12792
D56: 39 | E56: 330.6666667 | F56: 12896
D57: 40 | E57: 325 | F57: 13000
D58: 41 | E58: 319.6097561 | F58: 13104
D59: 42 | E59: 314.4761905 | F59: 13208
D60: 43 | E60: 309.5813953 | F60: 13312
D61: 44 | E61: 304.9090909 | F61: 13416
D62: 45 | E62: 300.4444444 | F62: 13520
D63: 46 | E63: 296.173913 | F63: 13624
D64: 47 | E64: 292.0851064 | F64: 13728
D65: 48 | E65: 288.1666667 | F65: 13832
D66: 49 | E66: 284.4081633 | F66: 13936
D67: 50 | E67: 280.8 | F67: 14040
D68: 51 | E68: 277.3333333 | F68: 14144
D69: 52 | E69: 274 | F69: 14248
D70: 53 | E70: 270.7924528 | F70: 14352
D71: 54 | E71: 267.7037037 | F71: 14456
D72: 55 | E72: 264.7272727 | F72: 14560
D73: 56 | E73: 261.8571429 | F73: 14664
D74: 57 | E74: 259.0877193 | F74: 14768
D75: 58 | E75: 256.4137931 | F75: 14872
D76: 59 | E76: 253.8305085 | F76: 14976
D77: 60 | E77: 251.3333333 | F77: 15080
D78: 61 | E78: 248.9180328 | F78: 15184
D79: 62 | E79: 246.5806452 | F79: 15288
D80: 63 | E80: 244.3174603 | F80: 15392
D81: 64 | E81: 242.125 | F81: 15496
D82: 65 | E82: 240 | F82: =+$F$4+($F$5*D82) -> 15600
D83: 66 | E83: =F83/D83 -> 237.9393939 | F83: 15704
D84: 67 | E84: 235.9402985 | F84: 15808
D85: 68 | E85: 234 | F85: 15912
D86: 69 | E86: 232.115942 | F86: 16016
D87: 70 | E87: 230.2857143 | F87: 16120
D88: 71 | E88: 228.5070423 | F88: 16224
D89: 72 | E89: 226.7777778 | F89: 16328
D90: 73 | E90: 225.0958904 | F90: 16432
D91: 74 | E91: 223.4594595 | F91: 16536
D92: 75 | E92: 221.8666667 | F92: 16640
D93: 76 | E93: 220.3157895 | F93: 16744
D94: 77 | E94: 218.8051948 | F94: 16848
D95: 78 | E95: 217.3333333 | F95: 16952
D96: 79 | E96: 215.8987342 | F96: 17056
D97: 80 | E97: 214.5 | F97: 17160
D98: 81 | E98: 213.1358025 | F98: 17264
D99: 82 | E99: 211.804878 | F99: 17368
D100: 83 | E100: 210.5060241 | F100: 17472
D101: 84 | E101: 209.2380952 | F101: 17576
D102: 85 | E102: 208 | F102: 17680
D103: 86 | E103: 206.7906977 | F103: 17784
D104: 87 | E104: 205.6091954 | F104: 17888
D105: 88 | E105: 204.4545455 | F105: 17992
D106: 89 | E106: 203.3258427 | F106: 18096
D107: 90 | E107: 202.2222222 | F107: 18200
D108: 91 | E108: 201.1428571 | F108: 18304
D109: 92 | E109: 200.0869565 | F109: 18408
D110: 93 | E110: 199.0537634 | F110: 18512
D111: 94 | E111: 198.0425532 | F111: 18616
D112: 95 | E112: 197.0526316 | F112: 18720
D113: 96 | E113: 196.0833333 | F113: 18824
D114: 97 | E114: 195.1340206 | F114: 18928
D115: 98 | E115: 194.2040816 | F115: 19032
D116: 99 | E116: 193.2929293 | F116: 19136
D117: 100 | E117: =E9 -> 192.4 | F117: =E117*D117 -> 19240
D118: 101 | E118: =E117-$F$9 -> 192.1434667 | F118: =E118*D118 -> 19406.49013
D119: 102 | E119: 191.8869333 | F119: 19572.4672
D120: 103 | E120: 191.6304 | F120: 19737.9312
D121: 104 | E121: 191.3738667 | F121: 19902.88213
D122: 105 | E122: 191.1173333 | F122: 20067.32
D123: 106 | E123: 190.8608 | F123: 20231.2448
D124: 107 | E124: 190.6042667 | F124: 20394.65653
D125: 108 | E125: 190.3477333 | F125: 20557.5552
D126: 109 | E126: 190.0912 | F126: 20719.9408
D127: 110 | E127: 189.8346667 | F127: 20881.81333
D128: 111 | E128: 189.5781333 | F128: 21043.1728
D129: 112 | E129: 189.3216 | F129: 21204.0192
D130: 113 | E130: 189.0650667 | F130: 21364.35253
D131: 114 | E131: 188.8085333 | F131: 21524.1728
D132: 115 | E132: 188.552 | F132: 21683.48
D133: 116 | E133: 188.2954667 | F133: 21842.27413
D134: 117 | E134: 188.0389333 | F134: 22000.5552
D135: 118 | E135: 187.7824 | F135: 22158.3232
D136: 119 | E136: 187.5258667 | F136: 22315.57813
D137: 120 | E137: 187.2693333 | F137: 22472.32
D138: 121 | E138: 187.0128 | F138: 22628.5488
D139: 122 | E139: 186.7562667 | F139: 22784.26453
D140: 123 | E140: 186.4997333 | F140: 22939.4672
D141: 124 | E141: 186.2432 | F141: 23094.1568
D142: 125 | E142: 185.9866667 | F142: 23248.33333
D143: 126 | E143: 185.7301333 | F143: 23401.9968
D144: 127 | E144: 185.4736 | F144: 23555.1472
D145: 128 | E145: 185.2170667 | F145: 23707.78453
D146: 129 | E146: 184.9605333 | F146: 23859.9088
D147: 130 | E147: 184.704 | F147: 24011.52
D148: 131 | E148: 184.4474667 | F148: 24162.61813
D149: 132 | E149: 184.1909333 | F149: 24313.2032
D150: 133 | E150: 183.9344 | F150: 24463.2752
D151: 134 | E151: 183.6778667 | F151: 24612.83413
D152: 135 | E152: 183.4213333 | F152: 24761.88
D153: 136 | E153: 183.1648 | F153: 24910.4128
D154: 137 | E154: 182.9082667 | F154: 25058.43253
D155: 138 | E155: 182.6517333 | F155: 25205.9392
D156: 139 | E156: 182.3952 | F156: 25352.9328
D157: 140 | E157: 182.1386667 | F157: 25499.41333
D158: 141 | E158: 181.8821333 | F158: 25645.3808
D159: 142 | E159: 181.6256 | F159: 25790.8352
D160: 143 | E160: 181.3690667 | F160: 25935.77653
D161: 144 | E161: 181.1125333 | F161: 26080.2048
D162: 145 | E162: 180.856 | F162: 26224.12
D163: 146 | E163: 180.5994667 | F163: 26367.52213
D164: 147 | E164: 180.3429333 | F164: 26510.4112
D165: 148 | E165: 180.0864 | F165: 26652.7872
D166: 149 | E166: 179.8298667 | F166: 26794.65013
D167: 150 | E167: 179.5733333 | F167: 26936
D168: 151 | E168: 179.3168 | F168: 27076.8368
D169: 152 | E169: 179.0602667 | F169: 27217.16053
D170: 153 | E170: 178.8037333 | F170: 27356.9712
D171: 154 | E171: 178.5472 | F171: 27496.2688
D172: 155 | E172: 178.2906667 | F172: 27635.05333
D173: 156 | E173: 178.0341333 | F173: 27773.3248
D174: 157 | E174: 177.7776 | F174: 27911.0832
D175: 158 | E175: 177.5210667 | F175: 28048.32853
D176: 159 | E176: 177.2645333 | F176: 28185.0608
D177: 160 | E177: 177.008 | F177: 28321.28
D178: 161 | E178: 176.7514667 | F178: 28456.98613
D179: 162 | E179: 176.4949333 | F179: 28592.1792
D180: 163 | E180: 176.2384 | F180: 28726.8592
D181: 164 | E181: 175.9818667 | F181: 28861.02613
D182: 165 | E182: =E181-$F$9 -> 175.7253333 | F182: =E182*D182 -> 28994.68
D183: 166 | E183: 175.4688 | F183: 29127.8208
D184: 167 | E184: 175.2122667 | F184: 29260.44853
D185: 168 | E185: 174.9557333 | F185: 29392.5632
D186: 169 | E186: 174.6992 | F186: 29524.1648
D187: 170 | E187: 174.4426667 | F187: 29655.25333
D188: 171 | E188: 174.1861333 | F188: 29785.8288
D189: 172 | E189: 173.9296 | F189: 29915.8912
D190: 173 | E190: 173.6730667 | F190: 30045.44053
D191: 174 | E191: 173.4165333 | F191: 30174.4768
D192: 175 | E192: 173.16 | F192: 30303
D193: 176 | E193: 172.9034667 | F193: 30431.01013
D194: 177 | E194: 172.6469333 | F194: 30558.5072
D195: 178 | E195: 172.3904 | F195: 30685.4912
D196: 179 | E196: 172.1338667 | F196: 30811.96213
D197: 180 | E197: 171.8773333 | F197: 30937.92
D198: 181 | E198: 171.6208 | F198: 31063.3648
D199: 182 | E199: 171.3642667 | F199: 31188.29653
D200: 183 | E200: 171.1077333 | F200: 31312.7152
D201: 184 | E201: 170.8512 | F201: 31436.6208
D202: 185 | E202: 170.5946667 | F202: 31560.01333
D203: 186 | E203: 170.3381333 | F203: 31682.8928
D204: 187 | E204: 170.0816 | F204: 31805.2592
D205: 188 | E205: 169.8250667 | F205: 31927.11253
D206: 189 | E206: 169.5685333 | F206: 32048.4528
... 4812 more rows

Sheet Equipment Rent - Purchase
A1: PART 5.C
A2: EQUIPMENT RENTAL/PURCHASE SUPPLEMENTARY SHEET
A3: Check Event:
A4: 1. This form should include all charges for outside rentals, contractor-owned rental equipment, and purchased equipment.
A5: 2. Treatment Units – Must provide a completed Treatment System Tracking Form (Part 7) & Purchase Agreement Form (Part 8).
A6: 3. Claims for rental of vehicles are not reimbursable.
A7: 4. Do not address the RAC markup on this page. Indicate the markup on the Miscellaneous Supplementary Sheet.
A8: 5. (No. of Units) X (Rental Rate) X (Hours Used At Site) = Total
A9: 6. Weekly rate goes into effect when equipment is used at a site for more than three days in a week (Monday – Sunday) . Daily
A10: rates are based on an 8-hour day. Equipment rental costs for more or less than an 8-hour day must be prorated.
A11: 7. Equipment charges for work activities included in unit pricing should not be included on this form.
A12: 8. Rental rates for contractor owned equipment are addressed in Appendix B, Table 2 of the Cost Control Guidance Document.
A13: 9. The rating of the following equipment must be provided: air compressor – cfm, backhoe – bucket size, dump truck – yard
A14: capacity, trackhoe – horsepower, vacuum truck - horsepower.
A15: ITEM DESCRIPTION | B15: EQUIPMENT RATING (See note 9) | C15: RAC INVOICE NO. | D15: OUTSIDE INVOICE NO. | E15: DATES EQUIPMENT USED | F15: RENTAL RATES | G15: UNITS | H15: TIME USED | I15: TOTAL | M15: Total | O15: Sheet total
F16: =(IF(A16>0,INDEX($U$17:$W$62,MATCH(A16&" "&B16,$T$17:$T$62,0),MATCH(G16,$U$16:$W$16,0)),"")) ->  | I16: =ROUND((SUM(F16)*H16),2) -> 0 | K16: Emergency/Initial Work | L16: FALSE | M16: =IF(L16=TRUE,$I$40,"") ->  | N16: Emergency/Initial Work | O16: =SUM(M16,M59,M102,M145) -> 0 | T16: Equipment | U16: Hr | V16: Day | W16: Wky
F17: =(IF(A17>0,INDEX($U$17:$W$62,MATCH(A17&" "&B17,$T$17:$T$62,0),MATCH(G17,$U$16:$W$16,0)),"")) ->  | I17: =ROUND((SUM(F17)*H17),2) -> 0 | K17: Investigation Work | L17: FALSE | M17: =IF(L17=TRUE,$I$40,"") ->  | N17: Investigation Work | O17: =SUM(M17,M60,M103,M146) -> 0 | P17: Air Compressor | Q17: 100 cfm - 249 cfm | R17: 250 cfm - 375 cfm | T17: Air Compressor 100 cfm - 249 cfm | U17: 6.5 | V17: 52 | W17: 156
I18: 0 | K18: Monitoring/Interim Work | L18: FALSE | N18: Monitoring/Interim Work | O18: =SUM(M18,M61,M104,M147) -> 0 | P18: BackHoe | Q18: Up to 36" Bucket | R18: 36"&above Bucket | T18: Air Compressor 250 cfm - 375 cfm | U18: 9.75 | V18: 78 | W18: 234
I19: 0 | K19: Corrective Action Plan Work | L19: FALSE | N19: Corrective Action Plan Work | O19: =SUM(M19,M62,M105,M148) -> 0 | P19: Bobcat Skid Steer Loader | T19: BackHoe Up to 36" Bucket | U19: 35.75 | V19: 286 | W19: 858
I20: 0 | P20: Bobcat Front Endloader w/ Breaker | T20: BackHoe 36"&above Bucket | U20: 45.94 | V20: 367.5 | W20: 1102.5
I21: 0 | K21: Emergency/Initial Work | L21: =IF(L16=TRUE,1,"") ->  | P21: Bulldozer | T21: =P19&" "&Q19 -> Bobcat Skid Steer Loader | U21: 23.4 | V21: 187.2 | W21: 561.6
I22: 0 | K22: Investigation Work | L22: =IF(L17=TRUE,2,"") ->  | P22: Combustible Gas Indicator | T22: Bobcat Front Endloader w/ Breaker | U22: 23.4 | V22: 187.2 | W22: 561.6
I23: 0 | K23: Monitoring/Interim Work | L23: =IF(L18=TRUE,3,"") ->  | P23: Compactor | T23: Bulldozer | U23: 85.16 | V23: 681.2 | W23: 2043.6
I24: 0 | K24: Corrective Action Plan Work | L24: =IF(L19=TRUE,4,"") ->  | P24: Concrete Core Drill | T24: Combustible Gas Indicator | U24: 3.9 | V24: 31.2 | W24: 93.6
I25: 0 | P25: Crane Truck | T25: Compactor | U25: 29.26 | V25: 234 | W25: 702
I26: 0 | P26: Data Logger | T26: Concrete Core Drill | U26: 7 | V26: 56.16 | W26: 168.5
I27: 0 | P27: Digital Manometer | T27: Crane Truck | U27: 46.8 | V27: 374.4 | W27: 1123.2
I28: 0 | P28: Dissolved Oxygen Meter | T28: Data Logger | U28: 19.5 | V28: 156 | W28: 468
I29: 0 | P29: Dump Truck | Q29: 7-10 yards | R29: 11-20 yards | S29: over 20 yards | T29: Digital Manometer | U29: 1.96 | V29: 15.6 | W29: 46.8
I30: 0 | P30: Electric Generator | T30: Dissolved Oxygen Meter | U30: 3.26 | V30: 26 | W30: 78
I31: 0 | P31: Excavators | T31: Dump Truck 7-10 yards | U31: 31.2 | V31: 0 | W31: 0
I32: 0 | P32: Explosimeter* | T32: Dump Truck 11-20 yards | U32: 41.6 | V32: 0 | W32: 0
I33: 0 | P33: Gas Detector* | T33: Dump Truck over 20 yards | U33: 52 | V33: 0 | W33: 0
I34: 0 | P34: Gooseneck Trailer | T34: =P30&" "&Q30 -> Electric Generator | U34: 6.5 | V34: 52 | W34: 156
A35: USE SPACE BELOW FOR EQUIPMENT NOT LISTED ABOVE | P35: Hydrocarbon Analyser FID | T35: Excavators | U35: 78 | V35: 624 | W35: 1872
I36: =ROUND((SUM(F36)*H36),2) -> 0 | P36: Hydrocarbon Analyser PID | T36: Explosimeter* | U36: 3.9 | V36: 31.2 | W36: 93.6
I37: 0 | P37: Hydrocarbon Analyser HNU | T37: Gas Detector* | U37: 3.26 | V37: 26 | W37: 78
I38: 0 | P38: Hydrocarbon Analyser OVA | T38: Gooseneck Trailer | U38: 13 | V38: 104 | W38: 312
I39: 0 | K39: =IF(L16=TRUE,$O$16,IF(L17=TRUE,$O$17,IF(L18=TRUE,$O$18,IF(L19=TRUE,$O$19,0)))) -> 0 | P39: Hydrocarbon Analyser TVA | T39: Hydrocarbon Analyser FID | U39: 9.76 | V39: 78 | W39: 234
A40: SUBTOTAL OF THIS PAGE | I40: =SUM(I16:I39) -> 0 | P40: Jackhammer | T40: Hydrocarbon Analyser PID | U40: 9.76 | V40: 78 | W40: 234
A41: TOTAL EQUIPMENT COSTS | I41: =SUM(I40) -> 0 | K41: =IF(I41>0,1,0) -> 0 | P41: Lowboy Trailer (includes Truck) | T41: Hydrocarbon Analyser HNU | U41: 9.76 | V41: 78 | W41: 234
A42: Page of (Equipment Rental/Purchase Supplementary Sheet) | P42: Oil/Water Interface Probe* | T42: Hydrocarbon Analyser OVA | U42: 9.76 | V42: 78 | W42: 234
P43: pH Conductivity Meter* | T43: Hydrocarbon Analyser TVA | U43: 9.76 | V43: 78 | W43: 234
A44: PART 5.C | P44: Portable Gas Chromatography | T44: Jackhammer | U44: 3.9 | V44: 31.2 | W44: 93.6
A45: EQUIPMENT RENTAL/PURCHASE SUPPLEMENTARY SHEET | P45: Pumps | T45: Lowboy Trailer (includes Truck) | U45: 23.4 | V45: 187.2 | W45: 561.6
A46: Check Event: | P46: Soil/Water holding container | T46: Oil/Water Interface Probe* | U46: 4.56 | V46: 36.4 | W46: 109.2
A47: 1. This form should include all charges for outside rentals, contractor-owned rental equipment, and purchased equipment. | P47: Temperature Probe* | T47: pH Conductivity Meter* | U47: 3.26 | V47: 26 | W47: 78
A48: 2. Treatment Units – Must provide a completed Treatment System Tracking Form (Part 7) & Purchase Agreement Form (Part 8). | P48: Thermal Anemometer* | T48: Portable Gas Chromatography | U48: 19.5 | V48: 156 | W48: 468
A49: 3. Claims for rental of vehicles are not reimbursable. | P49: Tiller (hand) | T49: =P45&" "&Q45 -> Pumps | U49: 3.9 | V49: 31.2 | W49: 93.6
A50: 4. Do not address the RAC markup on this page. Indicate the markup on the Miscellaneous Supplementary Sheet. | P50: Tiller (Rotary w/ Slip Clutch) | T50: =P46&" "&Q46 -> Soil/Water holding container | U50: 8.46 | V50: 67.6 | W50: 291.2 | X50: out of order
A51: 5. (No. of Units) X (Rental Rate) X (Hours Used At Site) = Total | P51: Trackhoe | Q51: 0-200HP | R51: over 200HP | T51: =P47&" "&Q47 -> Temperature Probe* | U51: 1.96 | V51: 15.6 | W51: 46.8
A52: 6. Weekly rate goes into effect when equipment is used at a site for more than three days in a week (Monday – Sunday) . Daily | P52: Tractor With Trailer | T52: Thermal Anemometer* | U52: 1.96 | V52: 15.6 | W52: 46.8
A53: rates are based on an 8-hour day. Equipment rental costs for more or less than an 8-hour day must be prorated. | P53: Transducer | T53: Tiller (hand) | U53: 3.26 | V53: 26 | W53: 78
A54: 7. Equipment charges for work activities included in unit pricing should not be included on this form. | P54: Vacuum Truck | Q54: 0-39HP | R54: 40-150HP | S54: over 150HP | T54: Tiller (Rotary w/ Slip Clutch) | U54: 9.76 | V54: 78 | W54: 234
A55: 8. Rental rates for contractor owned equipment are addressed in Appendix B, Table 2 of the Cost Control Guidance Document. | P55: Water Level Indicator* | T55: Trackhoe 0-200HP | U55: 66.3 | V55: 530.4 | W55: 1591.2
A56: 9. The rating of the following equipment must be provided: air Compressor – cfm, backhoe – bucket size, dump truck – yard | T56: Trackhoe over 200HP | U56: 132.6 | V56: 1060.8 | W56: 3182.4
A57: capacity, trackhoe – horsepower, vacuum truck - horsepower. | T57: =P52&" "&Q52 -> Tractor With Trailer | U57: 33.16 | V57: 265.2 | W57: 795.6
A58: ITEM DESCRIPTION | B58: EQUIPMENT RATING (See note 9) | C58: RAC INVOICE NO. | D58: OUTSIDE INVOICE NO. | E58: DATES EQUIPMENT USED | F58: RENTAL RATES | G58: UNITS | H58: TIME USED | I58: TOTAL | M58: Total | T58: =P53&" "&Q53 -> Transducer | U58: 26 | V58: 208 | W58: 624
F59: =(IF(A59>0,INDEX($U$17:$W$62,MATCH(A59&" "&B59,$T$17:$T$62,0),MATCH(G59,$U$16:$W$16,0)),"")) ->  | I59: =ROUND((SUM(F59)*H59),2) -> 0 | K59: Emergency/Initial Work | L59: FALSE | M59: =IF(L59=TRUE,$I$83,"") ->  | T59: Vacuum Truck 0-39HP | U59: 88.4 | V59: 707.2 | W59: 2121.6
F60: =(IF(A60>0,INDEX($U$17:$W$62,MATCH(A60&" "&B60,$T$17:$T$62,0),MATCH(G60,$U$16:$W$16,0)),"")) ->  | I60: 0 | K60: Investigation Work | L60: FALSE | M60: =IF(L60=TRUE,$I$83,"") ->  | T60: Vacuum Truck 40-150HP | U60: 114.4 | V60: 915.2 | W60: 2745.6
I61: 0 | K61: Monitoring/Interim Work | L61: FALSE | T61: Vacuum Truck over 150HP | U61: 159.9 | V61: 1279.2 | W61: 3837.6
I62: 0 | K62: Corrective Action Plan Work | L62: FALSE | T62: =P55&" "&Q55 -> Water Level Indicator* | U62: 1.96 | V62: 15.6 | W62: 46.8
I63: 0
I64: 0 | K64: Emergency/Initial Work | L64: =IF(L59=TRUE,1,"") -> 
I65: 0 | K65: Investigation Work | L65: =IF(L60=TRUE,2,"") -> 
I66: 0 | K66: Monitoring/Interim Work | L66: =IF(L61=TRUE,3,"") -> 
I67: 0 | K67: Corrective Action Plan Work | L67: =IF(L62=TRUE,4,"") -> 
I68: 0
I69: 0
I70: 0
I71: 0
I72: 0
I73: 0
I74: 0
I75: 0
I76: 0
I77: 0
A78: USE SPACE BELOW FOR EQUIPMENT NOT LISTED ABOVE
I79: =ROUND((SUM(F79)*H79),2) -> 0
I80: 0
I81: 0
I82: 0 | K82: =IF(L59=TRUE,$O$16,IF(L60=TRUE,$O$17,IF(L61=TRUE,$O$18,IF(L62=TRUE,$O$19,0)))) -> 0
A83: SUBTOTAL OF THIS PAGE | I83: =SUM(I59:I82) -> 0
A84: TOTAL EQUIPMENT COSTS | I84: =SUM(I83) -> 0 | K84: =IF(I84>0,1,0) -> 0
A85: Page of (Equipment Rental/Purchase Supplementary Sheet)
A87: PART 5.C
A88: EQUIPMENT RENTAL/PURCHASE SUPPLEMENTARY SHEET
A89: Check Event:
A90: 1. This form should include all charges for outside rentals, contractor-owned rental equipment, and purchased equipment.
A91: 2. Treatment Units – Must provide a completed Treatment System Tracking Form (Part 7) & Purchase Agreement Form (Part 8).
A92: 3. Claims for rental of vehicles are not reimbursable.
A93: 4. Do not address the RAC markup on this page. Indicate the markup on the Miscellaneous Supplementary Sheet.
A94: 5. (No. of Units) X (Rental Rate) X (Hours Used At Site) = Total
A95: 6. Weekly rate goes into effect when equipment is used at a site for more than three days in a week (Monday – Sunday) . Daily
A96: rates are based on an 8-hour day. Equipment rental costs for more or less than an 8-hour day must be prorated.
A97: 7. Equipment charges for work activities included in unit pricing should not be included on this form.
A98: 8. Rental rates for contractor owned equipment are addressed in Appendix B, Table 2 of the Cost Control Guidance Document.
A99: 9. The rating of the following equipment must be provided: air Compressor – cfm, backhoe – bucket size, dump truck – yard
A100: capacity, trackhoe – horsepower, vacuum truck - horsepower.
A101: ITEM DESCRIPTION | B101: EQUIPMENT RATING (See note 9) | C101: RAC INVOICE NO. | D101: OUTSIDE INVOICE NO. | E101: DATES EQUIPMENT USED | F101: RENTAL RATES | G101: UNITS | H101: TIME USED | I101: TOTAL | M101: Total
F102: =(IF(A102>0,INDEX($U$17:$W$62,MATCH(A102&" "&B102,$T$17:$T$62,0),MATCH(G102,$U$16:$W$16,0)),"")) ->  | I102: =ROUND((SUM(F102)*H102),2) -> 0 | K102: Emergency/Initial Work | L102: FALSE | M102: =IF(L102=TRUE,$I$126,"") -> 
F103: =(IF(A103>0,INDEX($U$17:$W$62,MATCH(A103&" "&B103,$T$17:$T$62,0),MATCH(G103,$U$16:$W$16,0)),"")) ->  | I103: 0 | K103: Investigation Work | L103: FALSE | M103: =IF(L103=TRUE,$I$126,"") -> 
I104: 0 | K104: Monitoring/Interim Work | L104: FALSE
I105: 0 | K105: Corrective Action Plan Work | L105: FALSE
I106: 0
I107: 0 | K107: Emergency/Initial Work | L107: =IF(L102=TRUE,1,"") -> 
I108: 0 | K108: Investigation Work | L108: =IF(L103=TRUE,2,"") -> 
I109: 0 | K109: Monitoring/Interim Work | L109: =IF(L104=TRUE,3,"") -> 
I110: 0 | K110: Corrective Action Plan Work | L110: =IF(L105=TRUE,4,"") -> 
I111: 0
I112: 0
I113: 0
I114: 0
I115: 0
I116: 0
I117: 0
I118: 0
I119: 0
I120: 0
A121: USE SPACE BELOW FOR EQUIPMENT NOT LISTED ABOVE
I122: =ROUND((SUM(F122)*H122),2) -> 0
I123: 0
I124: 0
I125: 0 | K125: =IF(L102=TRUE,$O$16,IF(L103=TRUE,$O$17,IF(L104=TRUE,$O$18,IF(L105=TRUE,$O$19,0)))) -> 0
A126: SUBTOTAL OF THIS PAGE | I126: =SUM(I102:I125) -> 0
A127: TOTAL EQUIPMENT COSTS | I127: =SUM(I126) -> 0 | K127: =IF(I127>0,1,0) -> 0
A128: Page of (Equipment Rental/Purchase Supplementary Sheet)
A130: PART 5.C
A131: EQUIPMENT RENTAL/PURCHASE SUPPLEMENTARY SHEET
A132: Check Event:
A133: 1. This form should include all charges for outside rentals, contractor-owned rental equipment, and purchased equipment.
A134: 2. Treatment Units – Must provide a completed Treatment System Tracking Form (Part 7) & Purchase Agreement Form (Part 8).
A135: 3. Claims for rental of vehicles are not reimbursable.
A136: 4. Do not address the RAC markup on this page. Indicate the markup on the Miscellaneous Supplementary Sheet.
A137: 5. (No. of Units) X (Rental Rate) X (Hours Used At Site) = Total
A138: 6. Weekly rate goes into effect when equipment is used at a site for more than three days in a week (Monday – Sunday) . Daily
A139: rates are based on an 8-hour day. Equipment rental costs for more or less than an 8-hour day must be prorated.
A140: 7. Equipment charges for work activities included in unit pricing should not be included on this form.
A141: 8. Rental rates for contractor owned equipment are addressed in Appendix B, Table 2 of the Cost Control Guidance Document.
A142: 9. The rating of the following equipment must be provided: air Compressor – cfm, backhoe – bucket size, dump truck – yard
A143: capacity, trackhoe – horsepower, vacuum truck - horsepower.
A144: ITEM DESCRIPTION | B144: EQUIPMENT RATING (See note 9) | C144: RAC INVOICE NO. | D144: OUTSIDE INVOICE NO. | E144: DATES EQUIPMENT USED | F144: RENTAL RATES | G144: UNITS | H144: TIME USED | I144: TOTAL | M144: Total
F145: =(IF(A145>0,INDEX($U$17:$W$62,MATCH(A145&" "&B145,$T$17:$T$62,0),MATCH(G145,$U$16:$W$16,0)),"")) ->  | I145: =ROUND((SUM(F145)*H145),2) -> 0 | K145: Emergency/Initial Work | L145: FALSE | M145: =IF(L145=TRUE,$I$169,"") -> 
F146: =(IF(A146>0,INDEX($U$17:$W$62,MATCH(A146&" "&B146,$T$17:$T$62,0),MATCH(G146,$U$16:$W$16,0)),"")) ->  | I146: 0 | K146: Investigation Work | L146: FALSE | M146: =IF(L146=TRUE,$I$169,"") -> 
I147: 0 | K147: Monitoring/Interim Work | L147: FALSE
I148: 0 | K148: Corrective Action Plan Work | L148: FALSE
I149: 0
I150: 0 | K150: Emergency/Initial Work | L150: =IF(L145=TRUE,1,"") -> 
I151: 0 | K151: Investigation Work | L151: =IF(L146=TRUE,2,"") -> 
I152: 0 | K152: Monitoring/Interim Work | L152: =IF(L147=TRUE,3,"") -> 
I153: 0 | K153: Corrective Action Plan Work | L153: =IF(L148=TRUE,4,"") -> 
I154: 0
I155: 0
I156: 0
I157: 0
I158: 0
I159: 0
I160: 0
I161: 0
I162: 0
I163: 0
A164: USE SPACE BELOW FOR EQUIPMENT NOT LISTED ABOVE
I165: =ROUND((SUM(F165)*H165),2) -> 0
I166: 0
I167: 0
I168: 0 | K168: =IF(L145=TRUE,$O$16,IF(L146=TRUE,$O$17,IF(L147=TRUE,$O$18,IF(L148=TRUE,$O$19,0)))) -> 0
A169: SUBTOTAL OF THIS PAGE | I169: =SUM(I145:I168) -> 0
A170: TOTAL EQUIPMENT COSTS | I170: =SUM(I169) -> 0 | K170: =IF(I170>0,1,0) -> 0
A171: Page of (Equipment Rental/Purchase Supplementary Sheet)

Sheet Hotel & Food
A1: PART 5.D (1)
A2: TRAVEL SUPPLEMENTARY SHEET
A3: Check Event:
A5: LODGING/MEALS
A7: 1. Overnight stay is allowed for any continuous site work such as multiple site visits, treatment system installation, drilling/P&A
A8: wells, geoprobe work, over-excavation, soil treatment or multiple vacuum events of at least 6 hour.
A9: 2. Prior approval from the Trust Fund Management should be obtained for overnight stay for work other than that
A10: specifically identified in #1, above.
A11: 3. Meals are only reimbursable when overnight stay is required.
A12: 4. Claims for hotel charges must be accompanied by legible receipts indicating names of persons staying in a room. Do not
A13: provide charge card receipts. Names can not be added after the receipt is generated.
A14: 5. No RAC markup allowed
A15: 6. Single site visits: (Hotel Charges) + (Meal Charges) = Total
A16: 7. Multiple site visits: [(Hotel Charges) + (Meal Charges)] ÷ (No. Of Sites Visited) = Total
A17: 8. Airfares, toll charges, and taxi charges are not reimbursable.
A18: 9. Travel charge for work activities addressed in unit pricing should not be addressed on this form.
A19: RATES | C19: CURRENT MAXIMUM RATES
A20: Meals - Statewide | C20: $30/day
A21: Meals - New Orleans | C21: $35/day
A22: Hotel - Statewide | C22: $100/night (plus tax)
A23: Hotel - New Orleans | C23: $150/night (plus tax)
A24: Required Information- Check below the reason charges for overnight stay or meals are being requested:
A27: .
A28: LAST NAME OF PERSON | B28: RAC INVOICE NO. | C28: DATE(S) TRAVELED | D28: HOTEL CHARGES | E28: MEAL CHARGES | F28: NO. OF SITES VISITED | G28: TOTAL | K28: total | M28: Sheet total
G29: =ROUND(IF(F29=0,SUM(D29+E29),((D29+E29)/F29)),2) -> 0 | I29: Emergency/Initial Work | J29: FALSE | K29: =IF(J29=TRUE,$G$42,"") ->  | L29: Emergency/Initial Work | M29: =SUM(K29,K74,K119,K164,K209) -> 0
G30: =ROUND(IF(F30=0,SUM(D30+E30),((D30+E30)/F30)),2) -> 0 | I30: Investigation Work | J30: FALSE | K30: =IF(J30=TRUE,$G$42,"") ->  | L30: Investigation Work | M30: =SUM(K30,K75,K120,K165,K210) -> 0
G31: 0 | I31: Monitoring/Interim Work | J31: FALSE | L31: Monitoring/Interim Work | M31: =SUM(K31,K76,K121,K166,K211) -> 0
G32: 0 | I32: Corrective Action Plan Work | J32: FALSE | L32: Corrective Action Plan Work | M32: =SUM(K32,K77,K122,K167,K212) -> 0
G33: 0 | I33: Report Preparation | J33: FALSE | L33: Report Preparation | M33: =SUM(K33,K78,K123,K168,K213) -> 0
G34: 0 | I34: Emergency/Initial Work | J34: =IF(J29=TRUE,1,"") -> 
G35: 0 | I35: Investigation Work | J35: =IF(J30=TRUE,2,"") -> 
G36: 0 | I36: Monitoring/Interim Work | J36: =IF(J31=TRUE,3,"") -> 
G37: 0 | I37: Corrective Action Plan Work | J37: =IF(J32=TRUE,4,"") -> 
G38: 0 | I38: Report Preparation | J38: =IF(J33=TRUE,5,"") -> 
G39: 0
G40: 0
G41: 0 | I41: =IF(J29=TRUE,$M$29,IF(J30=TRUE,$M$30,IF(J31=TRUE,$M$31,IF(J32=TRUE,$M$32,IF(J33=TRUE,$M$33,0))))) -> 0
A42: SUBTOTAL OF THIS PAGE | G42: =SUM(G29:G41) -> 0 | I42: =SUM(I41) -> 0 | J42: =IF(I42>1,1,0) -> 0
A43: Page of (Travel Supplementary Sheet)
A46: PART 5.D (1)
A47: TRAVEL SUPPLEMENTARY SHEET
A48: Check Event:
A50: LODGING/MEALS
A52: 1. Overnight stay is allowed for any continuous site work such as multiple site visits, treatment system installation, drilling/P&A
A53: wells, geoprobe work, over-excavation, soil treatment or at least 6 hour vacuum events.
A54: 2. Prior approval from the Trust Fund Management should be obtained for overnight stay for work other than that
A55: specifically identified in #1, above.
A56: 3. Meals are only reimbursable when overnight stay is required.
A57: 4. Claims for hotel charges must be accompanied by legible receipts indicating names of persons staying in a room. Do not
A58: provide charge card receipts. Names can not be added after the receipt is generated.
A59: 5. No RAC markup allowed
A60: 6. Single site visits: (Hotel Charges) + (Meal Charges) = Total
A61: 7. Multiple site visits: [(Hotel Charges) + (Meal Charges)] ÷ (No. Of Sites Visited) = Total
A62: 8. Airfares, toll charges, and taxi charges are not reimbursable.
A63: 9. Travel charge for work activities addressed in unit pricing should not be addressed on this form.
A64: RATES | C64: 4/1/2012 MAXIMUM RATES
A65: Meals - Statewide | C65: $30/day
A66: Meals - New Orleans | C66: $35/day
A67: Hotel - Statewide | C67: $100/night (plus tax)
A68: Hotel - New Orleans | C68: $150/night (plus tax)
A69: Required Information- Check below the reason charges for overnight stay or meals are being requested:
A72: .
A73: LAST NAME OF PERSON | B73: RAC INVOICE NO. | C73: DATE(S) TRAVELED | D73: HOTEL CHARGES | E73: TOTAL MEAL CHARGES | F73: NO. OF SITES VISITED | G73: TOTAL | K73: total
G74: =ROUND(IF(F74=0,SUM(D74+E74),((D74+E74)/F74)),2) -> 0 | I74: Emergency/Initial Work | J74: FALSE | K74: =IF(J74=TRUE,$G$87,"") -> 
G75: =ROUND(IF(F75=0,SUM(D75+E75),((D75+E75)/F75)),2) -> 0 | I75: Investigation Work | J75: FALSE | K75: =IF(J75=TRUE,$G$87,"") -> 
G76: 0 | I76: Monitoring/Interim Work | J76: FALSE
G77: 0 | I77: Corrective Action Plan Work | J77: FALSE
G78: 0 | I78: Report Preparation | J78: FALSE
G79: 0 | I79: Emergency/Initial Work | J79: =IF(J74=TRUE,1,"") -> 
G80: 0 | I80: Investigation Work | J80: =IF(J75=TRUE,2,"") -> 
G81: 0 | I81: Monitoring/Interim Work | J81: =IF(J76=TRUE,3,"") -> 
G82: 0 | I82: Corrective Action Plan Work | J82: =IF(J77=TRUE,4,"") -> 
G83: 0 | I83: Report Preparation | J83: =IF(J78=TRUE,5,"") -> 
G84: 0
G85: 0
G86: 0 | I86: =IF(J74=TRUE,$M$29,IF(J75=TRUE,$M$30,IF(J76=TRUE,$M$31,IF(J77=TRUE,$M$32,IF(J78=TRUE,$M$33,0))))) -> 0
A87: SUBTOTAL OF THIS PAGE | G87: =SUM(G74:G86) -> 0 | I87: =SUM(I86) -> 0 | J87: =IF(I87>1,1,0) -> 0
A88: Page of (Travel Supplementary Sheet)
A91: PART 5.D (1)
A92: TRAVEL SUPPLEMENTARY SHEET
A93: Check Event:
A95: LODGING/MEALS
A97: 1. Overnight stay is allowed for any continuous site work such as multiple site visits, treatment system installation, drilling/P&A
A98: wells, geoprobe work, over-excavation, soil treatment or at least 6 hour vacuum events.
A99: 2. Prior approval from the Trust Fund Management should be obtained for overnight stay for work other than that
A100: specifically identified in #1, above.
A101: 3. Meals are only reimbursable when overnight stay is required.
A102: 4. Claims for hotel charges must be accompanied by legible receipts indicating names of persons staying in a room. Do not
A103: provide charge card receipts. Names can not be added after the receipt is generated.
A104: 5. No RAC markup allowed
A105: 6. Single site visits: (Hotel Charges) + (Meal Charges) = Total
A106: 7. Multiple site visits: [(Hotel Charges) + (Meal Charges)] ÷ (No. Of Sites Visited) = Total
A107: 8. Airfares, toll charges, and taxi charges are not reimbursable.
A108: 9. Travel charge for work activities addressed in unit pricing should not be addressed on this form.
A109: RATES | C109: 4/1/2012 MAXIMUM RATES
A110: Meals - Statewide | C110: $30/day
A111: Meals - New Orleans | C111: $35/day
A112: Hotel - Statewide | C112: $100/night (plus tax)
A113: Hotel - New Orleans | C113: $150/night (plus tax)
A114: Required Information- Check below the reason charges for overnight stay or meals are being requested:
A117: .
A118: LAST NAME OF PERSON | B118: RAC INVOICE NO. | C118: DATE(S) TRAVELED | D118: HOTEL CHARGES | E118: TOTAL MEAL CHARGES | F118: NO. OF SITES VISITED | G118: TOTAL | K118: total
G119: =ROUND(IF(F119=0,SUM(D119+E119),((D119+E119)/F119)),2) -> 0 | I119: Emergency/Initial Work | J119: FALSE | K119: =IF(J119=TRUE,$G$132,"") -> 
G120: =ROUND(IF(F120=0,SUM(D120+E120),((D120+E120)/F120)),2) -> 0 | I120: Investigation Work | J120: FALSE | K120: =IF(J120=TRUE,$G$132,"") -> 
G121: 0 | I121: Monitoring/Interim Work | J121: FALSE
G122: 0 | I122: Corrective Action Plan Work | J122: FALSE
G123: 0 | I123: Report Preparation | J123: FALSE
G124: 0 | I124: Emergency/Initial Work | J124: =IF(J119=TRUE,1,"") -> 
G125: 0 | I125: Investigation Work | J125: =IF(J120=TRUE,2,"") -> 
G126: 0 | I126: Monitoring/Interim Work | J126: =IF(J121=TRUE,3,"") -> 
G127: 0 | I127: Corrective Action Plan Work | J127: =IF(J122=TRUE,4,"") -> 
G128: 0 | I128: Report Preparation | J128: =IF(J123=TRUE,5,"") -> 
G129: 0
G130: 0
G131: 0 | I131: =IF(J119=TRUE,$M$29,IF(J120=TRUE,$M$30,IF(J121=TRUE,$M$31,IF(J122=TRUE,$M$32,IF(J123=TRUE,$M$33,0))))) -> 0
A132: SUBTOTAL OF THIS PAGE | G132: =SUM(G119:G131) -> 0 | I132: =SUM(I131) -> 0 | J132: =IF(I132>1,1,0) -> 0
A133: Page of (Travel Supplementary Sheet)
A136: PART 5.D (1)
A137: TRAVEL SUPPLEMENTARY SHEET
A138: Check Event:
A140: LODGING/MEALS
A142: 1. Overnight stay is allowed for any continuous site work such as multiple site visits, treatment system installation, drilling/P&A
A143: wells, geoprobe work, over-excavation, soil treatment or at least 6 hour vacuum events.
A144: 2. Prior approval from the Trust Fund Management should be obtained for overnight stay for work other than that
A145: specifically identified in #1, above.
A146: 3. Meals are only reimbursable when overnight stay is required.
A147: 4. Claims for hotel charges must be accompanied by legible receipts indicating names of persons staying in a room. Do not
A148: provide charge card receipts. Names can not be added after the receipt is generated.
A149: 5. No RAC markup allowed
A150: 6. Single site visits: (Hotel Charges) + (Meal Charges) = Total
A151: 7. Multiple site visits: [(Hotel Charges) + (Meal Charges)] ÷ (No. Of Sites Visited) = Total
A152: 8. Airfares, toll charges, and taxi charges are not reimbursable.
A153: 9. Travel charge for work activities addressed in unit pricing should not be addressed on this form.
A154: RATES | C154: 4/1/2012 MAXIMUM RATES
A155: Meals - Statewide | C155: $30/day
A156: Meals - New Orleans | C156: $35/day
A157: Hotel - Statewide | C157: $100/night (plus tax)
A158: Hotel - New Orleans | C158: $150/night (plus tax)
A159: Required Information- Check below the reason charges for overnight stay or meals are being requested:
A162: .
A163: LAST NAME OF PERSON | B163: RAC INVOICE NO. | C163: DATE(S) TRAVELED | D163: HOTEL CHARGES | E163: TOTAL MEAL CHARGES | F163: NO. OF SITES VISITED | G163: TOTAL | K163: total
G164: =ROUND(IF(F164=0,SUM(D164+E164),((D164+E164)/F164)),2) -> 0 | I164: Emergency/Initial Work | J164: FALSE | K164: =IF(J164=TRUE,$G$177,"") -> 
G165: =ROUND(IF(F165=0,SUM(D165+E165),((D165+E165)/F165)),2) -> 0 | I165: Investigation Work | J165: FALSE | K165: =IF(J165=TRUE,$G$177,"") -> 
G166: 0 | I166: Monitoring/Interim Work | J166: FALSE
G167: 0 | I167: Corrective Action Plan Work | J167: FALSE
G168: 0 | I168: Report Preparation | J168: FALSE
G169: 0 | I169: Emergency/Initial Work | J169: =IF(J164=TRUE,1,"") -> 
G170: 0 | I170: Investigation Work | J170: =IF(J165=TRUE,2,"") -> 
G171: 0 | I171: Monitoring/Interim Work | J171: =IF(J166=TRUE,3,"") -> 
G172: 0 | I172: Corrective Action Plan Work | J172: =IF(J167=TRUE,4,"") -> 
G173: 0 | I173: Report Preparation | J173: =IF(J168=TRUE,5,"") -> 
G174: 0
G175: 0
G176: 0 | I176: =IF(J164=TRUE,$M$29,IF(J165=TRUE,$M$30,IF(J166=TRUE,$M$31,IF(J167=TRUE,$M$32,IF(J168=TRUE,$M$33,0))))) -> 0
A177: SUBTOTAL OF THIS PAGE | G177: =SUM(G164:G176) -> 0 | I177: =SUM(I176) -> 0 | J177: =IF(I177>1,1,0) -> 0
A178: Page of (Travel Supplementary Sheet)
A181: PART 5.D (1)
A182: TRAVEL SUPPLEMENTARY SHEET
A183: Check Event:
A185: LODGING/MEALS
A187: 1. Overnight stay is allowed for any continuous site work such as multiple site visits, treatment system installation, drilling/P&A
A188: wells, geoprobe work, over-excavation, soil treatment or at least 6 hour vacuum events.
A189: 2. Prior approval from the Trust Fund Management should be obtained for overnight stay for work other than that
A190: specifically identified in #1, above.
A191: 3. Meals are only reimbursable when overnight stay is required.
A192: 4. Claims for hotel charges must be accompanied by legible receipts indicating names of persons staying in a room. Do not
A193: provide charge card receipts. Names can not be added after the receipt is generated.
A194: 5. No RAC markup allowed
A195: 6. Single site visits: (Hotel Charges) + (Meal Charges) = Total
A196: 7. Multiple site visits: [(Hotel Charges) + (Meal Charges)] ÷ (No. Of Sites Visited) = Total
A197: 8. Airfares, toll charges, and taxi charges are not reimbursable.
A198: 9. Travel charge for work activities addressed in unit pricing should not be addressed on this form.
A199: RATES | C199: 4/1/2012 MAXIMUM RATES
A200: Meals - Statewide | C200: $30/day
A201: Meals - New Orleans | C201: $35/day
A202: Hotel - Statewide | C202: $100/night (plus tax)
A203: Hotel - New Orleans | C203: $150/night (plus tax)
A204: Required Information- Check below the reason charges for overnight stay or meals are being requested:
A207: .
A208: LAST NAME OF PERSON | B208: RAC INVOICE NO. | C208: DATE(S) TRAVELED | D208: HOTEL CHARGES | E208: TOTAL MEAL CHARGES | F208: NO. OF SITES VISITED | G208: TOTAL | K208: total
G209: =ROUND(IF(F209=0,SUM(D209+E209),((D209+E209)/F209)),2) -> 0 | I209: Emergency/Initial Work | J209: FALSE | K209: =IF(J209=TRUE,$G$222,"") -> 
G210: =ROUND(IF(F210=0,SUM(D210+E210),((D210+E210)/F210)),2) -> 0 | I210: Investigation Work | J210: FALSE | K210: =IF(J210=TRUE,$G$222,"") -> 
G211: 0 | I211: Monitoring/Interim Work | J211: FALSE
G212: 0 | I212: Corrective Action Plan Work | J212: FALSE
G213: 0 | I213: Report Preparation | J213: FALSE
G214: 0 | I214: Emergency/Initial Work | J214: =IF(J209=TRUE,1,"") -> 
G215: 0 | I215: Investigation Work | J215: =IF(J210=TRUE,2,"") -> 
G216: 0 | I216: Monitoring/Interim Work | J216: =IF(J211=TRUE,3,"") -> 
G217: 0 | I217: Corrective Action Plan Work | J217: =IF(J212=TRUE,4,"") -> 
G218: 0 | I218: Report Preparation | J218: =IF(J213=TRUE,5,"") -> 
G219: 0
G220: 0
G221: 0 | I221: =IF(J209=TRUE,$M$29,IF(J210=TRUE,$M$30,IF(J211=TRUE,$M$31,IF(J212=TRUE,$M$32,IF(J213=TRUE,$M$33,0))))) -> 0
A222: SUBTOTAL OF THIS PAGE | G222: =SUM(G209:G221) -> 0 | I222: =SUM(I221) -> 0 | J222: =IF(I222>1,1,0) -> 0
A223: Page of (Travel Supplementary Sheet)

Sheet Travel
A1: PART 5.D (2)
A2: TRAVEL SUPPLEMENTARY SHEET | L2: Hotal Total | M2: Milage 2 total | N2: Travel total
A3: Check Event: | K3: Emergency/Initial Work | L3: ='Hotel & Food'!M29 -> 0 | M3: =O16 -> 0 | N3: =SUM(L3:M3) -> 0
K4: Investigation Work | L4: ='Hotel & Food'!M30 -> 0 | M4: =O17 -> 0 | N4: =SUM(L4:M4) -> 0
A5: UNIT PRICE TRAVEL | K5: Monitoring/Interim Work | L5: ='Hotel & Food'!M31 -> 0 | M5: =O18 -> 0 | N5: 0
A6: (The unit price addresses costs associated with vehicle mileage and employees’ travel time) | K6: Corrective Action Plan Work | L6: ='Hotel & Food'!M32 -> 0 | M6: =O19 -> 0 | N6: 0
A7: 1. When multiple sites are visited in a single day, the total mileage shall be divided by the number of sites visited. | K7: Report Preparation | L7: ='Hotel & Food'!M33 -> 0 | M7: =O20 -> 0 | N7: 0
A8: Total Mileage should be rounded UP to a whole number and adjusted mileage should be rounded to two (2) decimal places.
A9: 2. Activity Performed Codes:
A10: 1 - Groundwater Sampling, Free Product Recovery (Handbailing of Wells), Gauging, Treatment Unit Operation & Maintenance,
A11: Discharge Sampling, Drilling/Plugging and Abandonment;
A12: 2 - Excavation, System Installation, Major Renovation, Major Repair, Site Investigation, Soil Confirmation Sampling;
A13: 3 - Non-Unit Price Activity (Charged Time/Materials)
A14: ACTIVITY PERFORMED | B14: DATE Sort By Oldest to Newest | C14: DESTINATION Show Beginning, Interim, Ending Areas Traveled (Ex.:BR, Rayne, Lafayette, BR.) | D14: RAC INVOICE NO. | E14: TOTAL MILEAGE | F14: Complete these columns only when multiple site visits occurred | H14: RATE | I14: TOTAL
F15: NO. OF SITES VISITED | G15: ADJUSTED MILEAGE | M15: total | O15: sheet total
G16: =IF(F16=0,"",ROUND(E16/F16,2)) ->  | H16: 2 | I16: =ROUND(IF(F16=0,E16*H16,G16*H16),2) -> 0 | K16: Emergency/Initial Work | L16: FALSE | M16: =IF(L16=TRUE,$I$39,"") ->  | N16: Emergency/Initial Work | O16: =SUM(M16,M58,M100,M142,M184) -> 0
G17: =IF(F17=0,"",ROUND(E17/F17,2)) ->  | H17: 2 | I17: =ROUND(IF(F17=0,E17*H17,G17*H17),2) -> 0 | K17: Investigation Work | L17: FALSE | M17: =IF(L17=TRUE,$I$39,"") ->  | N17: Investigation Work | O17: =SUM(M17,M59,M101,M143,M185) -> 0
H18: 2 | I18: 0 | K18: Monitoring/Interim Work | L18: FALSE | N18: Monitoring/Interim Work | O18: =SUM(M18,M60,M102,M144,M186) -> 0
H19: 2 | I19: 0 | K19: Corrective Action Plan Work | L19: FALSE | N19: Corrective Action Plan Work | O19: =SUM(M19,M61,M103,M145,M187) -> 0
H20: 2 | I20: 0 | K20: Report Preparation | L20: FALSE | N20: Report Preparation | O20: =SUM(M20,M62,M104,M146,M188) -> 0
H21: 2 | I21: 0 | K21: Emergency/Initial Work | L21: =IF(L16=TRUE,1,"") -> 
H22: 2 | I22: 0 | K22: Investigation Work | L22: =IF(L17=TRUE,2,"") -> 
H23: 2 | I23: 0 | K23: Monitoring/Interim Work | L23: =IF(L18=TRUE,3,"") -> 
H24: 2 | I24: 0 | K24: Corrective Action Plan Work | L24: =IF(L19=TRUE,4,"") -> 
H25: 2 | I25: 0 | K25: Report Preparation | L25: =IF(L20=TRUE,5,"") -> 
H26: 2 | I26: 0
H27: 2 | I27: 0
H28: 2 | I28: 0
H29: 2 | I29: 0
H30: 2 | I30: 0
H31: 2 | I31: 0
H32: 2 | I32: 0
H33: 2 | I33: 0
H34: 2 | I34: 0
H35: 2 | I35: 0
H36: 2 | I36: 0
H37: 2 | I37: 0
H38: 2 | I38: 0 | K38: =IF(L16=TRUE,$N$3,IF(L17=TRUE,$N$4,IF(L18=TRUE,$N$5,IF(L19=TRUE,$N$6,IF(L20=TRUE,$N$7,0))))) -> 0
A39: SUBTOTAL OF THIS PAGE | I39: =SUM(I16:I38) -> 0
A40: TOTAL TRAVEL | I40: =SUM(K38) -> 0 | K40: =IF(I40>0,1,0) -> 0
A41: Page of (Travel Supplementary Sheet)
A43: PART 5.D (2)
A44: TRAVEL SUPPLEMENTARY SHEET
A45: Check Event:
A47: UNIT PRICE TRAVEL
A48: (The unit price addresses costs associated with vehicle mileage and employees’ travel time)
A49: 1. When multiple sites are visited in a single day, the total mileage shall be divided by the number of sites visited.
A50: Total Mileage should be rounded UP to a whole number and adjusted mileage should be rounded to two (2) decimal places.
A51: 2. Activity Performed Codes:
A52: 1 - Groundwater Sampling, Free Product Recovery (Handbailing of Wells), Gauging, Treatment Unit Operation & Maintenance,
A53: Discharge Sampling, Drilling/Plugging and Abandonment;
A54: 2 - Excavation, System Installation, Major Renovation, Major Repair, Site Investigation, Soil Confirmation Sampling;
A55: 3 - Non-Unit Price Activity (Charged Time/Materials)
A56: ACTIVITY PERFORMED | B56: DATE Sort By Oldest to Newest | C56: DESTINATION Show Beginning, Interim, Ending Areas Traveled (Ex.:BR, Rayne, Lafayette, BR.) | D56: RAC INVOICE NO. | E56: TOTAL MILEAGE | F56: Complete these columns only when multiple site visits occurred | H56: RATE | I56: TOTAL
F57: NO. OF SITES VISITED | G57: ADJUSTED MILEAGE | M57: total
G58: =IF(F58=0,"",ROUND(E58/F58,2)) ->  | H58: 2 | I58: =ROUND(IF(F58=0,E58*H58,G58*H58),2) -> 0 | K58: Emergency/Initial Work | L58: FALSE | M58: =IF(L58=TRUE,$I$81,"") -> 
H59: 2 | I59: 0 | K59: Investigation Work | L59: FALSE | M59: =IF(L59=TRUE,$I$81,"") -> 
H60: 2 | I60: 0 | K60: Monitoring/Interim Work | L60: FALSE
H61: 2 | I61: 0 | K61: Corrective Action Plan Work | L61: FALSE
H62: 2 | I62: 0 | K62: Report Preparation | L62: FALSE
H63: 2 | I63: 0 | K63: Emergency/Initial Work | L63: =IF(L58=TRUE,1,"") -> 
H64: 2 | I64: 0 | K64: Investigation Work | L64: =IF(L59=TRUE,2,"") -> 
H65: 2 | I65: 0 | K65: Monitoring/Interim Work | L65: =IF(L60=TRUE,3,"") -> 
H66: 2 | I66: 0 | K66: Corrective Action Plan Work | L66: =IF(L61=TRUE,4,"") -> 
H67: 2 | I67: 0 | K67: Report Preparation | L67: =IF(L62=TRUE,5,"") -> 
H68: 2 | I68: 0
H69: 2 | I69: 0
H70: 2 | I70: 0
H71: 2 | I71: 0
H72: 2 | I72: 0
H73: 2 | I73: 0
H74: 2 | I74: 0
H75: 2 | I75: 0
H76: 2 | I76: 0
H77: 2 | I77: 0
H78: 2 | I78: 0
H79: 2 | I79: 0
H80: 2 | I80: 0 | K80: =IF(L58=TRUE,$N$3,IF(L59=TRUE,$N$4,IF(L60=TRUE,$N$5,IF(L61=TRUE,$N$6,IF(L62=TRUE,$N$7,0))))) -> 0
A81: SUBTOTAL OF THIS PAGE | I81: =SUM(I58:I80) -> 0
A82: TOTAL TRAVEL | I82: =SUM(K80) -> 0 | K82: =IF(I82>0,1,0) -> 0
A83: Page of (Travel Supplementary Sheet)
A85: PART 5.D (2)
A86: TRAVEL SUPPLEMENTARY SHEET
A87: Check Event:
A89: UNIT PRICE TRAVEL
A90: (The unit price addresses costs associated with vehicle mileage and employees’ travel time)
A91: 1. When multiple sites are visited in a single day, the total mileage shall be divided by the number of sites visited.
A92: Total Mileage should be rounded UP to a whole number and adjusted mileage should be rounded to two (2) decimal places.
A93: 2. Activity Performed Codes:
A94: 1 - Groundwater Sampling, Free Product Recovery (Handbailing of Wells), Gauging, Treatment Unit Operation & Maintenance,
A95: Discharge Sampling, Drilling/Plugging and Abandonment;
A96: 2 - Excavation, System Installation, Major Renovation, Major Repair, Site Investigation, Soil Confirmation Sampling;
A97: 3 - Non-Unit Price Activity (Charged Time/Materials)
A98: ACTIVITY PERFORMED | B98: DATE Sort By Oldest to Newest | C98: DESTINATION Show Beginning, Interim, Ending Areas Traveled (Ex.:BR, Rayne, Lafayette, BR.) | D98: RAC INVOICE NO. | E98: TOTAL MILEAGE | F98: Complete these columns only when multiple site visits occurred | H98: RATE | I98: TOTAL
F99: NO. OF SITES VISITED | G99: ADJUSTED MILEAGE | M99: total
G100: =IF(F100=0,"",ROUND(E100/F100,2)) ->  | H100: 2 | I100: =ROUND(IF(F100=0,E100*H100,G100*H100),2) -> 0 | K100: Emergency/Initial Work | L100: FALSE | M100: =IF(L100=TRUE,$I$123,"") -> 
H101: 2 | I101: 0 | K101: Investigation Work | L101: FALSE | M101: =IF(L101=TRUE,$I$123,"") -> 
H102: 2 | I102: 0 | K102: Monitoring/Interim Work | L102: FALSE
H103: 2 | I103: 0 | K103: Corrective Action Plan Work | L103: FALSE
H104: 2 | I104: 0 | K104: Report Preparation | L104: FALSE
H105: 2 | I105: 0 | K105: Emergency/Initial Work | L105: =IF(L100=TRUE,1,"") -> 
H106: 2 | I106: 0 | K106: Investigation Work | L106: =IF(L101=TRUE,2,"") -> 
H107: 2 | I107: 0 | K107: Monitoring/Interim Work | L107: =IF(L102=TRUE,3,"") -> 
H108: 2 | I108: 0 | K108: Corrective Action Plan Work | L108: =IF(L103=TRUE,4,"") -> 
H109: 2 | I109: 0 | K109: Report Preparation | L109: =IF(L104=TRUE,5,"") -> 
H110: 2 | I110: 0
H111: 2 | I111: 0
H112: 2 | I112: 0
H113: 2 | I113: 0
H114: 2 | I114: 0
H115: 2 | I115: 0
H116: 2 | I116: 0
H117: 2 | I117: 0
H118: 2 | I118: 0
H119: 2 | I119: 0
H120: 2 | I120: 0
H121: 2 | I121: 0
H122: 2 | I122: 0 | K122: =IF(L100=TRUE,$N$3,IF(L101=TRUE,$N$4,IF(L102=TRUE,$N$5,IF(L103=TRUE,$N$6,IF(L104=TRUE,$N$7,0))))) -> 0
A123: SUBTOTAL OF THIS PAGE | I123: =SUM(I100:I122) -> 0
A124: TOTAL TRAVEL | I124: =SUM(K122) -> 0 | K124: =IF(I124>0,1,0) -> 0
A125: Page of (Travel Supplementary Sheet)
A127: PART 5.D (2)
A128: TRAVEL SUPPLEMENTARY SHEET
A129: Check Event:
A131: UNIT PRICE TRAVEL
A132: (The unit price addresses costs associated with vehicle mileage and employees’ travel time)
A133: 1. When multiple sites are visited in a single day, the total mileage shall be divided by the number of sites visited.
A134: Total Mileage should be rounded UP to a whole number and adjusted mileage should be rounded to two (2) decimal places.
A135: 2. Activity Performed Codes:
A136: 1 - Groundwater Sampling, Free Product Recovery (Handbailing of Wells), Gauging, Treatment Unit Operation & Maintenance,
A137: Discharge Sampling, Drilling/Plugging and Abandonment;
A138: 2 - Excavation, System Installation, Major Renovation, Major Repair, Site Investigation, Soil Confirmation Sampling;
A139: 3 - Non-Unit Price Activity (Charged Time/Materials)
A140: ACTIVITY PERFORMED | B140: DATE Sort By Oldest to Newest | C140: DESTINATION Show Beginning, Interim, Ending Areas Traveled (Ex.:BR, Rayne, Lafayette, BR.) | D140: RAC INVOICE NO. | E140: TOTAL MILEAGE | F140: Complete these columns only when multiple site visits occurred | H140: RATE | I140: TOTAL
F141: NO. OF SITES VISITED | G141: ADJUSTED MILEAGE | M141: total
G142: =IF(F142=0,"",ROUND(E142/F142,2)) ->  | H142: 2 | I142: =ROUND(IF(F142=0,E142*H142,G142*H142),2) -> 0 | K142: Emergency/Initial Work | L142: FALSE | M142: =IF(L142=TRUE,$I$165,"") -> 
H143: 2 | I143: 0 | K143: Investigation Work | L143: FALSE | M143: =IF(L143=TRUE,$I$165,"") -> 
H144: 2 | I144: 0 | K144: Monitoring/Interim Work | L144: FALSE
H145: 2 | I145: 0 | K145: Corrective Action Plan Work | L145: FALSE
H146: 2 | I146: 0 | K146: Report Preparation | L146: FALSE
H147: 2 | I147: 0 | K147: Emergency/Initial Work | L147: =IF(L142=TRUE,1,"") -> 
H148: 2 | I148: 0 | K148: Investigation Work | L148: =IF(L143=TRUE,2,"") -> 
H149: 2 | I149: 0 | K149: Monitoring/Interim Work | L149: =IF(L144=TRUE,3,"") -> 
H150: 2 | I150: 0 | K150: Corrective Action Plan Work | L150: =IF(L145=TRUE,4,"") -> 
H151: 2 | I151: 0 | K151: Report Preparation | L151: =IF(L146=TRUE,5,"") -> 
H152: 2 | I152: 0
H153: 2 | I153: 0
H154: 2 | I154: 0
H155: 2 | I155: 0
H156: 2 | I156: 0
H157: 2 | I157: 0
H158: 2 | I158: 0
H159: 2 | I159: 0
H160: 2 | I160: 0
H161: 2 | I161: 0
H162: 2 | I162: 0
H163: 2 | I163: 0
H164: 2 | I164: 0 | K164: =IF(L142=TRUE,$N$3,IF(L143=TRUE,$N$4,IF(L144=TRUE,$N$5,IF(L145=TRUE,$N$6,IF(L146=TRUE,$N$7,0))))) -> 0
A165: SUBTOTAL OF THIS PAGE | I165: =SUM(I142:I164) -> 0
A166: TOTAL TRAVEL | I166: =SUM(K164) -> 0 | K166: =IF(I166>0,1,0) -> 0
A167: Page of (Travel Supplementary Sheet)
A169: PART 5.D (2)
A170: TRAVEL SUPPLEMENTARY SHEET
A171: Check Event:
A173: UNIT PRICE TRAVEL
A174: (The unit price addresses costs associated with vehicle mileage and employees’ travel time)
A175: 1. When multiple sites are visited in a single day, the total mileage shall be divided by the number of sites visited.
A176: Total Mileage should be rounded UP to a whole number and adjusted mileage should be rounded to two (2) decimal places.
A177: 2. Activity Performed Codes:
A178: 1 - Groundwater Sampling, Free Product Recovery (Handbailing of Wells), Gauging, Treatment Unit Operation & Maintenance,
A179: Discharge Sampling, Drilling/Plugging and Abandonment;
A180: 2 - Excavation, System Installation, Major Renovation, Major Repair, Site Investigation, Soil Confirmation Sampling;
A181: 3 - Non-Unit Price Activity (Charged Time/Materials)
A182: ACTIVITY PERFORMED | B182: DATE Sort By Oldest to Newest | C182: DESTINATION Show Beginning, Interim, Ending Areas Traveled (Ex.:BR, Rayne, Lafayette, BR.) | D182: RAC INVOICE NO. | E182: TOTAL MILEAGE | F182: Complete these columns only when multiple site visits occurred | H182: RATE | I182: TOTAL
F183: NO. OF SITES VISITED | G183: ADJUSTED MILEAGE | M183: total
G184: =IF(F184=0,"",ROUND(E184/F184,2)) ->  | H184: 2 | I184: =ROUND(IF(F184=0,E184*H184,G184*H184),2) -> 0 | K184: Emergency/Initial Work | L184: FALSE | M184: =IF(L184=TRUE,$I$207,"") -> 
H185: 2 | I185: 0 | K185: Investigation Work | L185: FALSE | M185: =IF(L185=TRUE,$I$207,"") -> 
H186: 2 | I186: 0 | K186: Monitoring/Interim Work | L186: FALSE
H187: 2 | I187: 0 | K187: Corrective Action Plan Work | L187: FALSE
H188: 2 | I188: 0 | K188: Report Preparation | L188: FALSE
H189: 2 | I189: 0 | K189: Emergency/Initial Work | L189: =IF(L184=TRUE,1,"") -> 
H190: 2 | I190: 0 | K190: Investigation Work | L190: =IF(L185=TRUE,2,"") -> 
H191: 2 | I191: 0 | K191: Monitoring/Interim Work | L191: =IF(L186=TRUE,3,"") -> 
H192: 2 | I192: 0 | K192: Corrective Action Plan Work | L192: =IF(L187=TRUE,4,"") -> 
H193: 2 | I193: 0 | K193: Report Preparation | L193: =IF(L188=TRUE,5,"") -> 
H194: 2 | I194: 0
H195: 2 | I195: 0
H196: 2 | I196: 0
H197: 2 | I197: 0
H198: 2 | I198: 0
H199: 2 | I199: 0
H200: 2 | I200: 0
H201: 2 | I201: 0
H202: 2 | I202: 0
H203: 2 | I203: 0
H204: 2 | I204: 0
H205: 2 | I205: 0
H206: 2 | I206: 0 | K206: =IF(L184=TRUE,$N$3,IF(L185=TRUE,$N$4,IF(L186=TRUE,$N$5,IF(L187=TRUE,$N$6,IF(L188=TRUE,$N$7,0))))) -> 0
A207: SUBTOTAL OF THIS PAGE | I207: =SUM(I184:I206) -> 0
A208: TOTAL TRAVEL | I208: =SUM(K206) -> 0 | K208: =IF(I208>0,1,0) -> 0
... 1 more rows

Sheet Transportation&Shipping
A1: PART 5.E
A2: TRANSPORTATION/SHIPPING SUPPLEMENTARY SHEET
A3: Check Event:
A5: 1. This form should include shipping charges for contaminated soils and/or water, shipping charges for laboratory analysis, and
A6: mob/demob of equipment used, other than for well drilling, plugging/abandonment, geoprobe work.
A7: 2. Do not address RAC markup on this sheet. RAC markup is to be shown on the Miscellaneous Supplementary Sheet.
A8: 3. If a single invoice addresses charges for multiple sites, indicate on the invoice each site name and the amount charged to
A9: each site.
A10: 4. Rush charges not required by DEQ will not be paid.
A11: 5. Transportation charges for work activities addressed in unit pricing should not be addressed on this form.
A12: DESCRIPTION OF EACH ITEM SHIPPED | B12: RAC INVOICE NO. | C12: OUTSIDE INVOICE NO. | D12: TOTAL
F13: Emergency/Initial Work | G13: FALSE | H13: =IF(G13=TRUE,$D$40,"") ->  | I13: Emergency/Initial Work | J13: =SUM(H13,H56,H99,H142) -> 0
F14: Investigation Work | G14: FALSE | H14: =IF(G14=TRUE,$D$40,"") ->  | I14: Investigation Work | J14: =SUM(H14,H57,H100,H143) -> 0
F15: Monitoring/Interim Work | G15: FALSE | I15: Monitoring/Interim Work | J15: =SUM(H15,H58,H101,H144) -> 0
F16: Corrective Action Plan Work | G16: FALSE | I16: Corrective Action Plan Work | J16: =SUM(H16,H59,H102,H145) -> 0
F18: Emergency/Initial Work | G18: =IF(G13=TRUE,1,"") -> 
F19: Investigation Work | G19: =IF(G14=TRUE,2,"") -> 
F20: Monitoring/Interim Work | G20: =IF(G15=TRUE,3,"") -> 
F21: Corrective Action Plan Work | G21: =IF(G16=TRUE,4,"") -> 
F39: =IF(G13=TRUE,$J$13,IF(G14=TRUE,$J$14,IF(G15=TRUE,$J$15,IF(G16=TRUE,$J$16,0)))) -> 0
A40: SUBTOTAL OF THIS PAGE | D40: =SUM(D13:D38) -> 0
A41: TOTAL TRANSPORTATION/SHIPPING COSTS | D41: =SUM(F39) -> 0 | F41: =IF(D41>0,1,0) -> 0
A42: Page of (Transportation/Shipping Supplementary Sheet)
A44: PART 5.E
A45: TRANSPORTATION/SHIPPING SUPPLEMENTARY SHEET
A46: Check Event:
A48: 1. This form should include shipping charges for contaminated soils and/or water; shipping charges for laboratory analysis,
A49: moblization and demobilization of equipment used other than for well drilling, plugging/abandonment, geoprobe work
A50: 2. Do not address RAC markup on this sheet. RAC markup is to be shown on the Miscellaneous Supplementary Sheet.
A51: 3. If a single invoice addresses charges for multiple sites, indicate on the invoice each site name and the amount charged to
A52: each site.
A53: 4. Rush charges not required by DEQ will not be paid.
A54: 5. Transportation charges for work activities addressed in unit pricing should not be addressed on this form.
A55: DESCRIPTION OF EACH ITEM SHIPPED | B55: RAC INVOICE NO. | C55: OUTSIDE INVOICE NO. | D55: TOTAL
F56: Emergency/Initial Work | G56: FALSE | H56: =IF(G56=TRUE,$D$83,"") -> 
F57: Investigation Work | G57: FALSE | H57: =IF(G57=TRUE,$D$83,"") -> 
F58: Monitoring/Interim Work | G58: FALSE
F59: Corrective Action Plan Work | G59: FALSE
F61: Emergency/Initial Work | G61: =IF(G56=TRUE,1,"") -> 
F62: Investigation Work | G62: =IF(G57=TRUE,2,"") -> 
F63: Monitoring/Interim Work | G63: =IF(G58=TRUE,3,"") -> 
F64: Corrective Action Plan Work | G64: =IF(G59=TRUE,4,"") -> 
F82: =IF(G56=TRUE,$J$13,IF(G57=TRUE,$J$14,IF(G58=TRUE,$J$15,IF(G59=TRUE,$J$16,0)))) -> 0
A83: SUBTOTAL OF THIS PAGE | D83: =SUM(D56:D81) -> 0
A84: TOTAL TRANSPORTATION/SHIPPING COSTS | D84: =SUM(F82) -> 0 | F84: =IF(D84>0,1,0) -> 0
A85: Page of (Transportation/Shipping Supplementary Sheet)
A87: PART 5.E
A88: TRANSPORTATION/SHIPPING SUPPLEMENTARY SHEET
A89: Check Event:
A91: 1. This form should include shipping charges for contaminated soils and/or water; shipping charges for laboratory analysis,
A92: moblization and demobilization of equipment used other than for well drilling, plugging/abandonment, geoprobe work
A93: 2. Do not address RAC markup on this sheet. RAC markup is to be shown on the Miscellaneous Supplementary Sheet.
A94: 3. If a single invoice addresses charges for multiple sites, indicate on the invoice each site name and the amount charged to
A95: each site.
A96: 4. Rush charges not required by DEQ will not be paid.
A97: 5. Transportation charges for work activities addressed in unit pricing should not be addressed on this form.
A98: DESCRIPTION OF EACH ITEM SHIPPED | B98: RAC INVOICE NO. | C98: OUTSIDE INVOICE NO. | D98: TOTAL
F99: Emergency/Initial Work | G99: FALSE | H99: =IF(G99=TRUE,$D$126,"") -> 
F100: Investigation Work | G100: FALSE | H100: =IF(G100=TRUE,$D$126,"") -> 
F101: Monitoring/Interim Work | G101: FALSE
F102: Corrective Action Plan Work | G102: FALSE
F104: Emergency/Initial Work | G104: =IF(G99=TRUE,1,"") -> 
F105: Investigation Work | G105: =IF(G100=TRUE,2,"") -> 
F106: Monitoring/Interim Work | G106: =IF(G101=TRUE,3,"") -> 
F107: Corrective Action Plan Work | G107: =IF(G102=TRUE,4,"") -> 
F125: =IF(G99=TRUE,$J$13,IF(G100=TRUE,$J$14,IF(G101=TRUE,$J$15,IF(G102=TRUE,$J$16,0)))) -> 0
A126: SUBTOTAL OF THIS PAGE | D126: =SUM(D99:D124) -> 0
A127: TOTAL TRANSPORTATION/SHIPPING COSTS | D127: =SUM(F125) -> 0 | F127: =IF(D127>0,1,0) -> 0
A128: Page of (Transportation/Shipping Supplementary Sheet)
A130: PART 5.E
A131: TRANSPORTATION/SHIPPING SUPPLEMENTARY SHEET
A132: Check Event:
A134: 1. This form should include shipping charges for contaminated soils and/or water; shipping charges for laboratory analysis,
A135: moblization and demobilization of equipment used other than for well drilling, plugging/abandonment, geoprobe work
A136: 2. Do not address RAC markup on this sheet. RAC markup is to be shown on the Miscellaneous Supplementary Sheet.
A137: 3. If a single invoice addresses charges for multiple sites, indicate on the invoice each site name and the amount charged to
A138: each site.
A139: 4. Rush charges not required by DEQ will not be paid.
A140: 5. Transportation charges for work activities addressed in unit pricing should not be addressed on this form.
A141: DESCRIPTION OF EACH ITEM SHIPPED | B141: RAC INVOICE NO. | C141: OUTSIDE INVOICE NO. | D141: TOTAL
F142: Emergency/Initial Work | G142: FALSE | H142: =IF(G142=TRUE,$D$169,"") -> 
F143: Investigation Work | G143: FALSE | H143: =IF(G143=TRUE,$D$169,"") -> 
F144: Monitoring/Interim Work | G144: FALSE
F145: Corrective Action Plan Work | G145: FALSE
F147: Emergency/Initial Work | G147: =IF(G142=TRUE,1,"") -> 
F148: Investigation Work | G148: =IF(G143=TRUE,2,"") -> 
F149: Monitoring/Interim Work | G149: =IF(G144=TRUE,3,"") -> 
F150: Corrective Action Plan Work | G150: =IF(G145=TRUE,4,"") -> 
F168: =IF(G142=TRUE,$J$13,IF(G143=TRUE,$J$14,IF(G144=TRUE,$J$15,IF(G145=TRUE,$J$16,0)))) -> 0
A169: SUBTOTAL OF THIS PAGE | D169: =SUM(D142:D167) -> 0
A170: TOTAL TRANSPORTATION/SHIPPING COSTS | D170: =SUM(F168) -> 0 | F170: =IF(D170>0,1,0) -> 0
A171: Page of (Transportation/Shipping Supplementary Sheet)

Sheet Drilling-P&A
A1: PART 5.F
A2: DRILLING/PLUGGING & ABANDONMENT SUPPLEMENTARY SHEET
A3: Check Event:
A4: 1. The per foot rates encompass all costs associated with drilling or plugging & abandoning of wells, borings, and
A5: recovery wells with the exceptions of mileage, mob/demob unit price, analysis, and transportation and disposal of cuttings.
A6: 2. Depth of (Boring or Well) X Cost Per Foot = Total.
A7: 3. If a boring is converted to a monitoring well, it should be noted on this sheet. When a boring is converted to a monitoring
A8: well, the Department will pay only for the monitoring well cost.
A9: 4. Please reduce the applicable cost per foot rate by $15/foot, if soil samples were not taken, prior to calculating the row total
A10: 5. Include drilling logs, well registrations, and plugging and abandonment forms as required.
A11: 6. Methods of Plugging and Abandonment Wells (P&A) - In “P&A Wells” column, enter
A12: 1 if P&A includes overdrilling of wells
A13: 2 if P&A was limited to pulling casing/screen and grouting well
A14: 3 if well is grouted only
A15: 7. If a minimum rate, or per day rate for chemical injection, is being charged, please indicate the number of events next to the
A16: appropriate activity. All well/activity information must still be documented, excluding the Cost Per Foot Rate; this includes
A17: listing the dates of chemical injection events.
A18: WELL/BORING IDENTIFICATION NUMBER (As shown in technical reports to DEQ) | B18: DATE OF ACTIVITY | C18: TYPE OF ACTIVITY | D18: RAC INVOICE NO. | E18: P&A WELLS (Enter 1, 2, or 3; see note 6) | F18: WELL DIAMETER (inches) | G18: DEPTH (in feet) | H18: COST PER FOOT RATE | I18: TOTAL
I19: =ROUND((G19*H19),2) -> 0 | K19: Emergency/Initial Work | L19: FALSE | M19: =IF(L19=TRUE,$I$39,"") ->  | N19: Emergency/Initial Work | O19: =SUM(M19,M60,M101,M142) -> 0
I20: =ROUND((G20*H20),2) -> 0 | K20: Investigation Work | L20: FALSE | M20: =IF(L20=TRUE,$I$39,"") ->  | N20: Investigation Work | O20: =SUM(M20,M61,M102,M143) -> 0
I21: 0 | K21: Monitoring/Interim Work | L21: FALSE | M21: =IF(L21=TRUE,$I$39,"") ->  | N21: Monitoring/Interim Work | O21: =SUM(M21,M62,M103,M144) -> 0
I22: 0 | K22: Corrective Action Plan Work | L22: FALSE | M22: =IF(L22=TRUE,$I$39,"") ->  | N22: Corrective Action Plan Work | O22: =SUM(M22,M63,M104,M145) -> 0
I23: 0
I24: 0 | K24: Emergency/Initial Work | L24: =IF(L19=TRUE,1,"") -> 
I25: 0 | K25: Investigation Work | L25: =IF(L20=TRUE,2,"") -> 
I26: 0 | K26: Monitoring/Interim Work | L26: =IF(L21=TRUE,3,"") -> 
I27: 0 | K27: Corrective Action Plan Work | L27: =IF(L22=TRUE,4,"") -> 
I28: 0 | N28: Type of Activity
I29: 0 | N29: Chemical Injection
I30: 0 | N30: Boring - Direct Push | O30: 1
I31: =ROUND((G31*H31),2) -> 0 | N31: Boring - Drilling | O31: 2
I32: 0 | N32: Monitoring Well | O32: 3
I33: 0 | N33: Extraction Well
A34: DATE OF EVENT | C34: TYPE OF ACTIVITY | D34: INVOICE NO. | E34: # OF EVENTS | F34: MINMUM RATE | N34: Hornizontal Recovery Well
C35: DRILLING | F35: 3495 | I35: =E35*F35 -> 0 | N35: Recovery Well
C36: DIRECT PUSH | F36: 2800 | I36: =E36*F36 -> 0 | N36: Sparge Well
C37: CHEMICAL INJECTION | F37: 4160 | I37: 0 | N37: Temporary Well
C38: P&A | F38: 1750 | I38: 0 | K38: =IF(L19=TRUE,$O$19,IF(L20=TRUE,$O$20,IF(L21=TRUE,$O$21,IF(L22=TRUE,$O$22,0)))) -> 0
A39: SUBTOTAL OF THIS PAGE | I39: =SUM(I19:I38) -> 0
A40: TOTAL DRILLING/P&A COSTS | I40: =SUM(K38) -> 0 | K40: =IF(I40>0,1,0) -> 0
A41: Page of (Drilling/P & A Supplementary Sheet)
A42: PART 5.F
A43: DRILLING/PLUGGING & ABANDONMENT SUPPLEMENTARY SHEET
A44: Check Event:
A45: 1. The per foot rates encompass all costs associated with drilling or plugging & abandoning of wells, borings, and
A46: recovery wells with the exceptions of mileage, mob/demob unit price, analysis, and transportation and disposal of cuttings.
A47: 2. Depth of (Boring or Well) X Cost Per Foot = Total.
A48: 3. If a boring is converted to a monitoring well, it should be noted on this sheet. When a boring is converted to a monitoring
A49: well, the Department will pay only for the monitoring well cost.
A50: 4. Please reduce the applicable cost per foot rate by $15/foot, if soil samples were not taken, prior to calculating the row total
A51: 5. Include drilling logs, well registrations, and plugging and abandonment forms as required.
A52: 6. Methods of Plugging and Abandonment Wells (P&A) - In “P&A Wells” column, enter
A53: 1 if P&A includes overdrilling of wells
A54: 2 if P&A was limited to pulling casing/screen and grouting well
A55: 3 if well is grouted only
A56: 7. If a minimum rate, or per day rate for chemical injection, is being charged, please indicate the number of events next to the
A57: appropriate activity. All well/activity information must still be documented, excluding the Cost Per Foot Rate; this includes
A58: listing the dates of chemical injection events.
A59: WELL/BORING IDENTIFICATION NUMBER (As shown in technical reports to DEQ) | B59: DATE OF ACTIVITY | C59: TYPE OF ACTIVITY | D59: RAC INVOICE NO. | E59: P&A WELLS (Enter 1, 2, or 3; see note 6) | F59: WELL DIAMETER (inches) | G59: DEPTH (in feet) | H59: COST PER FOOT RATE | I59: TOTAL
I60: =ROUND((G60*H60),2) -> 0 | K60: Emergency/Initial Work | L60: FALSE | M60: =IF(L60=TRUE,$I$80,"") ->  | N60: Emergency/Initial Work | O60: =SUM(M60,M100,M141,M183) -> 0
I61: =ROUND((G61*H61),2) -> 0 | K61: Investigation Work | L61: FALSE | M61: =IF(L61=TRUE,$I$80,"") ->  | N61: Investigation Work | O61: =SUM(M61,M101,M142,M184) -> 0
I62: 0 | K62: Monitoring/Interim Work | L62: FALSE | N62: Monitoring/Interim Work | O62: =SUM(M62,M102,M143,M185) -> 0
I63: 0 | K63: Corrective Action Plan Work | L63: FALSE | N63: Corrective Action Plan Work | O63: =SUM(M63,M103,M144,M186) -> 0
I64: 0
I65: 0 | K65: Emergency/Initial Work | L65: =IF(L60=TRUE,1,"") -> 
I66: 0 | K66: Investigation Work | L66: =IF(L61=TRUE,2,"") -> 
I67: 0 | K67: Monitoring/Interim Work | L67: =IF(L62=TRUE,3,"") -> 
I68: 0 | K68: Corrective Action Plan Work | L68: =IF(L63=TRUE,4,"") -> 
I69: 0
I70: 0
I71: 0
I72: 0
I73: 0
I74: 0
A75: DATE OF EVENT | C75: TYPE OF ACTIVITY | D75: INVOICE NO. | E75: # OF EVENTS | F75: MINMUM RATE
C76: DRILLING | F76: 3495 | I76: =E76*F76 -> 0
C77: DIRECT PUSH | F77: 2800 | I77: =E77*F77 -> 0
C78: CHEMICAL INJECTION | F78: 4160 | I78: 0
C79: P&A | F79: 1750 | I79: 0 | K79: =IF(L60=TRUE,$O$19,IF(L61=TRUE,$O$20,IF(L62=TRUE,$O$21,IF(L63=TRUE,$O$22,0)))) -> 0
A80: SUBTOTAL OF THIS PAGE | I80: =SUM(I60:I79) -> 0
A81: TOTAL DRILLING/P&A COSTS | I81: =SUM(K79) -> 0 | K81: =IF(I81>0,1,0) -> 0
A82: Page of (Drilling/P & A Supplementary Sheet)
A83: PART 5.F
A84: DRILLING/PLUGGING & ABANDONMENT SUPPLEMENTARY SHEET
A85: Check Event:
A86: 1. The per foot rates encompass all costs associated with drilling or plugging & abandoning of wells, borings, and
A87: recovery wells with the exceptions of mileage, mob/demob unit price, analysis, and transportation and disposal of cuttings.
A88: 2. Depth of (Boring or Well) X Cost Per Foot = Total.
A89: 3. If a boring is converted to a monitoring well, it should be noted on this sheet. When a boring is converted to a monitoring
A90: well, the Department will pay only for the monitoring well cost.
A91: 4. Please reduce the applicable cost per foot rate by $15/foot, if soil samples were not taken, prior to calculating the row total
A92: 5. Include drilling logs, well registrations, and plugging and abandonment forms as required.
A93: 6. Methods of Plugging and Abandonment Wells (P&A) - In “P&A Wells” column, enter
A94: 1 if P&A includes overdrilling of wells
A95: 2 if P&A was limited to pulling casing/screen and grouting well
A96: 3 if well is grouted only
A97: 7. If a minimum rate, or per day rate for chemical injection, is being charged, please indicate the number of events next to the
A98: appropriate activity. All well/activity information must still be documented, excluding the Cost Per Foot Rate; this includes
A99: listing the dates of chemical injection events.
A100: WELL/BORING IDENTIFICATION NUMBER (As shown in technical reports to DEQ) | B100: DATE OF ACTIVITY | C100: TYPE OF ACTIVITY | D100: RAC INVOICE NO. | E100: P&A WELLS (Enter 1, 2, or 3; see note 6) | F100: WELL DIAMETER (inches) | G100: DEPTH (in feet) | H100: COST PER FOOT RATE | I100: TOTAL
I101: =ROUND((G101*H101),2) -> 0 | K101: Emergency/Initial Work | L101: FALSE | M101: =IF(L101=TRUE,$I$121,"") ->  | N101: Emergency/Initial Work | O101: =SUM(M101,M140,M182,M224) -> 0
I102: =ROUND((G102*H102),2) -> 0 | K102: Investigation Work | L102: FALSE | M102: =IF(L102=TRUE,$I$121,"") ->  | N102: Investigation Work | O102: =SUM(M102,M141,M183,M225) -> 0
I103: 0 | K103: Monitoring/Interim Work | L103: FALSE | N103: Monitoring/Interim Work | O103: =SUM(M103,M142,M184,M226) -> 0
I104: 0 | K104: Corrective Action Plan Work | L104: FALSE | N104: Corrective Action Plan Work | O104: =SUM(M104,M143,M185,M227) -> 0
I105: 0
I106: 0 | K106: Emergency/Initial Work | L106: =IF(L101=TRUE,1,"") -> 
I107: 0 | K107: Investigation Work | L107: =IF(L102=TRUE,2,"") -> 
I108: 0 | K108: Monitoring/Interim Work | L108: =IF(L103=TRUE,3,"") -> 
I109: 0 | K109: Corrective Action Plan Work | L109: =IF(L104=TRUE,4,"") -> 
I110: 0
I111: 0
I112: 0
I113: 0
I114: 0
I115: 0
A116: DATE OF EVENT | C116: TYPE OF ACTIVITY | D116: INVOICE NO. | E116: # OF EVENTS | F116: MINMUM RATE
C117: DRILLING | F117: 3495 | I117: =E117*F117 -> 0
C118: DIRECT PUSH | F118: 2800 | I118: =E118*F118 -> 0
C119: CHEMICAL INJECTION | F119: 4160 | I119: 0
C120: P&A | F120: 1750 | I120: 0 | K120: =IF(L101=TRUE,$O$19,IF(L102=TRUE,$O$20,IF(L103=TRUE,$O$21,IF(L104=TRUE,$O$22,0)))) -> 0
A121: SUBTOTAL OF THIS PAGE | I121: =SUM(I101:I120) -> 0
A122: TOTAL DRILLING/P&A COSTS | I122: =SUM(K120) -> 0 | K122: =IF(I122>0,1,0) -> 0
A123: Page of (Drilling/P & A Supplementary Sheet)
A124: PART 5.F
A125: DRILLING/PLUGGING & ABANDONMENT SUPPLEMENTARY SHEET
A126: Check Event:
A127: 1. The per foot rates encompass all costs associated with drilling or plugging & abandoning of wells, borings, and
A128: recovery wells with the exceptions of mileage, mob/demob unit price, analysis, and transportation and disposal of cuttings.
A129: 2. Depth of (Boring or Well) X Cost Per Foot = Total.
A130: 3. If a boring is converted to a monitoring well, it should be noted on this sheet. When a boring is converted to a monitoring
A131: well, the Department will pay only for the monitoring well cost.
A132: 4. Please reduce the applicable cost per foot rate by $15/foot, if soil samples were not taken, prior to calculating the row total
A133: 5. Include drilling logs, well registrations, and plugging and abandonment forms as required.
A134: 6. Methods of Plugging and Abandonment Wells (P&A) - In “P&A Wells” column, enter
A135: 1 if P&A includes overdrilling of wells
A136: 2 if P&A was limited to pulling casing/screen and grouting well
A137: 3 if well is grouted only
A138: 7. If a minimum rate, or per day rate for chemical injection, is being charged, please indicate the number of events next to the
A139: appropriate activity. All well/activity information must still be documented, excluding the Cost Per Foot Rate; this includes
A140: listing the dates of chemical injection events.
A141: WELL/BORING IDENTIFICATION NUMBER (As shown in technical reports to DEQ) | B141: DATE OF ACTIVITY | C141: TYPE OF ACTIVITY | D141: RAC INVOICE NO. | E141: P&A WELLS (Enter 1, 2, or 3; see note 6) | F141: WELL DIAMETER (inches) | G141: DEPTH (in feet) | H141: COST PER FOOT RATE | I141: TOTAL
I142: =ROUND((G142*H142),2) -> 0 | K142: Emergency/Initial Work | L142: FALSE | M142: =IF(L142=TRUE,$I$162,"") ->  | N142: Emergency/Initial Work | O142: =SUM(M142,M181,M223,M265) -> 0
I143: =ROUND((G143*H143),2) -> 0 | K143: Investigation Work | L143: FALSE | M143: =IF(L143=TRUE,$I$162,"") ->  | N143: Investigation Work | O143: =SUM(M143,M182,M224,M266) -> 0
I144: 0 | K144: Monitoring/Interim Work | L144: FALSE | N144: Monitoring/Interim Work | O144: =SUM(M144,M183,M225,M267) -> 0
I145: 0 | K145: Corrective Action Plan Work | L145: FALSE | N145: Corrective Action Plan Work | O145: =SUM(M145,M184,M226,M268) -> 0
I146: 0
I147: 0 | K147: Emergency/Initial Work | L147: =IF(L142=TRUE,1,"") -> 
I148: 0 | K148: Investigation Work | L148: =IF(L143=TRUE,2,"") -> 
I149: 0 | K149: Monitoring/Interim Work | L149: =IF(L144=TRUE,3,"") -> 
I150: 0 | K150: Corrective Action Plan Work | L150: =IF(L145=TRUE,4,"") -> 
I151: 0
I152: 0
I153: 0
I154: 0
I155: 0
I156: 0
A157: DATE OF EVENT | C157: TYPE OF ACTIVITY | D157: INVOICE NO. | E157: # OF EVENTS | F157: MINMUM RATE
C158: DRILLING | F158: 3495 | I158: =E158*F158 -> 0
C159: DIRECT PUSH | F159: 2800 | I159: =E159*F159 -> 0
C160: CHEMICAL INJECTION | F160: 4160 | I160: 0
C161: P&A | F161: 1750 | I161: 0 | K161: =IF(L142=TRUE,$O$19,IF(L143=TRUE,$O$20,IF(L144=TRUE,$O$21,IF(L145=TRUE,$O$22,0)))) -> 0
A162: SUBTOTAL OF THIS PAGE | I162: =SUM(I142:I161) -> 0
A163: TOTAL DRILLING/P&A COSTS | I163: =SUM(K161) -> 0 | K163: =IF(I163>0,1,0) -> 0
A164: Page of (Drilling/P & A Supplementary Sheet)

Sheet Analysis
A1: PART 5.G
A2: ANALYSIS SUPPLEMENTARY SHEET
A3: Check Event:
A5: 1. Do not address RAC markups on this sheet. RAC markups should be shown on the Miscellaneous Supplementary Sheet.
A6: 2. Charges for analyzing samples will only be reimbursed at the intervals required by DEQ. | P6: Atterberg Limits (LL, PLI, PI) | Q6: 56
A7: 3. If the owner is directly billed for analysis, no markup allowed. | P7: BTEX | Q7: 55
A8: 4. Rush charges assessed by the laboratory to analyze a sample will not be paid when not required by DEQ. | P8: BTEX/MTBE | Q8: 84
A9: 5. (No. of Test) X (Cost Per Test) = Total | J9: SOIL | P9: BTEX/TPH-G | Q9: 70
A10: 6. See Appendix B, Table 4 of the Trust Fund Cost Control Guidance Document for rates | J10: WATER | P10: Dry Density-Calculated/Unit Weight Determination | Q10: 22.5
A11: 7. Purchase of sampling equipment (EnCores, preserved vials, etc.) should be addressed on the Part 5.H (1). | J11: AIR | P11: EPH Analysis | Q11: 160
P12: Organic Matter/Fractional Organic Carbon | Q12: 45
A13: RAC INVOICE NO. | B13: LAB INVOICE NUMBER | C13: PARAMETER (Ex.: BTEX, TPH-G, etc.) | D13: METHOD USED | E13: MEDIUM ANALYZED | F13: NO. OF TESTS | G13: COST PER TEST | H13: TOTAL | K13: total | M13: Sheet total | P13: Hydraulic Conductivity - Constant Head | Q13: 168
G14: =IF(C14>0,VLOOKUP(C14,$P$6:$Q$35,2,FALSE),"") ->  | H14: =ROUND(IF(C14>0,(F14*G14),0),2) -> 0 | I14: Emergency/Initial Work | J14: FALSE | K14: =IF(J14=TRUE,$G$39,"") ->  | L14: Emergency/Initial Work | M14: =SUM(K14,K56,K98,K140) -> 0 | P14: Hydraulic Conductivity - Falling Head | Q14: 313.5
H15: =ROUND(IF(C15>0,(F15*G15),0),2) -> 0 | I15: Investigation Work | J15: FALSE | K15: =IF(J15=TRUE,$G$39,"") ->  | L15: Investigation Work | M15: =SUM(K15,K57,K99,K141) -> 0 | P15: Lead | Q15: 27
H16: 0 | I16: Monitoring/Interim Work | J16: FALSE | L16: Monitoring/Interim Work | M16: =SUM(K16,K58,K100,K142) -> 0 | P16: Moisture Content | Q16: 8
H17: 0 | I17: Corrective Action Plan Work | J17: FALSE | L17: Corrective Action Plan Work | M17: =SUM(K17,K59,K101,K143) -> 0 | P17: MTBE | Q17: 84
H18: 0 | P18: Organic matter | Q18: 45
H19: 0 | I19: Emergency/Initial Work | J19: =IF(J14=TRUE,1,"") ->  | P19: PAH | Q19: 135
H20: 0 | I20: Investigation Work | J20: =IF(J15=TRUE,2,"") ->  | P20: Particle Size Analysis – Hydrometer | Q20: 106.5
H21: 0 | I21: Monitoring/Interim Work | J21: =IF(J16=TRUE,3,"") ->  | P21: Particle Size Analysis – Sieve | Q21: 56
H22: 0 | I22: Corrective Action Plan Work | J22: =IF(J17=TRUE,4,"") ->  | P22: RCRA Metals | Q22: 135
H23: 0 | P23: Soil pH | Q23: 28
H24: 0 | P24: Specific Gravity | Q24: 100
H25: 0 | P25: SPLP Analysis | Q25: 40
H26: 0 | P26: TCLP | Q26: 40
H27: 0 | P27: TOC | Q27: 30
H28: 0 | P28: Total Porosity - Calculated | Q28: 62
H29: 0 | P29: TPH-D (RECAP DRO) | Q29: 65
A30: USE SPACE BELOW FOR PARAMETERS/METHODS/RATES NOT LISTED/POPULATED ABOVE | P30: TPH-G (RECAP GRO) | Q30: 45
H31: =ROUND(IF(C31>0,(F31*G31),0),2) -> 0 | P31: TPH-O | Q31: 65
H32: =ROUND(IF(C32>0,(F32*G32),0),2) -> 0 | P32: Triaxial Permeability - Falling Head | Q32: 313.5
H33: 0 | P33: Unified Soil Classification System | Q33: 45
H34: 0 | P34: Moisture Content/Volumetric Content | Q34: 8
H35: 0 | P35: VPH Analysis (TPH-G Fractions) | Q35: 135
A36: AQUIFER TESTING EVENTS
A37: RAC Invoice No. | C37: Date of Event | D37: No. of Wells | E37: Rate
E38: $1,100.00 - 1st well; $300.00 - each add. well | H38: =ROUND(IF(AND(C38>0,D38=1),1100,IF(AND(C38>0,D38>1),1100+(D38-1)*300,0)),2) -> 0 | I38: =IF(J14=TRUE,$M$14,IF(J15=TRUE,$M$15,IF(J16=TRUE,$M$16,IF(J17=TRUE,$M$17,0)))) -> 0
A39: SUBTOTAL OF THIS PAGE | G39: =SUM(H14:H38) -> 0
A40: TOTAL ANALYSIS COSTS | G40: =SUM(I38) -> 0 | I40: =IF(G40>0,1,0) -> 0
A41: Page of (Analysis Supplementary Sheet)
A43: PART 5.G
A44: ANALYSIS SUPPLEMENTARY SHEET
A45: Check Event:
A47: 1. Do not address RAC markups on this sheet. RAC markups should be shown on the Miscellaneous Supplementary Sheet.
A48: 2. Charges for analyzing samples will only be reimbursed at the intervals required by DEQ.
A49: 3. If the owner is directly billed for analysis, no markup allowed.
A50: 4. Rush charges assessed by the laboratory to analyze a sample will not be paid when not required by DEQ.
A51: 5. (No. of Test) X (Cost Per Test) = Total
A52: 6. See Appendix B, Table 4 of the Trust Fund Cost Control Guidance Document for rates
A53: 7. Purchase of sampling equipment (EnCores, preserved vials, etc.) should be addressed on the Part 5.H (1).
A55: RAC INVOICE NO. | B55: LAB INVOICE NUMBER | C55: PARAMETER (Ex.: BTEX, TPH-G, etc.) | D55: METHOD USED | E55: MEDIUM ANALYZED | F55: NO. OF TESTS | G55: COST PER TEST | H55: TOTAL | K55: total
G56: =IF(C56>0,VLOOKUP(C56,$P$6:$Q$35,2,FALSE),"") ->  | H56: =ROUND(IF(C56>0,(F56*G56),0),2) -> 0 | I56: Emergency/Initial Work | J56: FALSE | K56: =IF(J56=TRUE,$G$81,"") -> 
H57: =ROUND(IF(C57>0,(F57*G57),0),2) -> 0 | I57: Investigation Work | J57: FALSE | K57: =IF(J57=TRUE,$G$81,"") -> 
H58: 0 | I58: Monitoring/Interim Work | J58: FALSE
H59: 0 | I59: Corrective Action Plan Work | J59: FALSE
H60: 0
H61: 0 | I61: Emergency/Initial Work | J61: =IF(J56=TRUE,1,"") -> 
H62: 0 | I62: Investigation Work | J62: =IF(J57=TRUE,2,"") -> 
H63: 0 | I63: Monitoring/Interim Work | J63: =IF(J58=TRUE,3,"") -> 
H64: 0 | I64: Corrective Action Plan Work | J64: =IF(J59=TRUE,4,"") -> 
H65: 0
H66: 0
H67: 0
H68: 0
H69: 0
H70: 0
H71: 0
A72: USE SPACE BELOW FOR PARAMETERS/METHODS/RATES NOT LISTED/POPULATED ABOVE
H73: =ROUND(IF(C73>0,(F73*G73),0),2) -> 0
H74: =ROUND(IF(C74>0,(F74*G74),0),2) -> 0
H75: 0
H76: 0
H77: 0
A78: AQUIFER TESTING EVENTS
A79: RAC Invoice No. | C79: Date of Event | D79: No. of Wells | E79: Rate
E80: $1,100.00 - 1st well; $300.00 - each add. well | H80: =ROUND(IF(AND(C80>0,D80=1),1100,IF(AND(C80>0,D80>1),1100+(D80-1)*300,0)),2) -> 0 | I80: =IF(J56=TRUE,$M$14,IF(J57=TRUE,$M$15,IF(J58=TRUE,$M$16,IF(J59=TRUE,$M$17,0)))) -> 0
A81: SUBTOTAL OF THIS PAGE | G81: =SUM(H56:H80) -> 0
A82: TOTAL ANALYSIS COSTS | G82: =SUM(I80) -> 0 | I82: =IF(G82>0,1,0) -> 0
A83: Page of (Analysis Supplementary Sheet)
A85: PART 5.G
A86: ANALYSIS SUPPLEMENTARY SHEET
A87: Check Event:
A89: 1. Do not address RAC markups on this sheet. RAC markups should be shown on the Miscellaneous Supplementary Sheet.
A90: 2. Charges for analyzing samples will only be reimbursed at the intervals required by DEQ.
A91: 3. If the owner is directly billed for analysis, no markup allowed.
A92: 4. Rush charges assessed by the laboratory to analyze a sample will not be paid when not required by DEQ.
A93: 5. (No. of Test) X (Cost Per Test) = Total
A94: 6. See Appendix B, Table 4 of the Trust Fund Cost Control Guidance Document for rates
A95: 7. Purchase of sampling equipment (EnCores, preserved vials, etc.) should be addressed on the Part 5.H (1).
A97: RAC INVOICE NO. | B97: LAB INVOICE NUMBER | C97: PARAMETER (Ex.: BTEX, TPH-G, etc.) | D97: METHOD USED | E97: MEDIUM ANALYZED | F97: NO. OF TESTS | G97: COST PER TEST | H97: TOTAL | K97: total
G98: =IF(C98>0,VLOOKUP(C98,$P$6:$Q$35,2,FALSE),"") ->  | H98: =ROUND(IF(C98>0,(F98*G98),0),2) -> 0 | I98: Emergency/Initial Work | J98: FALSE | K98: =IF(J98=TRUE,$G$123,"") -> 
H99: =ROUND(IF(C99>0,(F99*G99),0),2) -> 0 | I99: Investigation Work | J99: FALSE | K99: =IF(J99=TRUE,$G$123,"") -> 
H100: 0 | I100: Monitoring/Interim Work | J100: FALSE
H101: 0 | I101: Corrective Action Plan Work | J101: FALSE
H102: 0
H103: 0 | I103: Emergency/Initial Work | J103: =IF(J98=TRUE,1,"") -> 
H104: 0 | I104: Investigation Work | J104: =IF(J99=TRUE,2,"") -> 
H105: 0 | I105: Monitoring/Interim Work | J105: =IF(J100=TRUE,3,"") -> 
H106: 0 | I106: Corrective Action Plan Work | J106: =IF(J101=TRUE,4,"") -> 
H107: 0
H108: 0
H109: 0
H110: 0
H111: 0
H112: 0
H113: 0
A114: USE SPACE BELOW FOR PARAMETERS/METHODS/RATES NOT LISTED/POPULATED ABOVE
H115: =ROUND(IF(C115>0,(F115*G115),0),2) -> 0
H116: =ROUND(IF(C116>0,(F116*G116),0),2) -> 0
H117: 0
H118: 0
H119: 0
A120: AQUIFER TESTING EVENTS
A121: RAC Invoice No. | C121: Date of Event | D121: No. of Wells | E121: Rate
E122: $1,100.00 - 1st well; $300.00 - each add. well | H122: =ROUND(IF(AND(C122>0,D122=1),1100,IF(AND(C122>0,D122>1),1100+(D122-1)*300,0)),2) -> 0 | I122: =IF(J98=TRUE,$M$14,IF(J99=TRUE,$M$15,IF(J100=TRUE,$M$16,IF(J101=TRUE,$M$17,0)))) -> 0
A123: SUBTOTAL OF THIS PAGE | G123: =SUM(H98:H122) -> 0
A124: TOTAL ANALYSIS COSTS | G124: =SUM(I122) -> 0 | I124: =IF(G124>0,1,0) -> 0
A125: Page of (Analysis Supplementary Sheet)
A127: PART 5.G
A128: ANALYSIS SUPPLEMENTARY SHEET
A129: Check Event:
A131: 1. Do not address RAC markups on this sheet. RAC markups should be shown on the Miscellaneous Supplementary Sheet.
A132: 2. Charges for analyzing samples will only be reimbursed at the intervals required by DEQ.
A133: 3. If the owner is directly billed for analysis, no markup allowed.
A134: 4. Rush charges assessed by the laboratory to analyze a sample will not be paid when not required by DEQ.
A135: 5. (No. of Test) X (Cost Per Test) = Total
A136: 6. See Appendix B, Table 4 of the Trust Fund Cost Control Guidance Document for rates
A137: 7. Purchase of sampling equipment (EnCores, preserved vials, etc.) should be addressed on the Part 5.H (1).
A139: RAC INVOICE NO. | B139: LAB INVOICE NUMBER | C139: PARAMETER (Ex.: BTEX, TPH-G, etc.) | D139: METHOD USED | E139: MEDIUM ANALYZED | F139: NO. OF TESTS | G139: COST PER TEST | H139: TOTAL | K139: total
G140: =IF(C140>0,VLOOKUP(C140,$P$6:$Q$35,2,FALSE),"") ->  | H140: =ROUND(IF(C140>0,(F140*G140),0),2) -> 0 | I140: Emergency/Initial Work | J140: FALSE | K140: =IF(J140=TRUE,$G$165,"") -> 
H141: =ROUND(IF(C141>0,(F141*G141),0),2) -> 0 | I141: Investigation Work | J141: FALSE | K141: =IF(J141=TRUE,$G$165,"") -> 
H142: 0 | I142: Monitoring/Interim Work | J142: FALSE
H143: 0 | I143: Corrective Action Plan Work | J143: FALSE
H144: 0
H145: 0 | I145: Emergency/Initial Work | J145: =IF(J140=TRUE,1,"") -> 
H146: 0 | I146: Investigation Work | J146: =IF(J141=TRUE,2,"") -> 
H147: 0 | I147: Monitoring/Interim Work | J147: =IF(J142=TRUE,3,"") -> 
H148: 0 | I148: Corrective Action Plan Work | J148: =IF(J143=TRUE,4,"") -> 
H149: 0
H150: 0
H151: 0
H152: 0
H153: 0
H154: 0
H155: 0
A156: USE SPACE BELOW FOR PARAMETERS/METHODS/RATES NOT LISTED/POPULATED ABOVE
H157: =ROUND(IF(C157>0,(F157*G157),0),2) -> 0
H158: =ROUND(IF(C158>0,(F158*G158),0),2) -> 0
H159: 0
H160: 0
H161: 0
A162: AQUIFER TESTING EVENTS
A163: RAC Invoice No. | C163: Date of Event | D163: No. of Wells | E163: Rate
E164: $1,100.00 - 1st well; $300.00 - each add. well | H164: =ROUND(IF(AND(C164>0,D164=1),1100,IF(AND(C164>0,D164>1),1100+(D164-1)*300,0)),2) -> 0 | I164: =IF(J140=TRUE,$M$14,IF(J141=TRUE,$M$15,IF(J142=TRUE,$M$16,IF(J143=TRUE,$M$17,0)))) -> 0
A165: SUBTOTAL OF THIS PAGE | G165: =SUM(H140:H164) -> 0
A166: TOTAL ANALYSIS COSTS | G166: =SUM(I164) -> 0 | I166: =IF(G166>0,1,0) -> 0
A167: Page of (Analysis Supplementary Sheet)

Sheet Miscellaneous 1
A1: PART 5.H (1)
A2: MISCELLANEOUS SUPPLEMENTARY SHEET
A3: Check Event:
A6: 1. All costs not associated with the previous categories should be listed here. (Ex.: utility charges, DOTD or DNR permits/maps,
A7: DEQ permits, surveying charges, subcontracted drafting charges, purchases of supplies, disposal of sampling kits and bailing kits)
A8: 2. Miscellaneous charges for work activities addressed in unit pricing should not be addressed on this form.
A9: 3. All markups allowed to the RAC should be identified on this sheet.
A10: DESCRIPTION OF EACH MISCELLANEOUS ITEM AND NO. OF ITEMS | B10: RAC INVOICE NO. | C10: OUTSIDE INVOICE NO. | D10: COST | I10: TOTAL | K10: Sheet total
G11: Emergency/Initial Work | H11: FALSE | I11: =IF(H11=TRUE,$D$40,"") ->  | J11: Emergency/Initial Work | K11: =SUM(I11,I53,I95,I137,I179,I221) -> 0 | S11: =IF(H11=TRUE,1,"") -> 
G12: Investigation Work | H12: FALSE | I12: =IF(H12=TRUE,$D$40,"") ->  | J12: Investigation Work | K12: =SUM(I12,I54,I96,I138,I180,I222) -> 0 | S12: =IF(H12=TRUE,2,"") -> 
G13: Monitoring/Interim Work | H13: FALSE | J13: Monitoring/Interim Work | K13: =SUM(I13,I55,I97,I139,I181,I223) -> 0 | S13: =IF(H13=TRUE,3,"") -> 
G14: Corrective Action Plan Work | H14: FALSE | J14: Corrective Action Plan Work | K14: =SUM(I14,I56,I98,I140,I182,I224) -> 0 | S14: =IF(H14=TRUE,4,"") -> 
G15: Report Preparation | H15: FALSE | J15: Report Preparation | K15: =SUM(I15,I57,I99,I141,I183,I225) -> 0 | S15: =IF(H15=TRUE,5,"") -> 
G18: MIS 2 | H18: box 1-4 | I18: box 5-8 | J18: box8-12 | K18: box13-16 | M18: MIS 2
G19: Emergency/Initial Work | H19: ='Miscellaneous 2'!K9 -> FALSE | I19: ='Miscellaneous 2'!K59 -> FALSE | J19: ='Miscellaneous 2'!K109 -> FALSE | K19: ='Miscellaneous 2'!K159 -> FALSE | M19: Emergency/Initial Work | N19: =IF(H19=FALSE,0,1) -> 0 | O19: =IF(I19=FALSE,0,1) -> 0 | P19: 0 | Q19: 0 | R19: =SUM(N19:Q19) -> 0
G20: Investigation Work | H20: ='Miscellaneous 2'!K10 -> FALSE | I20: ='Miscellaneous 2'!K60 -> FALSE | J20: ='Miscellaneous 2'!K110 -> FALSE | K20: ='Miscellaneous 2'!K160 -> FALSE | M20: Investigation Work | N20: =IF(H20=FALSE,0,1) -> 0 | O20: =IF(I20=FALSE,0,1) -> 0 | P20: =IF(J20=FALSE,0,1) -> 0 | Q20: =IF(K20=FALSE,0,1) -> 0 | R20: =SUM(N20:Q20) -> 0
G21: Monitoring/Interim Work | H21: ='Miscellaneous 2'!K11 -> FALSE | I21: ='Miscellaneous 2'!K61 -> FALSE | J21: ='Miscellaneous 2'!K111 -> FALSE | K21: ='Miscellaneous 2'!K161 -> FALSE | M21: Monitoring/Interim Work | N21: 0 | O21: 0 | P21: 0 | Q21: 0 | R21: 0
G22: Corrective Action Plan Work | H22: ='Miscellaneous 2'!K12 -> FALSE | I22: ='Miscellaneous 2'!K62 -> FALSE | J22: ='Miscellaneous 2'!K112 -> FALSE | K22: ='Miscellaneous 2'!K162 -> FALSE | M22: Corrective Action Plan Work | N22: 0 | O22: 0 | P22: 0 | Q22: 0 | R22: 0
G24: MIS3 | H24: box 1-5 | I24: box 6-10 | J24: box11-15 | K24: box16-20 | L24: box20-25 | M24: MIS3
G25: Emergency/Initial Work | H25: ='Miscellaneous 2'!K18 -> FALSE | I25: ='Miscellaneous 2'!L18 -> FALSE | J25: ='Miscellaneous 2'!M18 -> FALSE | K25: ='Miscellaneous 2'!N18 -> FALSE | L25: ='Miscellaneous 2'!O18 -> FALSE | M25: Emergency/Initial Work | N25: =IF(H25=FALSE,0,1) -> 0 | O25: =IF(I25=FALSE,0,1) -> 0 | P25: 0 | Q25: 0 | R25: =SUM(N25:Q25) -> 0
G26: Investigation Work | H26: ='Miscellaneous 2'!K19 -> FALSE | I26: ='Miscellaneous 2'!L19 -> FALSE | J26: ='Miscellaneous 2'!M19 -> FALSE | K26: ='Miscellaneous 2'!N19 -> FALSE | L26: ='Miscellaneous 2'!O19 -> FALSE | M26: Investigation Work | N26: =IF(H26=FALSE,0,1) -> 0 | O26: 0 | P26: 0 | Q26: 0 | R26: =SUM(N26:Q26) -> 0
G27: Monitoring/Interim Work | H27: ='Miscellaneous 2'!K20 -> FALSE | I27: ='Miscellaneous 2'!L20 -> FALSE | J27: ='Miscellaneous 2'!M20 -> FALSE | K27: ='Miscellaneous 2'!N20 -> FALSE | L27: ='Miscellaneous 2'!O20 -> FALSE | M27: Monitoring/Interim Work | N27: 0 | O27: 0 | P27: 0 | Q27: 0 | R27: 0
G28: Corrective Action Plan Work | H28: ='Miscellaneous 2'!K21 -> FALSE | I28: ='Miscellaneous 2'!L21 -> FALSE | J28: ='Miscellaneous 2'!M21 -> FALSE | K28: ='Miscellaneous 2'!N21 -> FALSE | L28: ='Miscellaneous 2'!O21 -> FALSE | M28: Corrective Action Plan Work | N28: 0 | O28: 0 | P28: 0 | Q28: 0 | R28: 0
G31: Emergency/Initial Work | H31: =(R19+R25) -> 0 | I31: =IF(H31>=1,TRUE,FALSE) -> FALSE
G32: Investigation Work | H32: =(R20+R26) -> 0 | I32: =IF(H32>=1,TRUE,FALSE) -> FALSE
G33: Monitoring/Interim Work | H33: 0 | I33: =IF(H33>=1,TRUE,FALSE) -> FALSE
G34: Corrective Action Plan Work | H34: 0 | I34: =IF(H34>=1,TRUE,FALSE) -> FALSE
G39: =IF(H11=TRUE,$K$11,IF(H12=TRUE,$K$12,IF(H13=TRUE,$K$13,IF(H14=TRUE,$K$14,IF(H15=TRUE,$K$15,0))))) -> 0
A40: SUBTOTAL OF THIS PAGE | D40: =SUM(D11:E39) -> 0 | G40: =SUM(G39) -> 0 | H40: =IF(G40>0,1,0) -> 0
A41: MISCELLANEOUS TOTAL | D41: =G41 ->  | G41: =IF(AND(H11=TRUE,$I$31=FALSE),$K$11,IF(AND(H12=TRUE,$I$32=FALSE),$K$12,IF(AND(H13=TRUE,$I$33=FALSE),$K$13,IF(AND(H14=TRUE,$I$34=FALSE),$K$14,"")))) -> 
A42: Page of (Miscellaneous Supplementary Sheet)
A43: PART 5.H (1)
A44: MISCELLANEOUS SUPPLEMENTARY SHEET
A45: Check Event:
A48: 1. All costs not associated with the previous categories should be listed here. (Ex.: utility charges, DOTD or DNR permits/maps,
A49: DEQ permits, surveying charges, subcontracted drafting charges, purchases of supplies, disposal of sampling kits and bailing kits)
A50: 2. Miscellaneous charges for work activities addressed in unit pricing should not be addressed on this form.
A51: 3. All markups allowed to the RAC should be identified on this sheet.
A52: DESCRIPTION OF EACH MISCELLANEOUS ITEM AND NO. OF ITEMS | B52: RAC INVOICE NO. | C52: OUTSIDE INVOICE NO. | D52: COST | I52: TOTAL
G53: Emergency/Initial Work | H53: FALSE | I53: =IF(H53=TRUE,$D$82,"") ->  | S53: =IF(H53=TRUE,1,"") -> 
G54: Investigation Work | H54: FALSE | I54: =IF(H54=TRUE,$D$82,"") ->  | S54: =IF(H54=TRUE,2,"") -> 
G55: Monitoring/Interim Work | H55: FALSE | S55: =IF(H55=TRUE,3,"") -> 
G56: Corrective Action Plan Work | H56: FALSE | S56: =IF(H56=TRUE,4,"") -> 
G57: Report Preparation | H57: FALSE | S57: =IF(H57=TRUE,5,"") -> 
G81: =IF(H53=TRUE,$K$11,IF(H54=TRUE,$K$12,IF(H55=TRUE,$K$13,IF(H56=TRUE,$K$14,IF(H57=TRUE,$K$15,0))))) -> 0
A82: SUBTOTAL OF THIS PAGE | D82: =SUM(D53:E81) -> 0 | G82: =SUM(G81) -> 0 | H82: =IF(G82>0,1,0) -> 0
A83: MISCELLANEOUS TOTAL | D83: =G83 ->  | G83: =IF(AND(H53=TRUE,$I$31=FALSE),$K$11,IF(AND(H54=TRUE,$I$32=FALSE),$K$12,IF(AND(H55=TRUE,$I$33=FALSE),$K$13,IF(AND(H56=TRUE,$I$34=FALSE),$K$14,"")))) -> 
A84: Page of (Miscellaneous Supplementary Sheet)
A85: PART 5.H (1)
A86: MISCELLANEOUS SUPPLEMENTARY SHEET
A87: Check Event:
A90: 1. All costs not associated with the previous categories should be listed here. (Ex.: utility charges, DOTD or DNR permits/maps,
A91: DEQ permits, surveying charges, subcontracted drafting charges, purchases of supplies, disposal of sampling kits and bailing kits)
A92: 2. Miscellaneous charges for work activities addressed in unit pricing should not be addressed on this form.
A93: 3. All markups allowed to the RAC should be identified on this sheet.
A94: DESCRIPTION OF EACH MISCELLANEOUS ITEM AND NO. OF ITEMS | B94: RAC INVOICE NO. | C94: OUTSIDE INVOICE NO. | D94: COST | I94: TOTAL
G95: Emergency/Initial Work | H95: FALSE | I95: =IF(H95=TRUE,$D$124,"") ->  | S95: =IF(H95=TRUE,1,"") -> 
G96: Investigation Work | H96: FALSE | I96: =IF(H96=TRUE,$D$124,"") ->  | S96: =IF(H96=TRUE,2,"") -> 
G97: Monitoring/Interim Work | H97: FALSE | S97: =IF(H97=TRUE,3,"") -> 
G98: Corrective Action Plan Work | H98: FALSE | S98: =IF(H98=TRUE,4,"") -> 
G99: Report Preparation | H99: FALSE | S99: =IF(H99=TRUE,5,"") -> 
G123: =IF(H95=TRUE,$K$11,IF(H96=TRUE,$K$12,IF(H97=TRUE,$K$13,IF(H98=TRUE,$K$14,IF(H99=TRUE,$K$15,0))))) -> 0
A124: SUBTOTAL OF THIS PAGE | D124: =SUM(D95:E123) -> 0 | G124: =SUM(G123) -> 0 | H124: =IF(G124>0,1,0) -> 0
A125: MISCELLANEOUS TOTAL | D125: =G125 ->  | G125: =IF(AND(H95=TRUE,$I$31=FALSE),$K$11,IF(AND(H96=TRUE,$I$32=FALSE),$K$12,IF(AND(H97=TRUE,$I$33=FALSE),$K$13,IF(AND(H98=TRUE,$I$34=FALSE),$K$14,"")))) -> 
A126: Page of (Miscellaneous Supplementary Sheet)
A127: PART 5.H (1)
A128: MISCELLANEOUS SUPPLEMENTARY SHEET
A129: Check Event:
A132: 1. All costs not associated with the previous categories should be listed here. (Ex.: utility charges, DOTD or DNR permits/maps,
A133: DEQ permits, surveying charges, subcontracted drafting charges, purchases of supplies, disposal of sampling kits and bailing kits)
A134: 2. Miscellaneous charges for work activities addressed in unit pricing should not be addressed on this form.
A135: 3. All markups allowed to the RAC should be identified on this sheet.
A136: DESCRIPTION OF EACH MISCELLANEOUS ITEM AND NO. OF ITEMS | B136: RAC INVOICE NO. | C136: OUTSIDE INVOICE NO. | D136: COST | I136: TOTAL
G137: Emergency/Initial Work | H137: FALSE | I137: =IF(H137=TRUE,$D$166,"") ->  | S137: =IF(H137=TRUE,1,"") -> 
G138: Investigation Work | H138: FALSE | I138: =IF(H138=TRUE,$D$166,"") ->  | S138: =IF(H138=TRUE,2,"") -> 
G139: Monitoring/Interim Work | H139: FALSE | S139: =IF(H139=TRUE,3,"") -> 
G140: Corrective Action Plan Work | H140: FALSE | S140: =IF(H140=TRUE,4,"") -> 
G141: Report Preparation | H141: FALSE | S141: =IF(H141=TRUE,5,"") -> 
G165: =IF(H137=TRUE,$K$11,IF(H138=TRUE,$K$12,IF(H139=TRUE,$K$13,IF(H140=TRUE,$K$14,IF(H141=TRUE,$K$15,0))))) -> 0
A166: SUBTOTAL OF THIS PAGE | D166: =SUM(D137:E165) -> 0 | G166: =SUM(G165) -> 0 | H166: =IF(G166>0,1,0) -> 0
A167: MISCELLANEOUS TOTAL | D167: =G167 ->  | G167: =IF(AND(H137=TRUE,$I$31=FALSE),$K$11,IF(AND(H138=TRUE,$I$32=FALSE),$K$12,IF(AND(H139=TRUE,$I$33=FALSE),$K$13,IF(AND(H140=TRUE,$I$34=FALSE),$K$14,"")))) -> 
A168: Page of (Miscellaneous Supplementary Sheet)
A169: PART 5.H (1)
A170: MISCELLANEOUS SUPPLEMENTARY SHEET
A171: Check Event:
A174: 1. All costs not associated with the previous categories should be listed here. (Ex.: utility charges, DOTD or DNR permits/maps,
A175: DEQ permits, surveying charges, subcontracted drafting charges, purchases of supplies, disposal of sampling kits and bailing kits)
A176: 2. Miscellaneous charges for work activities addressed in unit pricing should not be addressed on this form.
A177: 3. All markups allowed to the RAC should be identified on this sheet.
A178: DESCRIPTION OF EACH MISCELLANEOUS ITEM AND NO. OF ITEMS | B178: RAC INVOICE NO. | C178: OUTSIDE INVOICE NO. | D178: COST | I178: TOTAL
G179: Emergency/Initial Work | H179: FALSE | I179: =IF(H179=TRUE,$D$208,"") ->  | S179: =IF(H179=TRUE,1,"") -> 
G180: Investigation Work | H180: FALSE | I180: =IF(H180=TRUE,$D$208,"") ->  | S180: =IF(H180=TRUE,2,"") -> 
G181: Monitoring/Interim Work | H181: FALSE | S181: =IF(H181=TRUE,3,"") -> 
G182: Corrective Action Plan Work | H182: FALSE | S182: =IF(H182=TRUE,4,"") -> 
G183: Report Preparation | H183: FALSE | S183: =IF(H183=TRUE,5,"") -> 
G207: =IF(H179=TRUE,$K$11,IF(H180=TRUE,$K$12,IF(H181=TRUE,$K$13,IF(H182=TRUE,$K$14,IF(H183=TRUE,$K$15,0))))) -> 0
A208: SUBTOTAL OF THIS PAGE | D208: =SUM(D179:E207) -> 0 | G208: =SUM(G207) -> 0 | H208: =IF(G208>0,1,0) -> 0
A209: MISCELLANEOUS TOTAL | D209: =G209 ->  | G209: =IF(AND(H179=TRUE,$I$31=FALSE),$K$11,IF(AND(H180=TRUE,$I$32=FALSE),$K$12,IF(AND(H181=TRUE,$I$33=FALSE),$K$13,IF(AND(H182=TRUE,$I$34=FALSE),$K$14,"")))) -> 
A210: Page of (Miscellaneous Supplementary Sheet)
A211: PART 5.H (1)
A212: MISCELLANEOUS SUPPLEMENTARY SHEET
A213: Check Event:
A216: 1. All costs not associated with the previous categories should be listed here. (Ex.: utility charges, DOTD or DNR permits/maps,
A217: DEQ permits, surveying charges, subcontracted drafting charges, purchases of supplies, disposal of sampling kits and bailing kits)
A218: 2. Miscellaneous charges for work activities addressed in unit pricing should not be addressed on this form.
A219: 3. All markups allowed to the RAC should be identified on this sheet.
A220: DESCRIPTION OF EACH MISCELLANEOUS ITEM AND NO. OF ITEMS | B220: RAC INVOICE NO. | C220: OUTSIDE INVOICE NO. | D220: COST | I220: TOTAL
G221: Emergency/Initial Work | H221: FALSE | I221: =IF(H221=TRUE,$D$250,"") ->  | S221: =IF(H221=TRUE,1,"") -> 
G222: Investigation Work | H222: FALSE | I222: =IF(H222=TRUE,$D$250,"") ->  | S222: =IF(H222=TRUE,2,"") -> 
G223: Monitoring/Interim Work | H223: FALSE | S223: =IF(H223=TRUE,3,"") -> 
G224: Corrective Action Plan Work | H224: FALSE | S224: =IF(H224=TRUE,4,"") -> 
G225: Report Preparation | H225: FALSE | S225: =IF(H225=TRUE,5,"") -> 
G249: =IF(H221=TRUE,$K$11,IF(H222=TRUE,$K$12,IF(H223=TRUE,$K$13,IF(H224=TRUE,$K$14,IF(H225=TRUE,$K$15,0))))) -> 0
A250: SUBTOTAL OF THIS PAGE | D250: =SUM(D221:E249) -> 0 | G250: =SUM(G249) -> 0 | H250: =IF(G250>0,1,0) -> 0
A251: MISCELLANEOUS TOTAL | D251: =G251 ->  | F251: ` | G251: =IF(AND(H221=TRUE,$I$31=FALSE),$K$11,IF(AND(H222=TRUE,$I$32=FALSE),$K$12,IF(AND(H223=TRUE,$I$33=FALSE),$K$13,IF(AND(H224=TRUE,$I$34=FALSE),$K$14,"")))) -> 
A252: Page of (Miscellaneous Supplementary Sheet)

Sheet Miscellaneous 2
A1: PART 5.H (2) | K1: Mis 1 | L1: Mis 2 | M1: Mis 1&2 total
A2: MISCELLANEOUS SUPPLEMENTARY SHEET | J2: Emergency/Initial Work | K2: ='Miscellaneous 1'!K11 -> 0 | L2: =N9 -> 0 | M2: =SUM(K2:L2) -> 0
A3: UNIT PRICING FORM | J3: Investigation Work | K3: ='Miscellaneous 1'!K12 -> 0 | L3: =N10 -> 0 | M3: =SUM(K3:L3) -> 0
A4: Check Event: | J4: Monitoring/Interim Work | K4: ='Miscellaneous 1'!K13 -> 0 | L4: 0 | M4: 0
A5: Charges for the following activities shall be addressed on this form: groundwater sampling, discharge sampling and routine scheduled treatment unit operation and maintenance events. Refer to the Cost Control Guidance Document regarding specific activities/items covered under these unit prices. It is mandatory unit pricing for these activities. | J5: Corrective Action Plan Work | K5: ='Miscellaneous 1'!K14 -> 0 | L5: 0 | M5: 0
A6: UNIT PRICE ACTIVITY | F6: RAC INVOICE NO. | G6: RATES | H6: COST
A7: Groundwater Sampling Total Number of Wells Sampled: | E7: =IF(COUNTA(A9:E13)>0,COUNTA(A9:E13),"") ->  | G7: $585.00 - 1st Well $182.00 – Others | H7: =ROUND(IF(COUNTA(A9:E13)=1,585,IF(COUNTA(A9:E13)>1,585+((COUNTA(A9:E13)-1)*182),0)),2) -> 0 | N7: PAGE TOTAL
A8: List wells sampled below: Date sampling occurred: | S8: 2nd type of print report
J9: Emergency/Initial Work | K9: FALSE | L9: =IF(K9=TRUE,$F$48,"") ->  | M9: Emergency/Initial Work | N9: =SUM(L9,L59,L109,L159) -> 0 | R9: Emergency/Initial Work | S9: =IF(K9=TRUE,1,"") -> 
J10: Investigation Work | K10: FALSE | L10: =IF(K10=TRUE,$F$48,"") ->  | M10: Investigation Work | N10: =SUM(L10,L60,L110,L160) -> 0 | R10: Investigation Work | S10: =IF(K10=TRUE,2,"") -> 
J11: Monitoring/Interim Work | K11: FALSE | L11: =IF(K11=TRUE,$F$48,"") ->  | M11: Monitoring/Interim Work | N11: =SUM(L11,L61,L111,L161) -> 0 | R11: Monitoring/Interim Work | S11: =IF(K11=TRUE,3,"") -> 
J12: Corrective Action Plan Work | K12: FALSE | L12: =IF(K12=TRUE,$F$48,"") ->  | M12: Corrective Action Plan Work | N12: =SUM(L12,L62,L112,L162) -> 0 | R12: Corrective Action Plan Work | S12: =IF(K12=TRUE,4,"") -> 
A14: Free Product Recovery Total Number of Wells Handbailed: | E14: =IF(COUNTA(A16:E19)>0,COUNTA(A16:E19),"") ->  | G14: $177.00 - 1st Well $58.00 – Others The $58.00 rate applies to all wells handbailed on the same date as sampled.
A15: List wells handbailed below: Date handbailing occurred:
K17: box 1-5 | L17: box 6-10 | M17: box 11-15 | N17: box 16-20 | O17: box 21-25
J18: Emergency/Initial Work | K18: ='Miscellaneous 3'!H8 -> FALSE | L18: ='Miscellaneous 3'!H56 -> FALSE | M18: ='Miscellaneous 3'!H104 -> FALSE | N18: ='Miscellaneous 3'!H152 -> FALSE | O18: ='Miscellaneous 3'!H200 -> FALSE
J19: Investigation Work | K19: ='Miscellaneous 3'!H9 -> FALSE | L19: ='Miscellaneous 3'!H57 -> FALSE | M19: ='Miscellaneous 3'!H105 -> FALSE | N19: ='Miscellaneous 3'!H153 -> FALSE | O19: ='Miscellaneous 3'!H201 -> FALSE
A20: Gauging Wells Total Number of Wells Gauged: | E20: =IF(COUNTA(A22:E25)>0,COUNTA(A22:E25),"") ->  | G20: $16.00 per well | H20: =ROUND((COUNTA(A22:E25)*16),2) -> 0 | J20: Monitoring/Interim Work | K20: ='Miscellaneous 3'!H10 -> FALSE | L20: ='Miscellaneous 3'!H58 -> FALSE | M20: ='Miscellaneous 3'!H106 -> FALSE | N20: ='Miscellaneous 3'!H154 -> FALSE | O20: ='Miscellaneous 3'!H202 -> FALSE
A21: List wells gauged below: Date gauging occurred: | J21: Corrective Action Plan Work | K21: ='Miscellaneous 3'!H11 -> FALSE | L21: ='Miscellaneous 3'!H59 -> FALSE | M21: ='Miscellaneous 3'!H107 -> FALSE | N21: ='Miscellaneous 3'!H155 -> FALSE | O21: ='Miscellaneous 3'!H203 -> FALSE
J23: Emergency/Initial Work | K23: =IF(K18=FALSE,0,1) -> 0 | L23: =IF(L18=FALSE,0,1) -> 0 | M23: 0 | N23: 0 | O23: 0 | P23: =SUM(K23:O23) -> 0 | R23: Operation and Maintenance
J24: Investigation Work | K24: =IF(K19=FALSE,0,1) -> 0 | L24: 0 | M24: 0 | N24: 0 | O24: 0 | P24: =SUM(K24:O24) -> 0 | R24: Status | S24: Unit Type | T24: Rates | U24: Weekly | V24: Biweekly | W24: Monthly | X24: Quarterly
J25: Monitoring/Interim Work | K25: 0 | L25: 0 | M25: 0 | N25: 0 | O25: 0 | P25: 0 | R25: Active | S25: Type 1 | T25: Active Type 1 | U25: 375 | V25: 750
A26: Treatment Unit O&M | C26: Total No. of Events: | E26: =IF(COUNTA(C32:E36)>0,COUNTA(C32:E36),"") ->  | G26: See pages 65-66 and page 72 of the 2017 Cost Control Guidance Document for rate descriptions | H26: =ROUND(SUM((IF(COUNTA(C32:E36)>=1,(E26*E29)+(E28*200),0))+(E30*COUNTA(A32:A36))+(900*COUNTA(B32:B36))),2) -> 0 | J26: Corrective Action Plan Work | K26: 0 | L26: 0 | M26: 0 | N26: 0 | O26: 0 | P26: 0 | R26: Post | S26: Type 2 | T26: Active Type 2 | U26: 230 | V26: 460
A27: Remed. Status: | D27: Unit Type: | S27: Type 3 | T27: Active Type 3 | U27: 250 | V27: 500
A28: Frequency: | D28: Add. Units: | T28: Post Type 1 | W28: 375 | X28: 625
A29: # of Oil Changes: | B29: =IF(COUNTA(A32:A35)>0,COUNTA(A32:A35),"") ->  | D29: O&M Rate: | E29: =IF(B27>0,INDEX($U$25:$X$31,MATCH(B27&" "&E27,$T$25:$T$31,0),MATCH(B28,$U$24:$X$24,0)),0) -> 0 | T29: Post Type 2 | W29: 230 | X29: 385
A30: Unit HP Rating: | C30: Oil Change Rate: | E30: =IF(AND(B29>0,B30>0),IF(B30>40,2800+500,2800),0) -> 0 | T30: Post Type 3 | W30: 250 | X30: 415
A31: Oil Changes: | B31: Strip. Cleanings: | C31: O&M Events:
J35: Emergency/Initial Work | K35: =IF(P23=1,TRUE,FALSE) -> FALSE
J36: Investigation Work | K36: =IF(P24=1,TRUE,FALSE) -> FALSE
A37: Discharge Sampling Event - List dates sampling occurred (When additional sampling events are being requested due to an exceedance, a copy of the analytical result documenting the exceedance must be provided.) | G37: $235.00 per event | H37: =ROUND((COUNTA(A38:E41)*235),2) -> 0 | J37: Monitoring/Interim Work | K37: =IF(P25=1,TRUE,FALSE) -> FALSE
J38: Corrective Action Plan Work | K38: =IF(P26=1,TRUE,FALSE) -> FALSE
A42: Mob/Demob for Drilling/Direct Push/P&A | G42: $286.00 once per event | H42: =ROUND((COUNTA(B43:B45)*286),2) -> 0
A43: Date of event: | C43: Type of event:
A44: Date of event: | C44: Type of event:
A45: Date of event: | C45: Type of event:
A46: Obtaining offsite access | G46: $410.00 per property | H46: =C47*410 -> 0
A47: Number of Properties Accessed | J47: =IF(K9=TRUE,$N$9,IF(K10=TRUE,$N$10,IF(K11=TRUE,$N$11,IF(K12=TRUE,$N$12,0)))) -> 0
A48: SUBTOTAL OF THIS PAGE | F48: =SUM(H7:H47) -> 0 | J48: =SUM(J47) -> 0 | K48: =IF(J48>0,1,0) -> 0
A49: MISCELLANEOUS TOTAL | F49: =J49 ->  | J49: =IF(AND(K9=TRUE,$K$35=FALSE),$M$2,IF(AND(K10=TRUE,$K$36=FALSE),$M$3,IF(AND(K11=TRUE,$K$37=FALSE),$M$4,IF(AND(K12=TRUE,$K$38=FALSE),$M$5,"")))) -> 
A50: Page of (Miscellaneous Supplementary Sheet)
A51: PART 5.H (2)
A52: MISCELLANEOUS SUPPLEMENTARY SHEET
A53: UNIT PRICING FORM
A54: Check Event:
A55: Charges for the following activities shall be addressed on this form: groundwater sampling, discharge sampling and routine scheduled treatment unit operation and maintenance events. Refer to the Cost Control Guidance Document regarding specific activities/items covered under these unit prices. It is mandatory unit pricing for these activities.
A56: UNIT PRICE ACTIVITY | F56: RAC INVOICE NO. | G56: RATES | H56: COST
A57: Groundwater Sampling Total Number of Wells Sampled: | E57: =IF(COUNTA(A59:E63)>0,COUNTA(A59:E63),"") ->  | G57: $585.00 - 1st Well $182.00 – Others | H57: =ROUND(IF(COUNTA(A59:E63)=1,585,IF(COUNTA(A59:E63)>1,585+((COUNTA(A59:E63)-1)*182),0)),2) -> 0
A58: List wells sampled below: Date sampling occurred: | S58: 2nd type of print report
J59: Emergency/Initial Work | K59: FALSE | L59: =IF(K59=TRUE,$F$98,"") ->  | R59: Emergency/Initial Work | S59: =IF(K59=TRUE,1,"") -> 
J60: Investigation Work | K60: FALSE | L60: =IF(K60=TRUE,$F$98,"") ->  | R60: Investigation Work | S60: =IF(K60=TRUE,2,"") -> 
J61: Monitoring/Interim Work | K61: FALSE | R61: Monitoring/Interim Work | S61: =IF(K61=TRUE,3,"") -> 
J62: Corrective Action Plan Work | K62: FALSE | R62: Corrective Action Plan Work | S62: =IF(K62=TRUE,4,"") -> 
A64: Free Product Recovery Total Number of Wells Handbailed: | E64: =IF(COUNTA(A66:E69)>0,COUNTA(A66:E69),"") ->  | G64: $177.00 - 1st Well $58.00 – Others The $58.00 rate applies to all wells handbailed on the same date as sampled.
A65: List wells handbailed below: Date handbailing occurred:
A70: Gauging Wells Total Number of Wells Gauged: | E70: =IF(COUNTA(A72:E75)>0,COUNTA(A72:E75),"") ->  | G70: $16.00 per well | H70: =ROUND((COUNTA(A72:E75)*16),2) -> 0
A71: List wells gauged below: Date gauging occurred:
A76: Treatment Unit O&M | C76: Total No. of Events: | E76: =IF(COUNTA(C82:E86)>0,COUNTA(C82:E86),"") ->  | G76: See pages 65-66 and page 72 of the 2017 Cost Control Guidance Document for rate descriptions | H76: =ROUND(SUM((IF(COUNTA(C82:E86)>=1,(E76*E79)+(E78*200),0))+(E80*COUNTA(A82:A86))+(900*COUNTA(B82:B86))),2) -> 0
A77: Remed. Status: | D77: Unit Type:
A78: Frequency: | D78: Add. Units:
A79: # of Oil Changes: | B79: =IF(COUNTA(A82:A85)>0,COUNTA(A82:A85),"") ->  | D79: O&M Rate: | E79: =IF(B77>0,INDEX($U$25:$X$31,MATCH(B77&" "&E77,$T$25:$T$31,0),MATCH(B78,$U$24:$X$24,0)),0) -> 0
A80: Unit HP Rating: | C80: Oil Change Rate: | E80: =IF(AND(B79>0,B80>0),IF(B80>40,2800+500,2800),0) -> 0
A81: Oil Changes: | B81: Strip. Cleanings: | C81: O&M Events:
A87: Discharge Sampling Event - List dates sampling occurred (When additional sampling events are being requested due to an exceedance, a copy of the analytical result documenting the exceedance must be provided.) | G87: $235.00 per event | H87: =ROUND((COUNTA(A88:E91)*235),2) -> 0
A92: Mob/Demob for Drilling/Direct Push/P&A | G92: $286.00 once per event | H92: =ROUND((COUNTA(B93:B95)*286),2) -> 0
A93: Date of event: | C93: Type of event:
A94: Date of event: | C94: Type of event:
A95: Date of event: | C95: Type of event:
A96: Obtaining offsite access | G96: $410.00 per property | H96: =C97*410 -> 0
A97: Number of Properties Accessed | J97: =IF(K59=TRUE,$N$9,IF(K60=TRUE,$N$10,IF(K61=TRUE,$N$11,IF(K62=TRUE,$N$12,0)))) -> 0
A98: SUBTOTAL OF THIS PAGE | F98: =SUM(H57:H97) -> 0 | J98: =SUM(J97) -> 0 | K98: =IF(J98>0,1,0) -> 0
A99: MISCELLANEOUS TOTAL | F99: =J99 ->  | J99: =IF((K59=TRUE)*AND($K$35=FALSE),$M$2,IF((K60=TRUE)*AND($K$36=FALSE),$M$3,IF((K61=TRUE)*AND($K$37=FALSE),$M$4,IF((K62=TRUE)*AND($K$38=FALSE),$M$5,"")))) -> 
A100: Page of (Miscellaneous Supplementary Sheet)
A101: PART 5.H (2)
A102: MISCELLANEOUS SUPPLEMENTARY SHEET
A103: UNIT PRICING FORM
A104: Check Event:
A105: Charges for the following activities shall be addressed on this form: groundwater sampling, discharge sampling and routine scheduled treatment unit operation and maintenance events. Refer to the Cost Control Guidance Document regarding specific activities/items covered under these unit prices. It is mandatory unit pricing for these activities.
A106: UNIT PRICE ACTIVITY | F106: RAC INVOICE NO. | G106: RATES | H106: COST
A107: Groundwater Sampling Total Number of Wells Sampled: | E107: =IF(COUNTA(A109:E113)>0,COUNTA(A109:E113),"") ->  | G107: $585.00 - 1st Well $182.00 – Others | H107: =ROUND(IF(COUNTA(A109:E113)=1,585,IF(COUNTA(A109:E113)>1,585+((COUNTA(A109:E113)-1)*182),0)),2) -> 0
A108: List wells sampled below: Date sampling occurred: | S108: 2nd type of print report
J109: Emergency/Initial Work | K109: FALSE | L109: =IF(K109=TRUE,$F$148,"") ->  | R109: Emergency/Initial Work | S109: =IF(K109=TRUE,1,"") -> 
J110: Investigation Work | K110: FALSE | L110: =IF(K110=TRUE,$F$148,"") ->  | R110: Investigation Work | S110: =IF(K110=TRUE,2,"") -> 
J111: Monitoring/Interim Work | K111: FALSE | R111: Monitoring/Interim Work | S111: =IF(K111=TRUE,3,"") -> 
J112: Corrective Action Plan Work | K112: FALSE | R112: Corrective Action Plan Work | S112: =IF(K112=TRUE,4,"") -> 
A114: Free Product Recovery Total Number of Wells Handbailed: | E114: =IF(COUNTA(A116:E119)>0,COUNTA(A116:E119),"") ->  | G114: $177.00 - 1st Well $58.00 – Others The $58.00 rate applies to all wells handbailed on the same date as sampled.
A115: List wells handbailed below: Date handbailing occurred:
A120: Gauging Wells Total Number of Wells Gauged: | E120: =IF(COUNTA(A122:E125)>0,COUNTA(A122:E125),"") ->  | G120: $16.00 per well | H120: =ROUND((COUNTA(A122:E125)*16),2) -> 0
A121: List wells gauged below: Date gauging occurred:
A126: Treatment Unit O&M | C126: Total No. of Events: | E126: =IF(COUNTA(C132:E136)>0,COUNTA(C132:E136),"") ->  | G126: See pages 65-66 and page 72 of the 2017 Cost Control Guidance Document for rate descriptions | H126: =ROUND(SUM((IF(COUNTA(C132:E136)>=1,(E126*E129)+(E128*200),0))+(E130*COUNTA(A132:A136))+(900*COUNTA(B132:B136))),2) -> 0
A127: Remed. Status: | D127: Unit Type:
A128: Frequency: | D128: Add. Units:
A129: # of Oil Changes: | B129: =IF(COUNTA(A132:A135)>0,COUNTA(A132:A135),"") ->  | D129: O&M Rate: | E129: =IF(B127>0,INDEX($U$25:$X$31,MATCH(B127&" "&E127,$T$25:$T$31,0),MATCH(B128,$U$24:$X$24,0)),0) -> 0
A130: Unit HP Rating: | C130: Oil Change Rate: | E130: =IF(AND(B129>0,B130>0),IF(B130>40,2800+500,2800),0) -> 0
A131: Oil Changes: | B131: Strip. Cleanings: | C131: O&M Events:
A137: Discharge Sampling Event - List dates sampling occurred (When additional sampling events are being requested due to an exceedance, a copy of the analytical result documenting the exceedance must be provided.) | G137: $235.00 per event | H137: =ROUND((COUNTA(A138:E141)*235),2) -> 0
A142: Mob/Demob for Drilling/Direct Push/P&A | G142: $286.00 once per event | H142: =ROUND((COUNTA(B143:B145)*286),2) -> 0
A143: Date of event: | C143: Type of event:
A144: Date of event: | C144: Type of event:
A145: Date of event: | C145: Type of event:
A146: Obtaining offsite access | G146: $410.00 per property | H146: =C147*410 -> 0
A147: Number of Properties Accessed | J147: =IF(K109=TRUE,$N$9,IF(K110=TRUE,$N$10,IF(K111=TRUE,$N$11,IF(K112=TRUE,$N$12,0)))) -> 0
A148: SUBTOTAL OF THIS PAGE | F148: =SUM(H107:H147) -> 0 | J148: =SUM(J147) -> 0 | K148: =IF(J148>0,1,0) -> 0
A149: MISCELLANEOUS TOTAL | F149: =J149 ->  | J149: =IF((K109=TRUE)*AND($K$35=FALSE),$M$2,IF((K110=TRUE)*AND($K$36=FALSE),$M$3,IF((K111=TRUE)*AND($K$37=FALSE),$M$4,IF((K112=TRUE)*AND($K$38=FALSE),$M$5,"")))) -> 
A150: Page of (Miscellaneous Supplementary Sheet)
A151: PART 5.H (2)
A152: MISCELLANEOUS SUPPLEMENTARY SHEET
A153: UNIT PRICING FORM
A154: Check Event:
A155: Charges for the following activities shall be addressed on this form: groundwater sampling, discharge sampling and routine scheduled treatment unit operation and maintenance events. Refer to the Cost Control Guidance Document regarding specific activities/items covered under these unit prices. It is mandatory unit pricing for these activities.
A156: UNIT PRICE ACTIVITY | F156: RAC INVOICE NO. | G156: RATES | H156: COST
A157: Groundwater Sampling Total Number of Wells Sampled: | E157: =IF(COUNTA(A159:E163)>0,COUNTA(A159:E163),"") ->  | G157: $585.00 - 1st Well $182.00 – Others | H157: =ROUND(IF(COUNTA(A159:E163)=1,585,IF(COUNTA(A159:E163)>1,585+((COUNTA(A159:E163)-1)*182),0)),2) -> 0
A158: List wells sampled below: Date sampling occurred: | S158: 2nd type of print report
J159: Emergency/Initial Work | K159: FALSE | L159: =IF(K159=TRUE,$F$198,"") ->  | R159: Emergency/Initial Work | S159: =IF(K159=TRUE,1,"") -> 
J160: Investigation Work | K160: FALSE | L160: =IF(K160=TRUE,$F$198,"") ->  | R160: Investigation Work | S160: =IF(K160=TRUE,2,"") -> 
J161: Monitoring/Interim Work | K161: FALSE | R161: Monitoring/Interim Work | S161: =IF(K161=TRUE,3,"") -> 
J162: Corrective Action Plan Work | K162: FALSE | R162: Corrective Action Plan Work | S162: =IF(K162=TRUE,4,"") -> 
A164: Free Product Recovery Total Number of Wells Handbailed: | E164: =IF(COUNTA(A166:E169)>0,COUNTA(A166:E169),"") ->  | G164: $177.00 - 1st Well $58.00 – Others The $58.00 rate applies to all wells handbailed on the same date as sampled.
A165: List wells handbailed below: Date handbailing occurred:
A170: Gauging Wells Total Number of Wells Gauged: | E170: =IF(COUNTA(A172:E175)>0,COUNTA(A172:E175),"") ->  | G170: $16.00 per well | H170: =ROUND((COUNTA(A172:E175)*16),2) -> 0
A171: List wells gauged below: Date gauging occurred:
A176: Treatment Unit O&M | C176: Total No. of Events: | E176: =IF(COUNTA(C182:E186)>0,COUNTA(C182:E186),"") ->  | G176: See pages 65-66 and page 72 of the 2017 Cost Control Guidance Document for rate descriptions | H176: =ROUND(SUM((IF(COUNTA(C182:E186)>=1,(E176*E179)+(E178*200),0))+(E180*COUNTA(A182:A186))+(900*COUNTA(B182:B186))),2) -> 0
A177: Remed. Status: | D177: Unit Type:
A178: Frequency: | D178: Add. Units:
A179: # of Oil Changes: | B179: =IF(COUNTA(A182:A185)>0,COUNTA(A182:A185),"") ->  | D179: O&M Rate: | E179: =IF(B177>0,INDEX($U$25:$X$31,MATCH(B177&" "&E177,$T$25:$T$31,0),MATCH(B178,$U$24:$X$24,0)),0) -> 0
A180: Unit HP Rating: | C180: Oil Change Rate: | E180: =IF(AND(B179>0,B180>0),IF(B180>40,2800+500,2800),0) -> 0
A181: Oil Changes: | B181: Strip. Cleanings: | C181: O&M Events:
A187: Discharge Sampling Event - List dates sampling occurred (When additional sampling events are being requested due to an exceedance, a copy of the analytical result documenting the exceedance must be provided.) | G187: $235.00 per event | H187: =ROUND((COUNTA(A188:E191)*235),2) -> 0
A192: Mob/Demob for Drilling/Direct Push/P&A | G192: $286.00 once per event | H192: =ROUND((COUNTA(B193:B195)*286),2) -> 0
A193: Date of event: | C193: Type of event:
A194: Date of event: | C194: Type of event:
A195: Date of event: | C195: Type of event:
A196: Obtaining offsite access | G196: $410.00 per property | H196: =C197*410 -> 0
A197: Number of Properties Accessed | J197: =IF(K159=TRUE,$N$9,IF(K160=TRUE,$N$10,IF(K161=TRUE,$N$11,IF(K162=TRUE,$N$12,0)))) -> 0
A198: SUBTOTAL OF THIS PAGE | F198: =SUM(H157:H197) -> 0 | J198: =SUM(J197) -> 0 | K198: =IF(J198>0,1,0) -> 0
A199: MISCELLANEOUS TOTAL | F199: =J199 ->  | J199: =IF((K159=TRUE)*AND($K$35=FALSE),$M$2,IF((K160=TRUE)*AND($K$36=FALSE),$M$3,IF((K161=TRUE)*AND($K$37=FALSE),$M$4,IF((K162=TRUE)*AND($K$38=FALSE),$M$5,"")))) -> 
A200: Page of (Miscellaneous Supplementary Sheet)

Sheet Miscellaneous 3
A1: PART 5.H (3) | H1: Mis1 | I1: Mis 2 | J1: Mis 3 | K1: Total
A2: MISCELLANEOUS SUPPLEMENTARY SHEET | G2: Emergency/Initial Work | H2: ='Miscellaneous 1'!K11 -> 0 | I2: ='Miscellaneous 2'!N9 -> 0 | J2: =K8 -> 0 | K2: =SUM(H2:J2) -> 0
A3: UNIT PRICING FORM | G3: Investigation Work | H3: ='Miscellaneous 1'!K12 -> 0 | I3: ='Miscellaneous 2'!N10 -> 0 | J3: =K9 -> 0 | K3: =SUM(H3:J3) -> 0
A4: Check Event: | G4: Monitoring/Interim Work | H4: ='Miscellaneous 1'!K13 -> 0 | I4: ='Miscellaneous 2'!N11 -> 0 | J4: =K10 -> 0 | K4: 0
G5: Corrective Action Plan Work | H5: ='Miscellaneous 1'!K14 -> 0 | I5: ='Miscellaneous 2'!N12 -> 0 | J5: 0 | K5: =SUM(H5:J5) -> 0
A6: Unit pricing for these activities is mandatory. | G6: Report Preparation | H6: ='Miscellaneous 1'!K15 -> 0 | I6: 0 | J6: 0 | K6: 0
A7: UNIT PRICE ACTIVITY | C7: RAC INVOICE NO. | D7: RATES | E7: COST | K7: Sheet Total
A8: Bid Package Preparation: Provide Bid Summary with RAC Invoice. | D8: See page 54 of the 2017 Cost Control Guidance Document for rate descriptions | G8: Emergency/Initial Work | H8: FALSE | I8: =IF(H8=TRUE,$D$46,"") ->  | J8: Emergency/Initial Work | K8: =SUM(I8,I56,I104,I152,I200) -> 0
G9: Investigation Work | H9: FALSE | I9: =IF(H9=TRUE,$D$46,"") ->  | J9: Investigation Work | K9: =SUM(I9,I57,I105,I153,I201) -> 0
A10: Description of Bid Package: | E10: =ROUND(IF(B10>0,IF(B10=$J$17,INDEX($K$17:$M$21,MATCH(B10,$J$17:$J$21,0),MATCH(B11,$K$16:$M$16,0)),VLOOKUP(B10,$J$18:$K$21,2,FALSE)),0),2) -> 0 | G10: Monitoring/Interim Work | H10: FALSE | I10: =IF(H10=TRUE,$D$46,"") ->  | J10: Monitoring/Interim Work | K10: 0
A11: Value of Work: | G11: Corrective Action Plan Work | H11: FALSE | I11: =IF(H11=TRUE,$D$46,"") ->  | J11: Corrective Action Plan Work | K11: =SUM(I11,I59,I107,I155,I203) -> 0
A12: Description of Bid Package: | E12: =ROUND(IF(B12>0,IF(B12=$J$17,INDEX($K$17:$M$21,MATCH(B12,$J$17:$J$21,0),MATCH(B13,$K$16:$M$16,0)),VLOOKUP(B12,$J$18:$K$21,2,FALSE)),0),2) -> 0 | G12: Report Preparation | H12: FALSE | I12: =IF(H12=TRUE,$D$46,"") ->  | J12: Report Preparation | K12: 0
A13: Value of Work:
A14: Treatment System Design/Engineering/Planning and Treatment System Installation Design/Engineering/Planning | D14: $4,680.00 (See page 73 of the CCGD) | E14: =ROUND(IF(C14>0,4680,0),2) -> 0 | G14: Emergency/Initial Work | H14: =IF(H8=TRUE,1,"") -> 
A15: Conveyance Notice (Copy of conveyance notice for each property is required for payment) | D15: $1,200.00 per affected property | E15: =ROUND(IF(C15>0,1200,0),2) -> 0 | G15: Investigation Work | H15: =IF(H9=TRUE,2,"") ->  | J15: Bid Package Prep
A16: Corrective Action Plan Construction and Operations Report | D16: See page 56 of the 2017 Cost Control Guidance Document for rate descriptions | E16: =ROUND(IF(AND(B17>0,B18>0),VLOOKUP(B18,$J$24:$K$27,2,FALSE),0),2) -> 0 | G16: Monitoring/Interim Work | H16: =IF(H10=TRUE,3,"") ->  | K16: $0.00 - $1,999.99 | L16: $2,000.00 - $9,999.99 | M16: $10,000.00 and greater
A17: Date of Report: | G17: Corrective Action Plan Work | H17: =IF(H11=TRUE,4,"") ->  | J17: Work Value Based | K17: 0 | L17: 118 | M17: 300
A18: Report Type: | G18: Report Preparation | H18: =IF(H12=TRUE,5,"") ->  | J18: Treatment System Purchase | K18: 585
A19: P & A Report | D19: $750.00 per report | E19: =ROUND(IF(B20>0,750,0),2) -> 0 | J19: Chemical Injection Events | K19: 585
A20: Date of Report: | J20: Used Treatment System Sale | K20: 585
A21: Permit Application Development and Submittal (select from lists) | D21: See page 67 of the 2017 CCGD for rate descrpitions | E21: =IF(OR(COUNTIF(A22:B22,"*Water*")>1,COUNTIF(A22:B22,"*Air*")>1),"Duplicate Entry",SUM(IF(A22>0,VLOOKUP(A22,$G$32:$H$34,2,FALSE),0)+IF(B22>0,VLOOKUP(B22,$G$32:$H$34,2,FALSE),0))) -> 0 | J21: Treatment System Installation | K21: 1750
A23: Quarterly Monitoring Reports (if applicable) – Indicate report period | D23: See page 61 of the 2017 Cost Control Guidance Document for rate descriptions | J23: Construction and Operations Report
A24: Quarter | B24: Year | J24: With System Installation | K24: 1840
G25: Monitoring Reports | J25: Without System Installation | K25: 780
A26: Annual or Semi-Annual Report (if applicable) - Indicate report period | D26: See page 62 of the 2017 Cost Control Guidance Document for rate descriptions | G26: Annual | H26: Jan. - March | J26: Excavation > or = 675 tons | K26: 3000
A27: Report Type: | G27: Semi-Annual | H27: April - June | J27: Excavation < or = 675 tons | K27: 1800
A28: Report Period: | H28: July - Sept.
A29: State or Municipal/Parish Quarterly Discharge Monitoring Report | D29: $208.00 per report ($78.00 for “No Discharge") | H29: Oct. - Dec.
A30: Report period(s): | J30: Vacuum Event
A31: Permit number(s): | G31: Permits | K31: First Event | L31: Additional Events | M31: Planning
A32: Soil Confirmation Report Date: | D32: 17% of reimbursed field work ($10,000 max) | E32: =ROUND(IF(OR(B33=0,B32=0),0,IF(B33*0.17>10000,10000,B33*0.17)),2) -> 0 | G32: Air Exemption | H32: 1405 | J32: Free Product Recovery Only | K32: 572 | L32: 104 | M32: 86
A33: Cost of Field Work: | G33: Air Permit (Small Source) | H33: 4680 | J33: Free Product Recovery and Vapor Calculations | K33: 1500 | L33: 500 | M33: 250
A34: Vac. Events Report Date of Report: | D34: See page 74-75 of the 2017 Cost Control Guidance Document for rate descriptions | E34: =ROUND(IF(OR(COUNTA(A37:B40)=0,B34=0),0,IF(COUNTA(A37:B40)=1,VLOOKUP(B35,$J$32:$M$33,2,FALSE),IF(COUNTA(A37:B40)>1, VLOOKUP(B35,$J$32:$M$33,2,FALSE)+((COUNTA(A37:B40)-1)*VLOOKUP(B35,$J$32:$M$33,3,FALSE)),0))),2) -> 0 | G34: Water | H34: 1750
A35: Report Type:
A36: List Dates of Events:
A41: Vacuum Event Planning Type: | E41: =ROUND(IF(AND(B41>0,B42>0),VLOOKUP(B41,$J$31:$M$33,4,FALSE)*B42,0),2) -> 0
A42: Number of Events:
A43: Vacuum Extraction Pilot Test Report | D43: $350.00 per plan $2,912.00 per report | E43: =ROUND(IF(AND(B44>0,B45>0),(350+2912),IF(OR(B44>0,B45>0),IF(AND(B44>0,B45=0),350,IF(AND(B44=0,B45>0),2912,0)),0)),2) -> 0
A44: Date of Plan:
A45: Date of Report:
A46: SUBTOTAL OF THIS PAGE | D46: =SUM(E8:E44) -> 0 | G46: =IF(H8=TRUE,$K$2,IF(H9=TRUE,$K$3,IF(H10=TRUE,$K$4,IF(H11=TRUE,$K$5,)))) -> 0
A47: MISCELLANOUS TOTAL | D47: =SUM(G46) -> 0 | G47: =IF(SUM(D46:E47)>0,1,0) -> 0
A48: Page of (Miscellaneous Supplementary Sheet)
A49: PART 5.H (3)
A50: MISCELLANEOUS SUPPLEMENTARY SHEET
A51: UNIT PRICING FORM
A52: Check Event:
A54: Unit pricing for these activities is mandatory.
A55: UNIT PRICE ACTIVITY | C55: RAC INVOICE NO. | D55: RATES | E55: COST
A56: Bid Package Preparation: Provide Bid Summary with RAC Invoice. | D56: See page 54 of the 2017 Cost Control Guidance Document for rate descriptions | G56: Emergency/Initial Work | H56: FALSE | I56: =IF(H56=TRUE,$D$94,"") -> 
G57: Investigation Work | H57: FALSE | I57: =IF(H57=TRUE,$D$94,"") -> 
A58: Description of Bid Package: | E58: =ROUND(IF(B58>0,IF(B58=$J$17,INDEX($K$17:$M$21,MATCH(B58,$J$17:$J$21,0),MATCH(B59,$K$16:$M$16,0)),VLOOKUP(B58,$J$18:$K$21,2,FALSE)),0),2) -> 0 | G58: Monitoring/Interim Work | H58: FALSE
A59: Value of Work: | G59: Corrective Action Plan Work | H59: FALSE
A60: Description of Bid Package: | E60: =ROUND(IF(B60>0,IF(B60=$J$17,INDEX($K$17:$M$21,MATCH(B60,$J$17:$J$21,0),MATCH(B61,$K$16:$M$16,0)),VLOOKUP(B60,$J$18:$K$21,2,FALSE)),0),2) -> 0 | G60: Report Preparation | H60: FALSE
A61: Value of Work:
A62: Treatment System Design/Engineering/Planning and Treatment System Installation Design/Engineering/Planning | D62: $4,680.00 (See page 73 of the CCGD) | E62: =ROUND(IF(C62>0,4680,0),2) -> 0 | G62: Emergency/Initial Work | H62: =IF(H56=TRUE,1,"") -> 
A63: Conveyance Notice (Copy of conveyance notice for each property is required for payment) | D63: $1,200.00 per affected property | E63: =ROUND(IF(C63>0,1200,0),2) -> 0 | G63: Investigation Work | H63: =IF(H57=TRUE,2,"") -> 
A64: Corrective Action Plan Construction and Operations Report | D64: See page 56 of the 2017 Cost Control Guidance Document for rate descriptions | E64: =ROUND(IF(AND(B65>0,B66>0),VLOOKUP(B66,$J$24:$K$27,2,FALSE),0),2) -> 0 | G64: Monitoring/Interim Work | H64: =IF(H58=TRUE,3,"") -> 
A65: Date of Report: | G65: Corrective Action Plan Work | H65: =IF(H59=TRUE,4,"") -> 
A66: Report Type: | G66: Report Preparation | H66: =IF(H60=TRUE,5,"") -> 
A67: P & A Report | D67: $750.00 per report | E67: =ROUND(IF(B68>0,750,0),2) -> 0
A68: Date of Report:
A69: Permit Application Development and Submittal (select from lists) | D69: See page 67 of the 2017 CCGD for rate descrpitions | E69: =IF(OR(COUNTIF(A70:B70,"*Water*")>1,COUNTIF(A70:B70,"*Air*")>1),"Duplicate Entry",SUM(IF(A70>0,VLOOKUP(A70,$G$32:$H$34,2,FALSE),0)+IF(B70>0,VLOOKUP(B70,$G$32:$H$34,2,FALSE),0))) -> 0
A71: Quarterly Monitoring Reports (if applicable) – Indicate report period | D71: See page 61 of the 2017 Cost Control Guidance Document for rate descriptions
A72: Quarter | B72: Year
A74: Annual or Semi-Annual Report (if applicable) - Indicate report period | D74: See page 62 of the 2017 Cost Control Guidance Document for rate descriptions
A75: Report Type:
A76: Report Period:
A77: State or Municipal/Parish Quarterly Discharge Monitoring Report | D77: $208.00 per report ($78.00 for “No Discharge")
A78: Report period(s):
A79: Permit number(s):
A80: Soil Confirmation Report Date: | D80: 17% of reimbursed field work ($10,000 max) | E80: =ROUND(IF(OR(B81=0,B80=0),0,IF(B81*0.17>10000,10000,B81*0.17)),2) -> 0
A81: Cost of Field Work:
A82: Vac. Events Report Date of Report: | D82: See page 74-75 of the 2017 Cost Control Guidance Document for rate descriptions | E82: =ROUND(IF(OR(COUNTA(A85:B88)=0,B82=0),0,IF(COUNTA(A85:B88)=1,VLOOKUP(B83,$J$32:$M$33,2,FALSE),IF(COUNTA(A85:B88)>1, VLOOKUP(B83,$J$32:$M$33,2,FALSE)+((COUNTA(A85:B88)-1)*VLOOKUP(B83,$J$32:$M$33,3,FALSE)),0))),2) -> 0
A83: Report Type:
A84: List Dates of Events:
A89: Vacuum Event Planning Type: | E89: =ROUND(IF(AND(B89>0,B90>0),VLOOKUP(B89,$J$31:$M$33,4,FALSE)*B90,0),2) -> 0
A90: Number of Events:
A91: Vacuum Extraction Pilot Test Report | D91: $350.00 per plan $2,912.00 per report | E91: =ROUND(IF(AND(B92>0,B93>0),(350+2912),IF(OR(B92>0,B93>0),IF(AND(B92>0,B93=0),350,IF(AND(B92=0,B93>0),2912,0)),0)),2) -> 0
A92: Date of Plan:
A93: Date of Report:
A94: SUBTOTAL OF THIS PAGE | D94: =SUM(E56:E92) -> 0 | G94: =IF(H56=TRUE,$K$2,IF(H57=TRUE,$K$3,IF(H58=TRUE,$K$4,IF(H59=TRUE,$K$5,)))) -> 0
A95: MISCELLANOUS TOTAL | D95: =SUM(G94) -> 0 | G95: =IF(SUM(D94:E95)>0,1,0) -> 0
A96: Page of (Miscellaneous Supplementary Sheet)
A97: PART 5.H (3)
A98: MISCELLANEOUS SUPPLEMENTARY SHEET
A99: UNIT PRICING FORM
A100: Check Event:
A102: Unit pricing for these activities is mandatory.
A103: UNIT PRICE ACTIVITY | C103: RAC INVOICE NO. | D103: RATES | E103: COST
A104: Bid Package Preparation: Provide Bid Summary with RAC Invoice. | D104: See page 54 of the 2017 Cost Control Guidance Document for rate descriptions | G104: Emergency/Initial Work | H104: FALSE | I104: =IF(H104=TRUE,$D$142,"") -> 
G105: Investigation Work | H105: FALSE | I105: =IF(H105=TRUE,$D$142,"") -> 
A106: Description of Bid Package: | E106: =ROUND(IF(B106>0,IF(B106=$J$17,INDEX($K$17:$M$21,MATCH(B106,$J$17:$J$21,0),MATCH(B107,$K$16:$M$16,0)),VLOOKUP(B106,$J$18:$K$21,2,FALSE)),0),2) -> 0 | G106: Monitoring/Interim Work | H106: FALSE
A107: Value of Work: | G107: Corrective Action Plan Work | H107: FALSE
A108: Description of Bid Package: | E108: =ROUND(IF(B108>0,IF(B108=$J$17,INDEX($K$17:$M$21,MATCH(B108,$J$17:$J$21,0),MATCH(B109,$K$16:$M$16,0)),VLOOKUP(B108,$J$18:$K$21,2,FALSE)),0),2) -> 0 | G108: Report Preparation | H108: FALSE
A109: Value of Work:
A110: Treatment System Design/Engineering/Planning and Treatment System Installation Design/Engineering/Planning | D110: $4,680.00 (See page 73 of the CCGD) | E110: =ROUND(IF(C110>0,4680,0),2) -> 0 | G110: Emergency/Initial Work | H110: =IF(H104=TRUE,1,"") -> 
A111: Conveyance Notice (Copy of conveyance notice for each property is required for payment) | D111: $1,200.00 per affected property | E111: =ROUND(IF(C111>0,1200,0),2) -> 0 | G111: Investigation Work | H111: =IF(H105=TRUE,2,"") -> 
A112: Corrective Action Plan Construction and Operations Report | D112: See page 56 of the 2017 Cost Control Guidance Document for rate descriptions | E112: =ROUND(IF(AND(B113>0,B114>0),VLOOKUP(B114,$J$24:$K$27,2,FALSE),0),2) -> 0 | G112: Monitoring/Interim Work | H112: =IF(H106=TRUE,3,"") -> 
A113: Date of Report: | G113: Corrective Action Plan Work | H113: =IF(H107=TRUE,4,"") -> 
A114: Report Type: | G114: Report Preparation | H114: =IF(H108=TRUE,5,"") -> 
A115: P & A Report | D115: $750.00 per report | E115: =ROUND(IF(B116>0,750,0),2) -> 0
A116: Date of Report:
A117: Permit Application Development and Submittal (select from lists) | D117: See page 67 of the 2017 CCGD for rate descrpitions | E117: =IF(OR(COUNTIF(A118:B118,"*Water*")>1,COUNTIF(A118:B118,"*Air*")>1),"Duplicate Entry",SUM(IF(A118>0,VLOOKUP(A118,$G$32:$H$34,2,FALSE),0)+IF(B118>0,VLOOKUP(B118,$G$32:$H$34,2,FALSE),0))) -> 0
A119: Quarterly Monitoring Reports (if applicable) – Indicate report period | D119: See page 61 of the 2017 Cost Control Guidance Document for rate descriptions
A120: Quarter | B120: Year
A122: Annual or Semi-Annual Report (if applicable) - Indicate report period | D122: See page 62 of the 2017 Cost Control Guidance Document for rate descriptions
A123: Report Type:
A124: Report Period:
A125: State or Municipal/Parish Quarterly Discharge Monitoring Report | D125: $208.00 per report ($78.00 for “No Discharge")
A126: Report period(s):
A127: Permit number(s):
A128: Soil Confirmation Report Date: | D128: 17% of reimbursed field work ($10,000 max) | E128: =ROUND(IF(OR(B129=0,B128=0),0,IF(B129*0.17>10000,10000,B129*0.17)),2) -> 0
A129: Cost of Field Work:
A130: Vac. Events Report Date of Report: | D130: See page 74-75 of the 2017 Cost Control Guidance Document for rate descriptions | E130: =ROUND(IF(OR(COUNTA(A133:B136)=0,B130=0),0,IF(COUNTA(A133:B136)=1,VLOOKUP(B131,$J$32:$M$33,2,FALSE),IF(COUNTA(A133:B136)>1, VLOOKUP(B131,$J$32:$M$33,2,FALSE)+((COUNTA(A133:B136)-1)*VLOOKUP(B131,$J$32:$M$33,3,FALSE)),0))),2) -> 0
A131: Report Type:
A132: List Dates of Events:
A137: Vacuum Event Planning Type: | E137: =ROUND(IF(AND(B137>0,B138>0),VLOOKUP(B137,$J$31:$M$33,4,FALSE)*B138,0),2) -> 0
A138: Number of Events:
A139: Vacuum Extraction Pilot Test Report | D139: $350.00 per plan $2,912.00 per report | E139: =ROUND(IF(AND(B140>0,B141>0),(350+2912),IF(OR(B140>0,B141>0),IF(AND(B140>0,B141=0),350,IF(AND(B140=0,B141>0),2912,0)),0)),2) -> 0
A140: Date of Plan:
A141: Date of Report:
A142: SUBTOTAL OF THIS PAGE | D142: =SUM(E104:E140) -> 0 | G142: =IF(H104=TRUE,$K$2,IF(H105=TRUE,$K$3,IF(H106=TRUE,$K$4,IF(H107=TRUE,$K$5,)))) -> 0
A143: MISCELLANOUS TOTAL | D143: =SUM(G142) -> 0 | G143: =IF(SUM(D142:E143)>0,1,0) -> 0
A144: Page of (Miscellaneous Supplementary Sheet)
A145: PART 5.H (3)
A146: MISCELLANEOUS SUPPLEMENTARY SHEET
A147: UNIT PRICING FORM
A148: Check Event:
A150: Unit pricing for these activities is mandatory.
A151: UNIT PRICE ACTIVITY | C151: RAC INVOICE NO. | D151: RATES | E151: COST
A152: Bid Package Preparation: Provide Bid Summary with RAC Invoice. | D152: See page 54 of the 2017 Cost Control Guidance Document for rate descriptions | G152: Emergency/Initial Work | H152: FALSE | I152: =IF(H152=TRUE,$D$190,"") -> 
G153: Investigation Work | H153: FALSE | I153: =IF(H153=TRUE,$D$190,"") -> 
A154: Description of Bid Package: | E154: =ROUND(IF(B154>0,IF(B154=$J$17,INDEX($K$17:$M$21,MATCH(B154,$J$17:$J$21,0),MATCH(B155,$K$16:$M$16,0)),VLOOKUP(B154,$J$18:$K$21,2,FALSE)),0),2) -> 0 | G154: Monitoring/Interim Work | H154: FALSE
A155: Value of Work: | G155: Corrective Action Plan Work | H155: FALSE
A156: Description of Bid Package: | E156: =ROUND(IF(B156>0,IF(B156=$J$17,INDEX($K$17:$M$21,MATCH(B156,$J$17:$J$21,0),MATCH(B157,$K$16:$M$16,0)),VLOOKUP(B156,$J$18:$K$21,2,FALSE)),0),2) -> 0 | G156: Report Preparation | H156: FALSE
A157: Value of Work:
A158: Treatment System Design/Engineering/Planning and Treatment System Installation Design/Engineering/Planning | D158: $4,680.00 (See page 73 of the CCGD) | E158: =ROUND(IF(C158>0,4680,0),2) -> 0 | G158: Emergency/Initial Work | H158: =IF(H152=TRUE,1,"") -> 
A159: Conveyance Notice (Copy of conveyance notice for each property is required for payment) | D159: $1,200.00 per affected property | E159: =ROUND(IF(C159>0,1200,0),2) -> 0 | G159: Investigation Work | H159: =IF(H153=TRUE,2,"") -> 
A160: Corrective Action Plan Construction and Operations Report | D160: See page 56 of the 2017 Cost Control Guidance Document for rate descriptions | E160: =ROUND(IF(AND(B161>0,B162>0),VLOOKUP(B162,$J$24:$K$27,2,FALSE),0),2) -> 0 | G160: Monitoring/Interim Work | H160: =IF(H154=TRUE,3,"") -> 
A161: Date of Report: | G161: Corrective Action Plan Work | H161: =IF(H155=TRUE,4,"") -> 
A162: Report Type: | G162: Report Preparation | H162: =IF(H156=TRUE,5,"") -> 
A163: P & A Report | D163: $750.00 per report | E163: =ROUND(IF(B164>0,750,0),2) -> 0
A164: Date of Report:
A165: Permit Application Development and Submittal (select from lists) | D165: See page 67 of the 2017 CCGD for rate descrpitions | E165: =IF(OR(COUNTIF(A166:B166,"*Water*")>1,COUNTIF(A166:B166,"*Air*")>1),"Duplicate Entry",SUM(IF(A166>0,VLOOKUP(A166,$G$32:$H$34,2,FALSE),0)+IF(B166>0,VLOOKUP(B166,$G$32:$H$34,2,FALSE),0))) -> 0
A167: Quarterly Monitoring Reports (if applicable) – Indicate report period | D167: See page 61 of the 2017 Cost Control Guidance Document for rate descriptions
A168: Quarter | B168: Year
A170: Annual or Semi-Annual Report (if applicable) - Indicate report period | D170: See page 62 of the 2017 Cost Control Guidance Document for rate descriptions
A171: Report Type:
A172: Report Period:
A173: State or Municipal/Parish Quarterly Discharge Monitoring Report | D173: $208.00 per report ($78.00 for “No Discharge")
A174: Report period(s):
A175: Permit number(s):
A176: Soil Confirmation Report Date: | D176: 17% of reimbursed field work ($10,000 max) | E176: =ROUND(IF(OR(B177=0,B176=0),0,IF(B177*0.17>10000,10000,B177*0.17)),2) -> 0
A177: Cost of Field Work:
A178: Vac. Events Report Date of Report: | D178: See page 74-75 of the 2017 Cost Control Guidance Document for rate descriptions | E178: =ROUND(IF(OR(COUNTA(A181:B184)=0,B178=0),0,IF(COUNTA(A181:B184)=1,VLOOKUP(B179,$J$32:$M$33,2,FALSE),IF(COUNTA(A181:B184)>1, VLOOKUP(B179,$J$32:$M$33,2,FALSE)+((COUNTA(A181:B184)-1)*VLOOKUP(B179,$J$32:$M$33,3,FALSE)),0))),2) -> 0
A179: Report Type:
A180: List Dates of Events:
A185: Vacuum Event Planning Type: | E185: =ROUND(IF(AND(B185>0,B186>0),VLOOKUP(B185,$J$31:$M$33,4,FALSE)*B186,0),2) -> 0
A186: Number of Events:
A187: Vacuum Extraction Pilot Test Report | D187: $350.00 per plan $2,912.00 per report | E187: =ROUND(IF(AND(B188>0,B189>0),(350+2912),IF(OR(B188>0,B189>0),IF(AND(B188>0,B189=0),350,IF(AND(B188=0,B189>0),2912,0)),0)),2) -> 0
A188: Date of Plan:
A189: Date of Report:
A190: SUBTOTAL OF THIS PAGE | D190: =SUM(E152:E188) -> 0 | G190: =IF(H152=TRUE,$K$2,IF(H153=TRUE,$K$3,IF(H154=TRUE,$K$4,IF(H155=TRUE,$K$5,)))) -> 0
A191: MISCELLANOUS TOTAL | D191: =SUM(G190) -> 0 | G191: =IF(SUM(D190:E191)>0,1,0) -> 0
A192: Page of (Miscellaneous Supplementary Sheet)
A193: PART 5.H (3)
A194: MISCELLANEOUS SUPPLEMENTARY SHEET
A195: UNIT PRICING FORM
A196: Check Event:
A198: Unit pricing for these activities is mandatory.
A199: UNIT PRICE ACTIVITY | C199: RAC INVOICE NO. | D199: RATES | E199: COST
A200: Bid Package Preparation: Provide Bid Summary with RAC Invoice. | D200: See page 54 of the 2017 Cost Control Guidance Document for rate descriptions | G200: Emergency/Initial Work | H200: FALSE | I200: =IF(H200=TRUE,$D$238,"") -> 
G201: Investigation Work | H201: FALSE | I201: =IF(H201=TRUE,$D$238,"") -> 
A202: Description of Bid Package: | E202: =ROUND(IF(B202>0,IF(B202=$J$17,INDEX($K$17:$M$21,MATCH(B202,$J$17:$J$21,0),MATCH(B203,$K$16:$M$16,0)),VLOOKUP(B202,$J$18:$K$21,2,FALSE)),0),2) -> 0 | G202: Monitoring/Interim Work | H202: FALSE
A203: Value of Work: | G203: Corrective Action Plan Work | H203: FALSE
A204: Description of Bid Package: | E204: =ROUND(IF(B204>0,IF(B204=$J$17,INDEX($K$17:$M$21,MATCH(B204,$J$17:$J$21,0),MATCH(B205,$K$16:$M$16,0)),VLOOKUP(B204,$J$18:$K$21,2,FALSE)),0),2) -> 0 | G204: Report Preparation | H204: FALSE
A205: Value of Work:
A206: Treatment System Design/Engineering/Planning and Treatment System Installation Design/Engineering/Planning | D206: $4,680.00 (See page 73 of the CCGD) | E206: =ROUND(IF(C206>0,4680,0),2) -> 0 | G206: Emergency/Initial Work | H206: =IF(H200=TRUE,1,"") -> 
A207: Conveyance Notice (Copy of conveyance notice for each property is required for payment) | D207: $1,200.00 per affected property | E207: =ROUND(IF(C207>0,1200,0),2) -> 0 | G207: Investigation Work | H207: =IF(H201=TRUE,2,"") -> 
A208: Corrective Action Plan Construction and Operations Report | D208: See page 56 of the 2017 Cost Control Guidance Document for rate descriptions | E208: =ROUND(IF(AND(B209>0,B210>0),VLOOKUP(B210,$J$24:$K$27,2,FALSE),0),2) -> 0 | G208: Monitoring/Interim Work | H208: =IF(H202=TRUE,3,"") -> 
A209: Date of Report: | G209: Corrective Action Plan Work | H209: =IF(H203=TRUE,4,"") -> 
A210: Report Type: | G210: Report Preparation | H210: =IF(H204=TRUE,5,"") -> 
A211: P & A Report | D211: $750.00 per report | E211: =ROUND(IF(B212>0,750,0),2) -> 0
A212: Date of Report:
A213: Permit Application Development and Submittal (select from lists) | D213: See page 67 of the 2017 CCGD for rate descrpitions | E213: =IF(OR(COUNTIF(A214:B214,"*Water*")>1,COUNTIF(A214:B214,"*Air*")>1),"Duplicate Entry",SUM(IF(A214>0,VLOOKUP(A214,$G$32:$H$34,2,FALSE),0)+IF(B214>0,VLOOKUP(B214,$G$32:$H$34,2,FALSE),0))) -> 0
A215: Quarterly Monitoring Reports (if applicable) – Indicate report period | D215: See page 61 of the 2017 Cost Control Guidance Document for rate descriptions
A216: Quarter | B216: Year
A218: Annual or Semi-Annual Report (if applicable) - Indicate report period | D218: See page 62 of the 2017 Cost Control Guidance Document for rate descriptions
A219: Report Type:
A220: Report Period:
A221: State or Municipal/Parish Quarterly Discharge Monitoring Report | D221: $208.00 per report ($78.00 for “No Discharge")
A222: Report period(s):
A223: Permit number(s):
A224: Soil Confirmation Report Date: | D224: 17% of reimbursed field work ($10,000 max) | E224: =ROUND(IF(OR(B225=0,B224=0),0,IF(B225*0.17>10000,10000,B225*0.17)),2) -> 0
A225: Cost of Field Work:
A226: Vac. Events Report Date of Report: | D226: See page 74-75 of the 2017 Cost Control Guidance Document for rate descriptions | E226: =ROUND(IF(OR(COUNTA(A229:B232)=0,B226=0),0,IF(COUNTA(A229:B232)=1,VLOOKUP(B227,$J$32:$M$33,2,FALSE),IF(COUNTA(A229:B232)>1, VLOOKUP(B227,$J$32:$M$33,2,FALSE)+((COUNTA(A229:B232)-1)*VLOOKUP(B227,$J$32:$M$33,3,FALSE)),0))),2) -> 0
A227: Report Type:
A228: List Dates of Events:
A233: Vacuum Event Planning Type: | E233: =ROUND(IF(AND(B233>0,B234>0),VLOOKUP(B233,$J$31:$M$33,4,FALSE)*B234,0),2) -> 0
... 7 more rows

Sheet Miscellaneous 4
A1: PART 5.H (4)
A2: MISCELLANEOUS SUPPLEMENTARY SHEET
A3: UNIT PRICING FORM
A4: Check Event:
A5: Unit pricing for these activities is mandatory.
A6: UNIT PRICE ACTIVITY | C6: RAC INVOICE NO. | D6: RATES | E6: COST | I6: Sheet total | K6: Sheet 1-3 total
A7: Corrective Action Plan | D7: See page 55 of the 2017 Cost Control Guidance Document and MFTF Interim Guidance for rate descriptions | G7: Report Preparation | H7: FALSE | I7: =IF(H7=TRUE,D36,"") ->  | J7: Report Preparation | K7: ='Miscellaneous 3'!K6 -> 0 | L7: =SUM(I7,K7) -> 0
A8: Date of Work Plan: | E8: =ROUND(IF(OR(AND(B8>0,B9>0,B10>0),AND(B8>0,B9=G14)),IF(OR(B9=$G$17,B9=$G$19,B9=$G$20),IF(B10*VLOOKUP(B9,$G$12:$I$20,2,FALSE)>VLOOKUP(B9,$G$12:$I$20,3,FALSE),VLOOKUP(B9,$G$12:$I$20,3,FALSE),B10*VLOOKUP(B9,$G$12:$I$20,2,FALSE)),VLOOKUP(B9,$G$12:$I$20,2,FALSE)),0),2) -> 0
A9: CAP Category: | G9: Report Preparation | H9: =IF(H7=TRUE,5,"") -> 
A10: Budget Value:
A11: Date of Work Plan: | E11: =ROUND(IF(OR(AND(B11>0,B12>0,B13>0),AND(B11>0,B12=G14)),IF(OR(B12=$G$17,B12=$G$19,B12=$G$20),IF(B13*VLOOKUP(B12,$G$12:$I$20,2,FALSE)>VLOOKUP(B12,$G$12:$I$20,3,FALSE),VLOOKUP(B12,$G$12:$I$20,3,FALSE),B13*VLOOKUP(B12,$G$12:$I$20,2,FALSE)),VLOOKUP(B12,$G$12:$I$20,2,FALSE)),0),2) -> 0 | G11: Corrective Action Plan
A12: CAP Category: | H12: Rate | I12: Max
A13: Budget Value: | G13: Category 1 - Complete CAP | H13: 7000
A14: Plugging & Abandonment Work Plan | D14: $104.00 per plan | E14: =ROUND(IF(B15>0,104,0),2) -> 0 | G14: Category 1 - Scoping Meeting | H14: 2800
A15: Date of Work Plan: | G15: Category 1 - ROG Approval | H15: 4200
A16: Risk Evaluation/Corrective Action Report – Appendix I Sites Only | D16: See page 70 of the 2017 Cost Control Guidance Document for rate descriptions | G16: Category 2 | H16: 2000
A17: Date of Report: | G17: Category 3 | H17: 0.1 | I17: 4000
A18: Description of Report: | G18: Category 4 | H18: 500
G19: Category 5 | H19: 0.05 | I19: 2000
A20: Date of Report: | G20: Category 6 | H20: 0.05 | I20: 1000
A21: Description of Report:
A23: Remediation Oversight Group Meeting Preparation and Attendance | D23: $702.00 per meeting | E23: =ROUND(IF(C23>0,702,0),2) -> 0
A24: Date of Meeting:
A25: Site Investigation Report Date: | D25: 17% of reimbursed field work performed ($10,000 max) | E25: =ROUND(IF(OR(B26=0,B25=0),0,IF(B26*0.17>10000,10000,B26*0.17)),2) -> 0
A26: Cost of Field Work: | B26: 0
A27: Site Investigation or Soil Confirmation Work Plan | D27: 4% of approved field work in work plan ($520 minimum, $1000 max) | E27: =ROUND(IF(OR(B28=0,B30=0),0,IF(B30*0.04<520,520,IF(B30*0.04>1000,1000,B30*0.04))),2) -> 0
A28: Date of Work Plan:
A29: Date of Team Leader Approval:
A30: Cost of Approved Field Work:
A31: Trust Fund Reimbursement for Application Preparation/Invoicing Work | D31: Applications Addressing Field Work: $333.00 Application Addressing Reports Only: $125.00
A32: July – September | B32: October - December
A33: =IF('Part 1'!E29="","",'Part 1'!E29) ->  | B33: =IF('Part 1'!E31="","",'Part 1'!E31) -> 
A34: January – March | B34: April - June
A35: =IF('Part 1'!E33="","",'Part 1'!E33) ->  | B35: =IF('Part 1'!E35="","",'Part 1'!E35) -> 
A36: SUBTOTAL OF THIS PAGE | D36: =SUM(E7:E35) -> 0
A37: TOTAL MISCELLANEOUS COSTS | D37: =L7 -> 0 | G37: =IF(D37>0,1,0) -> 0
A39: Page of (Miscellaneous Supplementary Sheet)

Sheet Part 6
A1: PART 6
A2: RAC OR OWNER INVOICE SUMMARY
A4: List in chronological order, all RAC invoices to the owner and all other invoices billed directly to the owner on this sheet. Each application can
A5: not address invoices dated for a period of more than one fiscal year (July 1 thru June 30). Copies of all listed invoices must be attached.
A6: Outside invoices/receipts must be attached to the appropriate RAC/Owner Invoice.
G7: =IF(OR(H8="",K8="",M31>0,AND(O12=0,M31=0)),"MISSING INFORMATION","") -> MISSING INFORMATION
A8: Site Name: | B8: =IF('Part 1'!A20>0,'Part 1'!A20,"") ->  | F8: Invoicing Period: | I8: through
A9: Site Address: | B9: =IF('Part 1'!A24>0,'Part 1'!A24&", "&'Part 1'!E24&", "&'Part 1'!G24,"") ->  | I9: AIN: | J9: =IF('Part 1'!A22>0,'Part 1'!A22,"") -> 
A10: WORKED PERFORMED (TIME PERIOD) | C10: INVOICE DATE | D10: COMPANY NAME | F10: INVOICE NO. | H10: AMOUNT | I10: DEQ COMMENTS | M10: Missing Invoice Info
M11: =IF(OR(AND(A11="",OR(C11>0,D11>0,F11>0,H11>0)), AND(C11="",OR(A11>0,D11>0,F11>0,H11>0)), AND(D11="",OR(A11>0,C11>0,F11>0,H11>0)), AND(F11="",OR(A11>0,C11>0,D11>0,H11>0)), AND(H11="",OR(A11>0,C11>0,D11>0,F11>0))),TRUE,FALSE) -> FALSE | N11: part 5 | O11: ='Part 5'!A3 -> 0 | P11: =ROUND(O11,2) -> 0 | R11: =IF(F11="","",F11&"; ") -> 
M12: =IF(OR(AND(A12="",OR(C12>0,D12>0,F12>0,H12>0)), AND(C12="",OR(A12>0,D12>0,F12>0,H12>0)), AND(D12="",OR(A12>0,C12>0,F12>0,H12>0)), AND(F12="",OR(A12>0,C12>0,D12>0,H12>0)), AND(H12="",OR(A12>0,C12>0,D12>0,F12>0))),TRUE,FALSE) -> FALSE | N12: part 6 | O12: =H31 -> 0 | P12: =ROUND(O12,2) -> 0 | R12: =IF(F12="","",F12&"; ") -> 
M13: FALSE
M14: FALSE | N14: =IF(P11=P12,0,1) -> 0
M15: FALSE
M16: FALSE
M17: FALSE
M18: FALSE
M19: FALSE
M20: FALSE
M21: FALSE
M22: FALSE
M23: FALSE
M24: FALSE
M25: FALSE
M26: FALSE
M27: FALSE
M28: FALSE
M29: FALSE
M30: FALSE
A31: TOTAL RAC OR OWNER INVOICE SUMMARY | H31: =SUM(H11:H30) -> 0 | M31: =COUNTIF(M11:M30,TRUE) -> 0

Sheet Part 7
A1: PART 7
A2: TREATMENT SYSTEM TRACKING FORM
A5: Name of Current Site: | E5: =IF('Part 1'!A20>0,""&" "&'Part 1'!A20,"") -> 
A7: Agency Interest Number (AIN): | H7: =IF('Part 1'!A22>0,'Part 1'!A22,"") -> 
A9: Please provide the following for groundwater or vapor recovery equipment in use at the above listed site for
A10: which reimbursement is being ,or will be, requested.
A11: 1. Detailed invoice indicating price of major components must be supplied.
A12: Purchase | K12: Cost | P12: Invoice No. | U12: (Invoice attached)
A13: Rental (5% of unit cost-DEQ approval only) | K13: Rate | P13: Minimum Term: | V13: Months
A15: 2. Manufacturer’s Name
A16: 3. Serial Number of Equipment
A17: 4. Prior location of the unit, if previously used at another site (include AIN)
A19: 5. Brief information on the unit: (Please check appropriate method noted below)
X20: =IF(F15>0,1,0) -> 0
A21: Major Components and Manufacturer's Recommendations:
B22: Motor Size (quantity and size) | M22: Carbon Filter (yes/no, size)
B23: Pump (quantity and size) | M23: Oil Capacity (in gallons)
B24: Air Stripper (flow rate) | M24: Oil Change Frequency
F25: Other
A27: 6. Period Operated (If original location, please estimate number of months of expected use at the site.)
A28: Original Location/AIN:
A30: (Estimated time-frame) From | M30: Length of uses
J31: (Installation Date) | R31: (Estimated Time)
A32: New Location/ AIN:.
A34: (Estimated time-frame) From | M34: Length of uses
J35: (Installation Date) | R35: (Estimated Time)
A36: DEQ USE ONLY:
A37: Cost Comparison: Purchase vs. Rental of the Treatment System
A38: No. Of Months Projected for Use at the Site ( ) X .05 of Cost of Unit ( )=$
A40: I hereby certify that all of the above information is true and correct to the best of my knowledge and I agree to
A41: notify the Trust Fund Section, in writing, indicating the specific address of the relocation of the treatment
A42: equipment as soon as possible, but prior to relocation of the equipment.
A43: RAC Name: | L43: *Signature: | P43: =IF(OR(L12="",S12="",I16="",J22="",J23="",J24="",T22="",T23="",T24=""),"MISSING INFORMATION","") -> MISSING INFORMATION
A45: Owner, Operator, or RP Name: | L45: Title of Signatory:
A47: Telefax Number: | L47: Telephone Number:
A48: * Signature is required of Owner, Operator, RP, or RAC (person purchasing unit). RAC signature is required for rental.

Sheet Part 8
A1: PART 8
A2: PURCHASE AGREEMENT FORM
A3: (TREATMENT SYSTEMS ONLY)
A5: 1. Treatment systems are defined as systems used in remediation of a contaminated underground storage tank
A6: site (hereinafter referred to as “equipment”).
A8: 2. The owner, operator, RP, or Response Action Contractor (RAC) (person retaining ownership) is responsible
A9: for and will ensure that the equipment is inspected, serviced and repaired as required to ensure its continued
A10: effectiveness.
A12: 3. Prior to relocating the equipment to another site, the owner, operator, RP, or RAC will notify the Trust Fund
A13: Fund Section of the Financial Services Division of the relocation by completing a new Treatment System
A14: Tracking Form.
A16: 4. After selling the equipment, the owner, operator, RP, or RAC will reimburse the Trust Fund all proceeds.
A18: 5. If the owner, operator, RP, or RAC relocates the equipment to a non-Trust Fund site, the owner, operator, RP
A19: or RAC will reimburse the Trust Fund ten percent (10%) of the purchase cost of the equipment.
A24: I agree to comply with the terms and conditions as stated above.
A27: =IF(OR(H31="",D46="",G30="VALUE DOES NOT MATCH PART 7",D45="SERIAL NUMBER DOES NOT MATCH PART 7"),"MISSING INFORMATION","") -> MISSING INFORMATION
A28: Signature of Owner, Operator, RP, or RAC Date Signed
A29: (Circle: Owner, Operator, RP, or RAC)
G30: =IF(AND(H31>0,H31<>'Part 7'!L12),"VALUE DOES NOT MATCH PART 7","") -> 
K31: =IF(C44>0,1,0) -> 0
A32: Typed or Printed Name of Owner, Operator, RP, or RAC Cost of Unit
A33: (Circle: Owner, Operator, RP, or RAC)
A36: Mailing Address of Owner, Operator, RP, or RAC (above)
A38: Phone No. | F38: Telefax No.
A40: Site Name: | B40: =IF('Part 1'!A20>0,'Part 1'!A20,"") -> 
A42: Agency Interest No. | C42: =IF('Part 1'!A22>0,'Part 1'!A22,"") -> 
A44: Type of Equipment:
D45: =IF(D46='Part 7'!I16,"","SERIAL NUMBER DOES NOT MATCH PART 7") -> 
A46: Equipment Serial Number:
